NUMERO_MANDATO;RIGA_MANDATO;QUIET;IMPORTO_RIGA;IMPORTO_MANDATO;BENEFICIARIO;CIG;TITOLO_PAGAMENTO;DATA_MANDATO;CAPITOLO;ARTICOLO;NUMERO_IMPEGNO;TITOLO;DESCR_TITOLO;LIVELLO_II;DESCR_LIVELLO_II;LIVELLO_III;DESCR_LIVELLO_III;LIVELLO_IV;DESCR_LIVELLO_IV;LIVELLO_V;DESCR_LIVELLO_V;DATA_PAG_EFF
1;1;9999999;5.165,52;5.165,52;AMMINISTRATORI C/INDENNITA'; ;INDENNITA DI FUNZIONE AMMINISTRATORI MESE DI DICEMBRE 2021;21/01/2022;20;0;44;1;Spese correnti;3;Acquisto di beni e servizi;2;Acquisto di servizi;1;Organi e incarichi istituzionali dell'amministrazione;1;Organi istituzionali dell'amministrazione - Indennità;26/01/2022
2;1;9999999;623;623;ISTITUTO NAZIONALE PREVIDENZA SOCIALE; ;ASPETTATIVA NON RETRIBUITA DEL SINDACO PER ESPLETAMENTO DEL MANDATO ELETTIVO - CONTRIBUTI GENNAIO 2022;21/01/2022;21;0;54;1;Spese correnti;3;Acquisto di beni e servizi;2;Acquisto di servizi;1;Organi e incarichi istituzionali dell'amministrazione;2;Organi istituzionali dell'amministrazione - Rimborsi;15/02/2022
17;1;9999999;61,9;61,9;DIPENDENTI C/STIPENDI; ;STIPENDI MESE DI: GENNAIO 22;21/01/2022;160;0;5;1;Spese correnti;3;Acquisto di beni e servizi;2;Acquisto di servizi;99;Altri servizi;999;Altri servizi diversi n.a.c.;26/01/2022
18;1;9999999;170,68;170,68;DIPENDENTI C/STIPENDI; ;STIPENDI MESE DI: GENNAIO 22;21/01/2022;445;1;589;1;Spese correnti;3;Acquisto di beni e servizi;2;Acquisto di servizi;7;Utilizzo di beni di terzi;6;Licenze d'uso per software;26/01/2022
48;1;9999999;15;15;DIPENDENTI C/STIPENDI; ;STIPENDI MESE DI: GENNAIO 22;21/01/2022;2171;3;481;1;Spese correnti;3;Acquisto di beni e servizi;2;Acquisto di servizi;18;Servizi sanitari;999;Altri acquisti di servizi sanitari n.a.c.;26/01/2022
81;1;9999999;21,76;21,76;ECONOMO COMUNALE - MODENESE LILIANA; ;Rimborso bolletta N.    18 del  07-10-21 RESTITUZIONE SOMMA ACQUISTO BOTTIGLETTE ACQUA E BICCHIERI SEDUTE GIUNTA E CONSIGLIO COMUNALE;25/01/2022;30;1;225;1;Spese correnti;3;Acquisto di beni e servizi;1;Acquisto di beni;2;Altri beni di consumo;999;Altri beni e materiali di consumo n.a.c.;07/02/2022
82;1;9999999;74,49;74,49;ECONOMO COMUNALE - MODENESE LILIANA; ;Rimborso bolletta N.    19 del  21-10-21 RESTITUZIONE SOMMA ACQUISTO MATERIALE TERMOSANITARIO;25/01/2022;335;0;403;1;Spese correnti;3;Acquisto di beni e servizi;1;Acquisto di beni;2;Altri beni di consumo;999;Altri beni e materiali di consumo n.a.c.;07/02/2022
83;1;9999999;27;27;ECONOMO COMUNALE - MODENESE LILIANA; ;Rimborso bolletta N.    28 del  15-12-21 RESTITUZIONE SOMMA ACQUISTO CARTA IGIENICA;25/01/2022;335;0;540;1;Spese correnti;3;Acquisto di beni e servizi;1;Acquisto di beni;2;Altri beni di consumo;999;Altri beni e materiali di consumo n.a.c.;07/02/2022
84;1;9999999;27,8;27,8;ECONOMO COMUNALE - MODENESE LILIANA; ;Rimborso bolletta N.    26 del  09-12-21 RESTITUZIONE SOMMA ACQUISTO CAVI PER SCHERMI PC;25/01/2022;340;1;121;1;Spese correnti;3;Acquisto di beni e servizi;1;Acquisto di beni;2;Altri beni di consumo;999;Altri beni e materiali di consumo n.a.c.;07/02/2022
85;1;9999999;53,6;53,6;ECONOMO COMUNALE - MODENESE LILIANA; ;Rimborso bolletta N.    24 del  02-12-21 ACQUISTO COVER PER CELLULARI DA ASSEGNARE AL PERSONALE OPERAIO E POLIZIA LOCALE;25/01/2022;340;1;478;1;Spese correnti;3;Acquisto di beni e servizi;1;Acquisto di beni;2;Altri beni di consumo;999;Altri beni e materiali di consumo n.a.c.;07/02/2022
86;1;9999999;150;150;ECONOMO COMUNALE - MODENESE LILIANA; ;Rimborso bolletta N.    22 del  16-11-21 ANTICIPO SOMMA SPESE POSTALI NON GESTIBILI CON AFFRANCATRICE;25/01/2022;340;4;447;1;Spese correnti;3;Acquisto di beni e servizi;2;Acquisto di servizi;16;Servizi amministrativi;2;Spese postali;07/02/2022
87;1;9999999;54,9;54,9;ECONOMO COMUNALE - MODENESE LILIANA; ;Rimborso bolletta N.    23 del  23-11-21 RESTITUZIONE SOMMA ACQUISTO MATERIALE VARIO;25/01/2022;365;1;226;1;Spese correnti;3;Acquisto di beni e servizi;1;Acquisto di beni;2;Altri beni di consumo;1;Carta, cancelleria e stampati;07/02/2022
89;1;9999999;69,72;69,72;ECONOMO COMUNALE - MODENESE LILIANA; ;Rimborso bolletta N.    25 del  03-12-21 ANTICIPO SOMMA PAGAMENTO DIRITTI LICENZA ANNO 2022 IMPIANTI FOTOVOLTAICI;25/01/2022;1095;0;480;1;Spese correnti;3;Acquisto di beni e servizi;2;Acquisto di servizi;16;Servizi amministrativi;999;Altre spese per servizi amministrativi;07/02/2022
90;1;9999999;20;20;ECONOMO COMUNALE - MODENESE LILIANA; ;Rimborso bolletta N.    29 del  30-12-21 RESTITUZIONE SOMMA LAVAGGIO MEZZI VIGILI DAIHATSU TERIOS TARGA YA745AL;25/01/2022;1800;5;223;1;Spese correnti;3;Acquisto di beni e servizi;2;Acquisto di servizi;9;Manutenzione ordinaria e riparazioni;1;Manutenzione ordinaria e riparazioni di mezzi di trasporto ad uso civile, di sicurezza e ordine pubblico;07/02/2022
91;1;9999999;20;20;ECONOMO COMUNALE - MODENESE LILIANA; ;Rimborso bolletta N.    20 del  29-10-21 RESTITUZIONE SOMMA PER LAVAGGIO E SANIFICAZIONE MEZZI FIAT QUBO FM886TG;25/01/2022;5810;5;421;1;Spese correnti;3;Acquisto di beni e servizi;2;Acquisto di servizi;9;Manutenzione ordinaria e riparazioni;1;Manutenzione ordinaria e riparazioni di mezzi di trasporto ad uso civile, di sicurezza e ordine pubblico;07/02/2022
92;1;9999999;21,5;21,5;ECONOMO COMUNALE - MODENESE LILIANA; ;Rimborso bolletta N.    27 del  10-12-21 RESTITUZIONE SOMMA ACQUISTO ATTREZZATURA APISTICA;25/01/2022;6350;0;507;1;Spese correnti;3;Acquisto di beni e servizi;2;Acquisto di servizi;99;Altri servizi;999;Altri servizi diversi n.a.c.;07/02/2022
93;1;9999999;708,59;708,59;TESORIERE ENTE; ;IMU INCASSATA NEL 2021 - REGOLARIZZAZIONE CONTABILE QUOTA IFEL;25/01/2022;1270;3;640;1;Spese correnti;4;Trasferimenti correnti;4;Trasferimenti correnti a Istituzioni Sociali Private;1;Trasferimenti correnti a Istituzioni Sociali Private;1;Trasferimenti correnti a Istituzioni Sociali Private;27/01/2022
94;1;9999999;72.579,00;72.579,00;SAVNO S.R.L.; ;SALDO Fatt.n. 6000120  del 22/12/2021 AGEVOLAZIONI TARI ANNO 2020 - SERNAGLIA DELLA BATTAGLIA;25/01/2022;4680;0;600;1;Spese correnti;4;Trasferimenti correnti;1;Trasferimenti correnti a Amministrazioni Pubbliche;2;Trasferimenti correnti a Amministrazioni Locali;18;Trasferimenti correnti a Consorzi di enti locali;27/01/2022
95;1;9999999;44.174,70;44.174,70;SAVNO S.R.L.; ;SALDO Fatt.n. 6000121  del 22/12/2021 AGEVOLAZIONI TARI ANNO 2021 - UTENZA SERNAGLIA DELLA BATTAGLIA;25/01/2022;4680;1;599;1;Spese correnti;4;Trasferimenti correnti;1;Trasferimenti correnti a Amministrazioni Pubbliche;2;Trasferimenti correnti a Amministrazioni Locali;18;Trasferimenti correnti a Consorzi di enti locali;27/01/2022
96;1;9999999;429,85;429,85;COMARELLA S.R.L.;8570309AB6;SALDO Fatt.n. 130.21  del 18/11/2021 LAVORI REALIZZAZIONE BLOCCO LOCULI-SERVIZIO IGENICO-ABBATTIMENTO BARRIERE ARCHITETTONICHE CIMITERO DI FONTIGO PRIMO STRALCIO - SVINCOLO RITENUTA PER INFORTUNI;25/01/2022;7300;2;698;2;Spese in conto capitale;2;Investimenti fissi lordi e acquisto di terreni;1;Beni materiali;9;Beni immobili;15;Cimiteri;27/01/2022
97;1;9999999;19.575,00;19.575,00;SCUOLA MATERNA PARROCCHIALE SERNAGLIA; ;LIQUIDAZIONE ACCONTO CONTRIBUTO ORDINARIO - A.S. 2021/2022;25/01/2022;2210;0;601;1;Spese correnti;4;Trasferimenti correnti;4;Trasferimenti correnti a Istituzioni Sociali Private;1;Trasferimenti correnti a Istituzioni Sociali Private;1;Trasferimenti correnti a Istituzioni Sociali Private;27/01/2022
98;1;9999999;10.710,00;10.710,00;SCUOLA MATERNA PARROCCHIALE SERNAGLIA; ;LIQUIDAZIONE CONTRIBUTO STRAORDINARIO - A.S. 2021/2022;25/01/2022;2210;0;602;1;Spese correnti;4;Trasferimenti correnti;4;Trasferimenti correnti a Istituzioni Sociali Private;1;Trasferimenti correnti a Istituzioni Sociali Private;1;Trasferimenti correnti a Istituzioni Sociali Private;27/01/2022
99;1;9999999;9.657,00;9.657,00;SCUOLA MATERNA PARROCCHIALE FALZE' DI P.; ;LIQUIDAZIONE ACCONTO CONTRIBUTO ORDINARIO - A.S. 2021/2022;25/01/2022;2210;0;603;1;Spese correnti;4;Trasferimenti correnti;4;Trasferimenti correnti a Istituzioni Sociali Private;1;Trasferimenti correnti a Istituzioni Sociali Private;1;Trasferimenti correnti a Istituzioni Sociali Private;27/01/2022
100;1;9999999;16.473,97;16.473,97;SCUOLA MATERNA PARROCCHIALE FALZE' DI P.; ;LIQUIDAZIONE CONTRIBUTO STRAORDINARIO - A.S. 2021/2022;25/01/2022;2210;0;604;1;Spese correnti;4;Trasferimenti correnti;4;Trasferimenti correnti a Istituzioni Sociali Private;1;Trasferimenti correnti a Istituzioni Sociali Private;1;Trasferimenti correnti a Istituzioni Sociali Private;27/01/2022
102;1;9999999;52,92;52,92;COMUNE DI FOLLINA; ;RIMBORSO SPESE NOTIFICA ATTI: M.F. REGISTRO 341-342-343-344-345-346-347-348-349;25/01/2022;340;4;592;1;Spese correnti;3;Acquisto di beni e servizi;2;Acquisto di servizi;16;Servizi amministrativi;999;Altre spese per servizi amministrativi;27/01/2022
103;1;9999999;1.800,00;1.800,00;ASSOCIAZIONE ANZIANI SERNAGLIA DELLA BATTAGLIA; ;LIQUIDAZIONE CONTRIBUTO ECONOMICO PER ORGANIZZAZIONE DEI SOGGIORNI CLIMATICI PER ANZIANI ANNO 2021;25/01/2022;5756;0;612;1;Spese correnti;4;Trasferimenti correnti;2;Trasferimenti correnti a Famiglie;5;Altri trasferimenti a famiglie;999;Altri trasferimenti a famiglie n.a.c.;27/01/2022
104;1;9999999;717,42;8.943,34;PASET VIGILIO; ;LIQUIDAZIONE CONTRIBUTI DI CUI ALLA L. 13/1989 INTERVENTI ELIMINAZIONE BARRIERE ARCHITETTONICHE;25/01/2022;5670;0;605;1;Spese correnti;4;Trasferimenti correnti;2;Trasferimenti correnti a Famiglie;2;Interventi assistenziali;999;Altri assegni e sussidi assistenziali;27/01/2022
104;2;9999999;3.235,69;8.943,34;SIGNOROTTO ANNA; ;LIQUIDAZIONE CONTRIBUTI DI CUI ALLA L. 13/1989 INTERVENTI ELIMINAZIONE BARRIERE ARCHITETTONICHE;25/01/2022;5670;0;605;1;Spese correnti;4;Trasferimenti correnti;2;Trasferimenti correnti a Famiglie;2;Interventi assistenziali;999;Altri assegni e sussidi assistenziali;27/01/2022
104;3;9999999;4.990,23;8.943,34;SOLDAN ERNESTO; ;LIQUIDAZIONE CONTRIBUTI DI CUI ALLA L. 13/1989 INTERVENTI ELIMINAZIONE BARRIERE ARCHITETTONICHE;25/01/2022;5670;0;605;1;Spese correnti;4;Trasferimenti correnti;2;Trasferimenti correnti a Famiglie;2;Interventi assistenziali;999;Altri assegni e sussidi assistenziali;27/01/2022
105;1;9999999;284,25;3.885,50;DAL PICCOL MONICA; ;LIQUIDAZIONE CONTRIBUTO PER LA FREQUENZA AI SERVIZI PER MINORI IN ETA PRESCOLARE - ANNO 2021;25/01/2022;5015;0;584;1;Spese correnti;4;Trasferimenti correnti;2;Trasferimenti correnti a Famiglie;2;Interventi assistenziali;999;Altri assegni e sussidi assistenziali;27/01/2022
105;2;9999999;375;3.885,50;EL AMIMI HASSNAE; ;LIQUIDAZIONE CONTRIBUTO PER LA FREQUENZA AI SERVIZI PER MINORI IN ETA PRESCOLARE - ANNO 2021;25/01/2022;5015;0;584;1;Spese correnti;4;Trasferimenti correnti;2;Trasferimenti correnti a Famiglie;2;Interventi assistenziali;999;Altri assegni e sussidi assistenziali;27/01/2022
105;3;9999999;473,75;3.885,50;FEDATO ELENA; ;LIQUIDAZIONE CONTRIBUTO PER LA FREQUENZA AI SERVIZI PER MINORI IN ETA PRESCOLARE - ANNO 2021;25/01/2022;5015;0;584;1;Spese correnti;4;Trasferimenti correnti;2;Trasferimenti correnti a Famiglie;2;Interventi assistenziali;999;Altri assegni e sussidi assistenziali;27/01/2022
105;4;9999999;952,5;3.885,50;FORNASIER MARINA; ;LIQUIDAZIONE CONTRIBUTO PER LA FREQUENZA AI SERVIZI PER MINORI IN ETA PRESCOLARE - ANNO 2021;25/01/2022;5015;0;584;1;Spese correnti;4;Trasferimenti correnti;2;Trasferimenti correnti a Famiglie;2;Interventi assistenziali;999;Altri assegni e sussidi assistenziali;27/01/2022
105;5;9999999;210;3.885,50;KESELJ NENAD; ;LIQUIDAZIONE CONTRIBUTO PER LA FREQUENZA AI SERVIZI PER MINORI IN ETA PRESCOLARE - ANNO 2021;25/01/2022;5015;0;584;1;Spese correnti;4;Trasferimenti correnti;2;Trasferimenti correnti a Famiglie;2;Interventi assistenziali;999;Altri assegni e sussidi assistenziali;27/01/2022
105;6;9999999;713,75;3.885,50;LUCIANI LISA; ;LIQUIDAZIONE CONTRIBUTO PER LA FREQUENZA AI SERVIZI PER MINORI IN ETA PRESCOLARE - ANNO 2021;25/01/2022;5015;0;584;1;Spese correnti;4;Trasferimenti correnti;2;Trasferimenti correnti a Famiglie;2;Interventi assistenziali;999;Altri assegni e sussidi assistenziali;27/01/2022
105;7;9999999;250;3.885,50;SIRBULEASA DANUT MIHAI; ;LIQUIDAZIONE CONTRIBUTO PER LA FREQUENZA AI SERVIZI PER MINORI IN ETA PRESCOLARE - ANNO 2021;25/01/2022;5015;0;584;1;Spese correnti;4;Trasferimenti correnti;2;Trasferimenti correnti a Famiglie;2;Interventi assistenziali;999;Altri assegni e sussidi assistenziali;27/01/2022
105;8;9999999;250;3.885,50;STELLA ALICE; ;LIQUIDAZIONE CONTRIBUTO PER LA FREQUENZA AI SERVIZI PER MINORI IN ETA PRESCOLARE - ANNO 2021;25/01/2022;5015;0;584;1;Spese correnti;4;Trasferimenti correnti;2;Trasferimenti correnti a Famiglie;2;Interventi assistenziali;999;Altri assegni e sussidi assistenziali;27/01/2022
105;9;9999999;376,25;3.885,50;TRENTO ELISA; ;LIQUIDAZIONE CONTRIBUTO PER LA FREQUENZA AI SERVIZI PER MINORI IN ETA PRESCOLARE - ANNO 2021;25/01/2022;5015;0;584;1;Spese correnti;4;Trasferimenti correnti;2;Trasferimenti correnti a Famiglie;2;Interventi assistenziali;999;Altri assegni e sussidi assistenziali;27/01/2022
106;1;9999999;300;300;GRUPPO ALPINI SERNAGLIA; ;LIQUIDAZIONE CONTRIBUTO PER COLLABORAZIONE ORGANIZZAZIONE CICLOESCURSIONE DEL 26 SETTEMBRE 2021;25/01/2022;3750;1;351;1;Spese correnti;4;Trasferimenti correnti;4;Trasferimenti correnti a Istituzioni Sociali Private;1;Trasferimenti correnti a Istituzioni Sociali Private;1;Trasferimenti correnti a Istituzioni Sociali Private;27/01/2022
107;1;9999999;3.708,01;3.708,01;CONSORZIO B.I.M. PIAVE DI TREVISO;Z1E349327A;LIQUIDAZIONE QUOTA ANNO 2021 PARTECIPAZIONE SPESE PER FUNZIONAMENTO SERVIZIO INTERCOMUNALE ASSOCIATO UNIPAS;25/01/2022;6301;0;576;1;Spese correnti;3;Acquisto di beni e servizi;2;Acquisto di servizi;99;Altri servizi;999;Altri servizi diversi n.a.c.;27/01/2022
108;1;9999999;9.419,00;9.419,00;CONSORZIO B.I.M. PIAVE DI TREVISO;Z3A3493BFC;LIQUIDAZIONE QUOTA ANNO 2021 PARTECIPAZIONE SPESE FUNZIONAMENTO SERVIZIO DELLE ATTIVITA DELLO SPORTELLO UNICO COMMERCIO (S.U.C.);25/01/2022;6302;0;575;1;Spese correnti;3;Acquisto di beni e servizi;2;Acquisto di servizi;99;Altri servizi;999;Altri servizi diversi n.a.c.;27/01/2022
109;1;9999999;2.964,00;2.964,00;LA CHIAVE DI SOPHIA; ;EROGAZIONE SALDO CONTRIBUTO PER REALIZZAZIONE SECONDA PARTE DEL PROGETTO SERNAGLIA E CULTURA 2021;25/01/2022;3330;0;295;1;Spese correnti;4;Trasferimenti correnti;4;Trasferimenti correnti a Istituzioni Sociali Private;1;Trasferimenti correnti a Istituzioni Sociali Private;1;Trasferimenti correnti a Istituzioni Sociali Private;27/01/2022
110;1;9999999;600;600;LEGAMBIENTE SERNAGLIA; ;LIQUIDAZIONE CONTRIBUTO PER COLLABORAZIONE ALLA SETTIMANA DEGLI ALBERI 2021;25/01/2022;3750;1;149;1;Spese correnti;4;Trasferimenti correnti;4;Trasferimenti correnti a Istituzioni Sociali Private;1;Trasferimenti correnti a Istituzioni Sociali Private;1;Trasferimenti correnti a Istituzioni Sociali Private;27/01/2022
111;1;9999999;369,38;369,38;MINISTERO INTERNO - TESORERIA DI ROMA; ;COMUNE DI SERNAGLIA DELLA BATTAGLIA CORRISPETTIVO RILASCIO N. 22 C.I.E. PERIODO 01.12.2021 - 15.12.2021;25/01/2022;432;0;22;1;Spese correnti;4;Trasferimenti correnti;1;Trasferimenti correnti a Amministrazioni Pubbliche;1;Trasferimenti correnti a Amministrazioni Centrali;1;Trasferimenti correnti a Ministeri;27/01/2022
112;1;9999999;520,49;520,49;MINISTERO INTERNO - TESORERIA DI ROMA; ;COMUNE DI SERNAGLIA DELLA BATTAGLIA CORRISPETTIVO RILASCIO N. 31 C.I.E. PERIODO 16.12.2021 - 31.12.2021;25/01/2022;432;0;22;1;Spese correnti;4;Trasferimenti correnti;1;Trasferimenti correnti a Amministrazioni Pubbliche;1;Trasferimenti correnti a Amministrazioni Centrali;1;Trasferimenti correnti a Ministeri;27/01/2022
113;1;9999999;5.000,00;5.000,00;QUADIENT ITALY SRL; ;LIQUIDAZIONE SPESE POSTALI GESTITE CON MACCHINA AFFRANCATRICE;25/01/2022;340;4;2;1;Spese correnti;3;Acquisto di beni e servizi;2;Acquisto di servizi;16;Servizi amministrativi;2;Spese postali;27/01/2022
114;1;9999999;1.220,25;1.220,25;MINISTERO DELLE INFRASTRUTTURE E DEI TRASPORTI; ;CMTV0041 CANONE ANNO 2022 - SERVIZIO TELEMATICO RELATIVA ALLACCESSO AGLI ARCHIVI DELLA MOTORIZZAZIONE CIVILE;25/01/2022;1780;1;582;1;Spese correnti;3;Acquisto di beni e servizi;2;Acquisto di servizi;5;Utenze e canoni;999;Utenze e canoni per altri servizi n.a.c.;27/01/2022
115;1;9999999;42,71;42,71;MINISTERO DELLE INFRASTRUTTURE E DEI TRASPORTI; ;COD. RIF. VE01370421P - INTEGRAZIONE DEPOSITO CAUZIONALE NAZIONALE N. 1207670 PROVINCIALE N. 84039 - APERTURA DEPOSITO DEFINITIVO 1370421;25/01/2022;1780;1;583;1;Spese correnti;3;Acquisto di beni e servizi;2;Acquisto di servizi;5;Utenze e canoni;999;Utenze e canoni per altri servizi n.a.c.;27/01/2022
116;1;9999999;1.830,00;1.830,00;DPLAY S.R.L.;Z8B3030746;SALDO Fatt.n. 26/04  del 13/12/2021 PROGETTO COMUNICATIVO SUL QUOTIDIANO DINFORMAZIONE WWW.QDPNEWS.IT;25/01/2022;410;2;2;1;Spese correnti;3;Acquisto di beni e servizi;2;Acquisto di servizi;13;Servizi ausiliari per il funzionamento dell'ente;999;Altri servizi ausiliari n.a.c.;27/01/2022
117;1;9999999;163,11;163,11;S.I.A.E.; ;SALDO Fatt.n. 1621021899  del 17/12/2021 Uff.CONEGLIANO PRO LOCO PER 27/11/2021-27/11/2021 Feste in piazza;25/01/2022;3110;1;459;1;Spese correnti;3;Acquisto di beni e servizi;2;Acquisto di servizi;99;Altri servizi;999;Altri servizi diversi n.a.c.;27/01/2022
118;1;9999999;30;30;PIZZERIA AL SEGNO;Z3F334C9A1;SALDO Fatt.n. 00121000248  del 31/12/2021 FORNITURA PASTI DIPENDENTI COMUNALI DICEMBRE 2021;25/01/2022;6510;0;382;1;Spese correnti;3;Acquisto di beni e servizi;2;Acquisto di servizi;14;Servizi di ristorazione;999;Altri servizi di ristorazione;27/01/2022
119;1;9999999;150;150;IDEAPUBBLICA SRL; ;SALDO Fatt.n. 1526/SP  del 25/11/2021 PARTECIPAZIONE DIPENDENTI CORSI FORMAZIONE DEL 15.11.2021 E 23.11.2021;25/01/2022;310;0;458;1;Spese correnti;3;Acquisto di beni e servizi;2;Acquisto di servizi;4;Acquisto di servizi per formazione e addestramento del personale dell'ente;999;Acquisto di servizi per altre spese per formazione e addestramento n.a.c.;27/01/2022
120;1;9999999;159,21;159,21;ITALIANA PETROLI S.P.A.;Z1326B22E0;SALDO Fatt.n. 9500187790  del 31/12/2021 FORNITURA CARBURANTE DICEMBRE 2021 MEZZI SERVIZI SOCIALI TARGATA FM886TG;25/01/2022;5810;1;14;1;Spese correnti;3;Acquisto di beni e servizi;1;Acquisto di beni;2;Altri beni di consumo;2;Carburanti, combustibili e lubrificanti;27/01/2022
121;1;9999999;854;854;SELITLUMITRONICA SAS DI STIZ L. & C.;ZA83119216;SALDO Fatt.n. 000037/PA  del 27/12/2021 VERIFICA CORRETTO FUNZIONAMENTO IMPIANTI SEMAFORICI 2 INTERVENTO 2021;25/01/2022;5955;0;101;1;Spese correnti;3;Acquisto di beni e servizi;2;Acquisto di servizi;9;Manutenzione ordinaria e riparazioni;4;Manutenzione ordinaria e riparazioni di impianti e macchinari;27/01/2022
122;1;9999999;786;786;TIRO A SEGNO NAZIONALE SEZIONE DI VITTORIO VENETO;Z4E32831F8;SALDO Fatt.n. 9/PA  del 12/12/2021 CORSO TIRO A SEGNO PERSONALE POLIZIA LOCALE ANNO 2021;25/01/2022;1840;0;276;1;Spese correnti;3;Acquisto di beni e servizi;2;Acquisto di servizi;4;Acquisto di servizi per formazione e addestramento del personale dell'ente;4;Acquisto di servizi per formazione obbligatoria;27/01/2022
123;1;9999999;9.889,00;9.889,00;SOLIGO VIAGGI SAS DI SCAPOL GIUSEPPINA & C.;7965830ADC;SALDO Fatt.n. PA/038  del 27/12/2021 SERVIZIO TRASPORTO SCOLASTICO DICEMBRE 2021;25/01/2022;2730;0;408;1;Spese correnti;3;Acquisto di beni e servizi;2;Acquisto di servizi;15;Contratti di servizio pubblico;2;Contratti di servizio di trasporto scolastico;27/01/2022
124;1;9999999;1.878,07;1.878,07;3G ITALIA S.R.L.;ZF13454580;SALDO Fatt.n. 264/PS  del 17/12/2021 FORNITURA SEGNALETICA STRADALE;25/01/2022;5960;0;512;1;Spese correnti;3;Acquisto di beni e servizi;1;Acquisto di beni;2;Altri beni di consumo;999;Altri beni e materiali di consumo n.a.c.;27/01/2022
125;1;9999999;178,12;178,12;MYO S.R.L.;Z28346D352;SALDO Fatt.n. 2040/210034914  del 28/12/2021 SERVIZIO RILEGATURA SERIE 10 ATTI STATO CIVILE;25/01/2022;820;1;541;1;Spese correnti;3;Acquisto di beni e servizi;2;Acquisto di servizi;99;Altri servizi;999;Altri servizi diversi n.a.c.;27/01/2022
126;1;9999999;138,6;138,6;SOLIGOMME SAS DI NAIBO GIANNI & C.;ZDF34984E4;ACCONTO Fatt.n. 01.001400  del 29/12/2021 FORNITURA PNEUMATICI, MONTAGGIO CON BILANCIATURA E SMALTIMENTO USURATI E ACQUISTO CATENE NEVE MEZZI COMUNALI;25/01/2022;5900;5;569;1;Spese correnti;3;Acquisto di beni e servizi;2;Acquisto di servizi;9;Manutenzione ordinaria e riparazioni;1;Manutenzione ordinaria e riparazioni di mezzi di trasporto ad uso civile, di sicurezza e ordine pubblico;27/01/2022
127;1;9999999;53,67;53,67;SOLIGOMME SAS DI NAIBO GIANNI & C.;ZDF34984E4;ACCONTO Fatt.n. 01.001400  del 29/12/2021 FORNITURA PNEUMATICI, MONTAGGIO CON BILANCIATURA E SMALTIMENTO USURATI E ACQUISTO CATENE NEVE MEZZI COMUNALI;25/01/2022;1800;5;570;1;Spese correnti;3;Acquisto di beni e servizi;2;Acquisto di servizi;9;Manutenzione ordinaria e riparazioni;1;Manutenzione ordinaria e riparazioni di mezzi di trasporto ad uso civile, di sicurezza e ordine pubblico;27/01/2022
128;1;9999999;174,95;174,95;SOLIGOMME SAS DI NAIBO GIANNI & C.;ZDF34984E4;SALDO Fatt.n. 01.001400  del 29/12/2021 FORNITURA PNEUMATICI, MONTAGGIO CON BILANCIATURA E SMALTIMENTO USURATI E ACQUISTO CATENE NEVE MEZZI COMUNALI;25/01/2022;5810;5;571;1;Spese correnti;3;Acquisto di beni e servizi;2;Acquisto di servizi;9;Manutenzione ordinaria e riparazioni;1;Manutenzione ordinaria e riparazioni di mezzi di trasporto ad uso civile, di sicurezza e ordine pubblico;27/01/2022
129;1;9999999;52,46;52,46;BATTISTELLA NILO;Z16349D605;SALDO Fatt.n. 2/PA  del 28/12/2021 REVISIONE BIENNALE TACHIGRAFO MEZZI COMUNALI;25/01/2022;5900;5;588;1;Spese correnti;3;Acquisto di beni e servizi;2;Acquisto di servizi;9;Manutenzione ordinaria e riparazioni;1;Manutenzione ordinaria e riparazioni di mezzi di trasporto ad uso civile, di sicurezza e ordine pubblico;27/01/2022
130;1;9999999;1.525,00;1.525,00;DASEIN SRL;Z9A3036971;SALDO Fatt.n. 1524  del 03/12/2021 SERVIZIO SUPPORTO COSTITUZIONE FONDO PRODUTTIVITA' ANNO 2021;25/01/2022;365;3;16;1;Spese correnti;3;Acquisto di beni e servizi;2;Acquisto di servizi;99;Altri servizi;999;Altri servizi diversi n.a.c.;27/01/2022
131;1;9999999;1.638,86;1.638,86;I TIGLI2 SOCIETA' COOPERATIVA SOCIALE - ONLUS;Z1F30BDF7B;SALDO Fatt.n. 2021/00580/PA  del 31/12/2021 SERVIZIO CONSEGNA PASTI E TRASPORTO SOCIALE DICEMBRE 2021;25/01/2022;5746;0;113;1;Spese correnti;3;Acquisto di beni e servizi;2;Acquisto di servizi;99;Altri servizi;999;Altri servizi diversi n.a.c.;27/01/2022
132;1;9999999;750;750;SALVADOR MARIAGRAZIA;Z9A32ACA9F;SALDO Fatt.n. 12/21  del 17/12/2021 SALDO SERVIZIO RIORDINO EX UFFICIO ATTIVITA PRODUTTIVE;25/01/2022;565;0;296;1;Spese correnti;3;Acquisto di beni e servizi;2;Acquisto di servizi;99;Altri servizi;999;Altri servizi diversi n.a.c.;27/01/2022
133;1;9999999;189,1;189,1;I TIGLI2 SOCIETA' COOPERATIVA SOCIALE - ONLUS;Z9C34356FC;SALDO Fatt.n. 2021/00582/PA  del 31/12/2021 SERVIZIO PULIZIA CENTRO PER LABORATORI NATALE 2021;25/01/2022;2760;2;485;1;Spese correnti;3;Acquisto di beni e servizi;2;Acquisto di servizi;99;Altri servizi;999;Altri servizi diversi n.a.c.;27/01/2022
134;1;9999999;220;220;FIORERIA ANTONELLA  SAS DI LORENZETTO A. & C.;Z92343AD83;SALDO Fatt.n. 4PA  del 20/12/2021 FORNITURA N. 3 COMPOSIZIONI PER CERIMONIE E RICORRENZE;25/01/2022;40;2;488;1;Spese correnti;3;Acquisto di beni e servizi;1;Acquisto di beni;2;Altri beni di consumo;9;Beni per attività di rappresentanza;27/01/2022
135;1;9999999;561,2;561,2;MAGGIOLI SPA;Z2C2B90D68;SALDO Fatt.n. 0002100577  del 18/01/2022 RINNOVO ABBONAMENTO ANNO 2022 - ENTIONLINE;25/01/2022;420;0;18;1;Spese correnti;3;Acquisto di beni e servizi;1;Acquisto di beni;1;Giornali, riviste e pubblicazioni;2;Pubblicazioni;27/01/2022
136;1;9999999;27,9;121,28;ABACO S.P.A.;8555333422;SALDO Fatt.n. 2022120000469  del 14/01/2022 AGGIO GESTIONE INCASSI OCCUPAZIONE SUOLO PUBBLICO DICEMBRE 2021;25/01/2022;1270;1;20;1;Spese correnti;3;Acquisto di beni e servizi;2;Acquisto di servizi;3;Aggi di riscossione;999;Altri aggi di riscossione n.a.c.;27/01/2022
136;2;9999999;93,38;121,28;ABACO S.P.A.;8555333422;SALDO Fatt.n. 2022120000468  del 14/01/2022 AGGIO GESTIONE INCASSI ESPOSIZIONI PUBBLICITARIE DICEMBRE 2021;25/01/2022;1270;1;20;1;Spese correnti;3;Acquisto di beni e servizi;2;Acquisto di servizi;3;Aggi di riscossione;999;Altri aggi di riscossione n.a.c.;27/01/2022
137;1;9999999;1.129,84;1.129,84;ANCI DIGITALE S.P.A.;Z7C30A54E8;SALDO Fatt.n. 56  del 11/01/2022 ABBONAMENTO ANNO 2022 - SERVIZI INFORMATICI DI BASE;25/01/2022;420;0;61;1;Spese correnti;3;Acquisto di beni e servizi;1;Acquisto di beni;1;Giornali, riviste e pubblicazioni;2;Pubblicazioni;27/01/2022
138;1;9999999;551,66;1.752,08;DOLOMITI ENERGIA S.P.A.;ZA330DC41D;SALDO Fatt.n. 42105580444  del 24/12/2021 FORNITURA GAS NATURALE NOVEMBRE 2021 - IMPIANTI SPORTIVI FONTIGO;25/01/2022;5290;2;85;1;Spese correnti;3;Acquisto di beni e servizi;2;Acquisto di servizi;5;Utenze e canoni;6;Gas;27/01/2022
138;2;9999999;1.200,42;1.752,08;DOLOMITI ENERGIA S.P.A.;ZA330DC41D;SALDO Fatt.n. 42105580445  del 24/12/2021 FORNITURA GAS NATURALE NOVEMBRE 2021 IMPIANTI SPORTIVI SERNAGLIA;25/01/2022;5290;2;85;1;Spese correnti;3;Acquisto di beni e servizi;2;Acquisto di servizi;5;Utenze e canoni;6;Gas;27/01/2022
139;1;9999999;623,64;623,64;BEYFIN SPA;Z2030F38AE;SALDO Fatt.n. 15786/73-2021  del 31/12/2021 FORNITURA GPL IMPIANTI SPORTIVI FALZE' 19.10.2021 - 10.12.2021;25/01/2022;5290;2;93;1;Spese correnti;3;Acquisto di beni e servizi;2;Acquisto di servizi;5;Utenze e canoni;6;Gas;27/01/2022
140;1;9999999;5.026,40;5.026,40;ACCATRE SRL;Z68311694E;SALDO Fatt.n. 1/220197  del 20/01/2022 SERVIZIO CONSERVAZIONE DOCUMENTI INFORMATICI ANNO 2022;25/01/2022;440;0;123;1;Spese correnti;3;Acquisto di beni e servizi;2;Acquisto di servizi;19;Servizi informatici e di telecomunicazioni;1;Gestione e manutenzione applicazioni;27/01/2022
141;1;9999999;170,56;170,56;OLIVETTI S.P.A.;Z032CB4345;SALDO Fatt.n. A20020211000052512  del 31/12/2021 CANONE NOLEGGIO FOTOCOPIATRICE UFFICIO RAGIONERIA 4 TRIM. 2021;25/01/2022;340;3;166;1;Spese correnti;3;Acquisto di beni e servizi;2;Acquisto di servizi;7;Utilizzo di beni di terzi;8;Noleggi di impianti e macchinari;27/01/2022
142;1;9999999;610;610;BOXXAPPS S.R.L.;ZEA327B847;SALDO Fatt.n. 1/220120  del 12/01/2022 SERVIZIO X-PIANO DI SICUREZZA CARTA IDENTITA' ELETTRONICA ANNO 2022;25/01/2022;440;0;281;1;Spese correnti;3;Acquisto di beni e servizi;2;Acquisto di servizi;19;Servizi informatici e di telecomunicazioni;1;Gestione e manutenzione applicazioni;27/01/2022
143;1;9999999;196,29;13.454,70;A2A ENERGIA S.P.A.; ;SALDO Fatt.n. 821000394211  del 16/12/2021 FORNITURA ENERGIA ELETTRICA SETTEMBRE OTTOBRE 2021 POD IT001E00058542;25/01/2022;6000;0;327;1;Spese correnti;3;Acquisto di beni e servizi;2;Acquisto di servizi;5;Utenze e canoni;4;Energia elettrica;27/01/2022
143;2;9999999;1.170,18;13.454,70;A2A ENERGIA S.P.A.; ;SALDO Fatt.n. 821000393913  del 13/12/2021 FORNITURA ENERGIA ELETTRICA SETTEMBRE OTTOBRE 2021 POD IT001E00058555;25/01/2022;6000;0;327;1;Spese correnti;3;Acquisto di beni e servizi;2;Acquisto di servizi;5;Utenze e canoni;4;Energia elettrica;27/01/2022
143;3;9999999;1.523,45;13.454,70;A2A ENERGIA S.P.A.; ;SALDO Fatt.n. 821000396271  del 24/12/2021 FORNITURA ENERGIA ELETTRICA NOVEMBRE 2021 POD IT001E00058577;25/01/2022;6000;0;327;1;Spese correnti;3;Acquisto di beni e servizi;2;Acquisto di servizi;5;Utenze e canoni;4;Energia elettrica;27/01/2022
143;4;9999999;1.524,38;13.454,70;A2A ENERGIA S.P.A.; ;SALDO Fatt.n. 821000394444  del 21/12/2021 FORNITURA ENERGIA ELETTRICA SETTEMBRE NOVEMBRE 2021 POD IT001E00058568;25/01/2022;6000;0;327;1;Spese correnti;3;Acquisto di beni e servizi;2;Acquisto di servizi;5;Utenze e canoni;4;Energia elettrica;27/01/2022
143;5;9999999;1.765,68;13.454,70;A2A ENERGIA S.P.A.; ;SALDO Fatt.n. 821000396191  del 24/12/2021 FORNITURA ENERGIA ELETTRICA NOVEMBRE 2021 POD IT001E00058548;25/01/2022;6000;0;327;1;Spese correnti;3;Acquisto di beni e servizi;2;Acquisto di servizi;5;Utenze e canoni;4;Energia elettrica;27/01/2022
143;6;9999999;1.950,43;13.454,70;A2A ENERGIA S.P.A.; ;SALDO Fatt.n. 821000395341  del 22/12/2021 FORNITURA ENERGIA ELETTRICA NOVEMBRE 2021 POD IT001E00058556;25/01/2022;6000;0;327;1;Spese correnti;3;Acquisto di beni e servizi;2;Acquisto di servizi;5;Utenze e canoni;4;Energia elettrica;27/01/2022
143;7;9999999;5.324,29;13.454,70;A2A ENERGIA S.P.A.; ;SALDO Fatt.n. 821000394327  del 20/12/2021 FORNITURA ENERGIA ELETTRICA SETTEMBRE NOVEMBRE 2021 POD IT001E00058586;25/01/2022;6000;0;327;1;Spese correnti;3;Acquisto di beni e servizi;2;Acquisto di servizi;5;Utenze e canoni;4;Energia elettrica;27/01/2022
144;1;9999999;170,2;170,2;TIM S.P.A.;Z3032F5261;SALDO Fatt.n. 7X03994729  del 11/12/2021 BOLLETTE TELEFONIA MOBILE 1BIM 2022;25/01/2022;345;0;336;1;Spese correnti;3;Acquisto di beni e servizi;2;Acquisto di servizi;5;Utenze e canoni;2;Telefonia mobile;27/01/2022
145;1;9999999;549;549;ASCO TLC S.P.A.;ZE7339955B;SALDO Fatt.n. 09033720  del 20/12/2021 SERVIZIO CONNETTIVITA' FIBRA OTTICA UFFICI DICEMBRE 2021;25/01/2022;345;0;426;1;Spese correnti;3;Acquisto di beni e servizi;2;Acquisto di servizi;5;Utenze e canoni;999;Utenze e canoni per altri servizi n.a.c.;27/01/2022
146;1;9999999;1.500,19;1.500,19;TEAM UFFICIO SRL;Z832F972ED;SALDO Fatt.n. 270/FE  del 23/12/2021 RINNOVO SERVIZI FIREWALL ANNO 2021;25/01/2022;440;0;518;1;Spese correnti;3;Acquisto di beni e servizi;2;Acquisto di servizi;19;Servizi informatici e di telecomunicazioni;999;Altri servizi informatici e di telecomunicazioni n.a.c.;27/01/2022
147;1;9999999;1.693,03;1.693,03;PROCED S.R.L.;Z6A341D9D5;SALDO Fatt.n. 2021S3002698  del 21/12/2021 FORNITURA CANCELLERIA VARIA;25/01/2022;340;1;534;1;Spese correnti;3;Acquisto di beni e servizi;1;Acquisto di beni;2;Altri beni di consumo;1;Carta, cancelleria e stampati;27/01/2022
148;1;9999999;283,55;283,55;TEAM UFFICIO SRL;ZCC2FEC3E2;SALDO Fatt.n. 269/FE  del 23/12/2021 COPIE ECCEDENZA STAMPANTE UFFICIO RAGIONERIA;25/01/2022;340;3;565;1;Spese correnti;3;Acquisto di beni e servizi;2;Acquisto di servizi;7;Utilizzo di beni di terzi;8;Noleggi di impianti e macchinari;27/01/2022
149;1;9999999;4.148,00;4.148,00;BOXXAPPS S.R.L.;ZD62F96DD8;SALDO Fatt.n. 1/220059  del 11/01/2022 CONVENZIONE SERVIZI X-LOG, X-STORAGE E X-COO ANNO 2022;25/01/2022;440;0;582;1;Spese correnti;3;Acquisto di beni e servizi;2;Acquisto di servizi;19;Servizi informatici e di telecomunicazioni;1;Gestione e manutenzione applicazioni;27/01/2022
150;1;9999999;85,4;923,03;TIM S.P.A.;Z4134D6B90;SALDO Fatt.n. 8E00748775  del 11/12/2021 BOLLETTE TELEFONIA FISSA 1 BIM 2022 - LOCALI FONTIGO;25/01/2022;345;0;15;1;Spese correnti;3;Acquisto di beni e servizi;2;Acquisto di servizi;5;Utenze e canoni;1;Telefonia fissa;27/01/2022
150;2;9999999;146,4;923,03;TIM S.P.A.;Z4134D6B90;SALDO Fatt.n. 8E00749548  del 11/12/2021 BOLLETTE TELEFONIA FISSA 1 BIM 2022 - MUNICIPIO;25/01/2022;345;0;15;1;Spese correnti;3;Acquisto di beni e servizi;2;Acquisto di servizi;5;Utenze e canoni;1;Telefonia fissa;27/01/2022
150;3;9999999;691,23;923,03;TIM S.P.A.;Z4134D6B90;SALDO Fatt.n. 8E00749475  del 11/12/2021 BOLLETTE TELEFONIA FISSA 1BIM 2022 - MUNICIPIO;25/01/2022;345;0;15;1;Spese correnti;3;Acquisto di beni e servizi;2;Acquisto di servizi;5;Utenze e canoni;1;Telefonia fissa;27/01/2022
151;1;9999999;95,81;208,95;TIM S.P.A.;Z4134D6B90;SALDO Fatt.n. 8E00750132  del 11/12/2021 BOLLETTE TELEFONIA FISSA 1 BIM 2022 - SCUOLA ELEMENTARE FALZE';25/01/2022;2350;0;16;1;Spese correnti;3;Acquisto di beni e servizi;2;Acquisto di servizi;5;Utenze e canoni;1;Telefonia fissa;27/01/2022
151;2;9999999;113,14;208,95;TIM S.P.A.;Z4134D6B90;SALDO Fatt.n. 8E00750484  del 11/12/2021 BOLLETTE TELEFONIA FISSA 1 BIM 2022 - SCUOLA ELEMENTARE SERNAGLIA;25/01/2022;2350;0;16;1;Spese correnti;3;Acquisto di beni e servizi;2;Acquisto di servizi;5;Utenze e canoni;1;Telefonia fissa;27/01/2022
152;1;9999999;85,4;495,8;TIM S.P.A.;Z4134D6B90;SALDO Fatt.n. 8E00750337  del 11/12/2021 BOLLETTE TELEFONIA FISSA 1 BIM 2022 - SCUOLA MEDIA;25/01/2022;2520;0;17;1;Spese correnti;3;Acquisto di beni e servizi;2;Acquisto di servizi;5;Utenze e canoni;1;Telefonia fissa;27/01/2022
152;2;9999999;152,54;495,8;TIM S.P.A.;Z4134D6B90;SALDO Fatt.n. 8E00746866  del 11/12/2021 BOLLETTE TELEFONIA FISSA 1 BIM 2022 - SCUOLA MEDIA;25/01/2022;2520;0;17;1;Spese correnti;3;Acquisto di beni e servizi;2;Acquisto di servizi;5;Utenze e canoni;1;Telefonia fissa;27/01/2022
152;3;9999999;257,86;495,8;TIM S.P.A.;Z4134D6B90;SALDO Fatt.n. 8E00750483  del 11/12/2021 BOLLETTE TELEFONIA FISSA 1 BIM 2022 - SCUOLA MEDIA;25/01/2022;2520;0;17;1;Spese correnti;3;Acquisto di beni e servizi;2;Acquisto di servizi;5;Utenze e canoni;1;Telefonia fissa;27/01/2022
153;1;9999999;85,51;85,51;TIM S.P.A.;Z4134D6B90;SALDO Fatt.n. 8E00748453  del 11/12/2021 BOLLETTE TELEFONIA FISSA 1 BIM 2022 - MAGAZZINO;25/01/2022;1080;0;18;1;Spese correnti;3;Acquisto di beni e servizi;2;Acquisto di servizi;5;Utenze e canoni;1;Telefonia fissa;27/01/2022
154;1;9999999;230;230;A.N.U.T.E.L.; ;LIQUIDAZIONE QUOTA ASSOCIATIVA A.N.U.T.E.L. ANNO 2022;28/01/2022;1270;2;21;1;Spese correnti;3;Acquisto di beni e servizi;2;Acquisto di servizi;99;Altri servizi;999;Altri servizi diversi n.a.c.;01/02/2022
155;1;9999999;783,02;1.783,02;EL KOCHAIRI HANAN; ;EROGAZIONE CONTRIBUTI DI CUI AGLI INTERVENTI DI CONTRASTO ALLA POVERTA CON UTILIZZO QUOTE DI COFINANZIAMENTO -D.G.R. 1106/2019 E D.G.R. 442;28/01/2022;5402;0;588;1;Spese correnti;4;Trasferimenti correnti;2;Trasferimenti correnti a Famiglie;2;Interventi assistenziali;999;Altri assegni e sussidi assistenziali;01/02/2022
155;2;9999999;1.000,00;1.783,02;EL MOUNTASSIR  ABDELKBIR; ;EROGAZIONE CONTRIBUTI DI CUI AGLI INTERVENTI DI CONTRASTO ALLA POVERTA CON UTILIZZO QUOTE DI COFINANZIAMENTO -D.G.R. 1106/2019 E D.G.R. 442;28/01/2022;5402;0;588;1;Spese correnti;4;Trasferimenti correnti;2;Trasferimenti correnti a Famiglie;2;Interventi assistenziali;999;Altri assegni e sussidi assistenziali;01/02/2022
156;1;9999999;1.982,50;1.982,50;PULI 4 SRL;Z4830634A7;SALDO Fatt.n. 1648/E  del 31/12/2021 SERVIZIO PULIZIA UFFICI COMUNALI DICEMBRE 2021;28/01/2022;355;1;56;1;Spese correnti;3;Acquisto di beni e servizi;2;Acquisto di servizi;13;Servizi ausiliari per il funzionamento dell'ente;2;Servizi di pulizia e lavanderia;01/02/2022
157;1;9999999;1.268,80;1.268,80;DE ZOLT SAPPADINA CESARE;ZF130B4257;SALDO Fatt.n. 4  del 04/01/2022 COMPETENZE SERVIZIO SUPPORTO AL RESPONSABILE UNICO DEL PROCEDIMENTO PROCEDURE PER LAPPALTO DEI LAVORI RIQUALIFICAZIONE ENERGETICA SCUOLA SERNAGLIA;28/01/2022;640;0;77;1;Spese correnti;3;Acquisto di beni e servizi;2;Acquisto di servizi;11;Prestazioni professionali e specialistiche;999;Altre prestazioni professionali e specialistiche n.a.c.;01/02/2022
158;1;9999999;805,2;805,2;CARRARO ASCENSORI S.R.L.;ZB52782417;SALDO Fatt.n. 157/PA  del 21/12/2021 CANONE ANNO 2020 E NOLEGGIO SIM IMPIANTO ELEVATORE SCUOLE SERNAGLIA;28/01/2022;2355;2;129;1;Spese correnti;3;Acquisto di beni e servizi;2;Acquisto di servizi;9;Manutenzione ordinaria e riparazioni;4;Manutenzione ordinaria e riparazioni di impianti e macchinari;01/02/2022
159;1;9999999;97,6;1.232,20;ASCO TLC S.P.A.;ZCE311E6D8;SALDO Fatt.n. 09033719  del 20/12/2021 CANONE SERVIZIO CONNETTIVITA TELECAMERE AL SERVER DI VIDEOSORVEGLIANZA DICEMBRE 2021;28/01/2022;1860;0;145;1;Spese correnti;3;Acquisto di beni e servizi;2;Acquisto di servizi;5;Utenze e canoni;999;Utenze e canoni per altri servizi n.a.c.;01/02/2022
159;2;9999999;549;1.232,20;ASCO TLC S.P.A.;ZCE311E6D8;SALDO Fatt.n. 09033717  del 20/12/2021 CANONE SERVIZIO HOUSING DEL SERVER PER IL SISTEMA DI VIDEOSORVEGLIANZA NOVEMBRE-DICEMBRE2021;28/01/2022;1860;0;145;1;Spese correnti;3;Acquisto di beni e servizi;2;Acquisto di servizi;5;Utenze e canoni;999;Utenze e canoni per altri servizi n.a.c.;01/02/2022
159;3;9999999;585,6;1.232,20;ASCO TLC S.P.A.;ZCE311E6D8;SALDO Fatt.n. 09033718  del 20/12/2021 CANONE SERVIZIO CONNETTIVITA TELECAMERE AL SERVER DI VIDEOSORVEGLIANZA DICEMBRE 2021;28/01/2022;1860;0;145;1;Spese correnti;3;Acquisto di beni e servizi;2;Acquisto di servizi;5;Utenze e canoni;999;Utenze e canoni per altri servizi n.a.c.;01/02/2022
160;1;9999999;4.507,29;4.507,29;METALCO SRL;ZEC3382FDA;SALDO Fatt.n. 2021130000603  del 31/12/2021 FORNITURA PENSILINA AUTOBUS PIAZZA FALZE';28/01/2022;7764;0;406;2;Spese in conto capitale;2;Investimenti fissi lordi e acquisto di terreni;1;Beni materiali;9;Beni immobili;12;Infrastrutture stradali;01/02/2022
161;1;9999999;8.149,60;8.149,60;TECNOGREEN DI L. GUARNIER & C. S.A.S.;ZAC338FC30;SALDO Fatt.n. 107/PA  del 22/12/2021 LAVORI RIFACIMENTO IMPIANTISTICA FONTANA PIAZZA MARTIRI;28/01/2022;7764;0;412;2;Spese in conto capitale;2;Investimenti fissi lordi e acquisto di terreni;1;Beni materiali;9;Beni immobili;12;Infrastrutture stradali;01/02/2022
162;1;9999999;3.513,60;3.513,60;KIMIA SRL;Z0333B80E3;SALDO Fatt.n. 906  del 22/12/2021 ANALISI ACQUA DI FALDA  E ACQUA SUPERFICIALE EX DISCARICA RSU;28/01/2022;7874;0;432;2;Spese in conto capitale;2;Investimenti fissi lordi e acquisto di terreni;1;Beni materiali;9;Beni immobili;14;Opere per la sistemazione del suolo;01/02/2022
163;1;9999999;1.220,00;1.220,00;NUOVA STAMPA 3 SNC;Z0133DFAB6;SALDO Fatt.n. 19/P  del 27/12/2021 STAMPA CALENDARIO CONCORSO FOTOGRAFICO SETTIMANA DEGLI ALBERI;28/01/2022;6350;0;449;1;Spese correnti;3;Acquisto di beni e servizi;2;Acquisto di servizi;99;Altri servizi;999;Altri servizi diversi n.a.c.;01/02/2022
164;1;9999999;1.002,29;1.002,29;EDILCEMENTI SRL UNIPERSONALE;ZD6348603F;SALDO Fatt.n. 17/A  del 29/12/2021 FORNITURA MATERIALE VARIO;28/01/2022;3780;1;562;1;Spese correnti;3;Acquisto di beni e servizi;1;Acquisto di beni;2;Altri beni di consumo;999;Altri beni e materiali di consumo n.a.c.;01/02/2022
165;1;9999999;268,4;268,4;IGEAM CONSULTING S.R.L.;Z8F2FF4E5B;SALDO Fatt.n. 3271/2021  del 13/12/2021 PROVA DI ESODO;28/01/2022;370;1;628;1;Spese correnti;3;Acquisto di beni e servizi;2;Acquisto di servizi;11;Prestazioni professionali e specialistiche;999;Altre prestazioni professionali e specialistiche n.a.c.;01/02/2022
166;1;9999999;18.611,71;18.611,71;ZOOPIAVE DI PERENCIN ATTILIO;Z822CD974F;SALDO Fatt.n. 4PA  del 15/12/2021 SFALCIO AREE VERDI COMUNALI ANNO 2021;28/01/2022;5910;4;230;1;Spese correnti;3;Acquisto di beni e servizi;2;Acquisto di servizi;9;Manutenzione ordinaria e riparazioni;12;Manutenzione ordinaria e riparazioni di terreni e beni materiali non prodotti;01/02/2022
167;1;9999999;8,13;8,13;TIM S.P.A.;Z0727618AF;SALDO Fatt.n. 7X03986611  del 11/12/2021 RINNVO RICARICA 1 BIM 2022;28/01/2022;345;0;67;1;Spese correnti;3;Acquisto di beni e servizi;2;Acquisto di servizi;5;Utenze e canoni;2;Telefonia mobile;01/02/2022
168;1;9999999;2.632,15;2.632,15;ENEL ENERGIA SPA;870016641B;ACCONTO Fatt.n. 004190079444  del 09/01/2022 FORNITURA ENERGIA ELETTRICA DICEMBRE 2021 - MUNICIPIO;28/01/2022;345;0;132;1;Spese correnti;3;Acquisto di beni e servizi;2;Acquisto di servizi;5;Utenze e canoni;4;Energia elettrica;01/02/2022
169;1;9999999;1.248,55;1.248,55;ENEL ENERGIA SPA;870016641B;SALDO Fatt.n. 004190079444  del 09/01/2022 FORNITURA ENERGIA ELETTRICA DICEMBRE 2021 - MUNICIPIO;28/01/2022;345;0;132;1;Spese correnti;3;Acquisto di beni e servizi;2;Acquisto di servizi;5;Utenze e canoni;4;Energia elettrica;01/02/2022
170;1;9999999;7,06;148,99;ENEL ENERGIA SPA;870016641B;SALDO Fatt.n. 004190079451  del 09/01/2022 FORNITURA ENERGIA ELETTRICA DICEMBRE 2021 - CHIESETTA;28/01/2022;1080;0;133;1;Spese correnti;3;Acquisto di beni e servizi;2;Acquisto di servizi;5;Utenze e canoni;4;Energia elettrica;01/02/2022
170;2;9999999;141,93;148,99;ENEL ENERGIA SPA;870016641B;SALDO Fatt.n. 004190079454  del 09/01/2022 FORNITURA ENERGIA ELETTRICA DICEMBRE 2021 - ANFITEATRO;28/01/2022;1080;0;133;1;Spese correnti;3;Acquisto di beni e servizi;2;Acquisto di servizi;5;Utenze e canoni;4;Energia elettrica;01/02/2022
171;1;9999999;3,89;154,28;ENEL ENERGIA SPA;870016641B;SALDO Fatt.n. 004190079452  del 09/01/2022 FORNITURA ENERGIA ELETTRICA DICEMBRE 2021 - SCUOLA SERNAGLIA;28/01/2022;2350;0;134;1;Spese correnti;3;Acquisto di beni e servizi;2;Acquisto di servizi;5;Utenze e canoni;4;Energia elettrica;01/02/2022
171;2;9999999;150,39;154,28;ENEL ENERGIA SPA;870016641B;ACCONTO Fatt.n. 004190079453  del 09/01/2022 FORNITURA ENERGIA ELETTRICA DICEMBRE 2021 - SCUOLA ELEMENTARE FALZE';28/01/2022;2350;0;134;1;Spese correnti;3;Acquisto di beni e servizi;2;Acquisto di servizi;5;Utenze e canoni;4;Energia elettrica;01/02/2022
172;1;9999999;375,72;375,72;ENEL ENERGIA SPA;870016641B;SALDO Fatt.n. 004190079453  del 09/01/2022 FORNITURA ENERGIA ELETTRICA DICEMBRE 2021 - SCUOLA ELEMENTARE FALZE';28/01/2022;2350;0;134;1;Spese correnti;3;Acquisto di beni e servizi;2;Acquisto di servizi;5;Utenze e canoni;4;Energia elettrica;01/02/2022
173;1;9999999;1.050,97;4.854,25;ENEL ENERGIA SPA;870016641B;ACCONTO Fatt.n. 004190079440  del 09/01/2022 FORNITURA ENERGIA ELETTRICA DICEMBRE 2021 - PALESTRA FALZE';28/01/2022;2930;0;136;1;Spese correnti;3;Acquisto di beni e servizi;2;Acquisto di servizi;5;Utenze e canoni;4;Energia elettrica;01/02/2022
173;2;9999999;1.868,40;4.854,25;ENEL ENERGIA SPA;870016641B;SALDO Fatt.n. 004190079440  del 09/01/2022 FORNITURA ENERGIA ELETTRICA DICEMBRE 2021 - PALESTRA FALZE';28/01/2022;2930;0;136;1;Spese correnti;3;Acquisto di beni e servizi;2;Acquisto di servizi;5;Utenze e canoni;4;Energia elettrica;01/02/2022
173;3;9999999;1.934,88;4.854,25;ENEL ENERGIA SPA;870016641B;SALDO Fatt.n. 004190079448  del 09/01/2022 FORNITURA ENERGIA ELETTRICA DICEMBRE 2021 - PALESTRA FONTIGO;28/01/2022;2930;0;136;1;Spese correnti;3;Acquisto di beni e servizi;2;Acquisto di servizi;5;Utenze e canoni;4;Energia elettrica;01/02/2022
174;1;9999999;-2,77;86,55;ENEL ENERGIA SPA;870016641B;SALDO Fatt.n. 004188838534  del 30/12/2021 RICALCOLI CONSUMI ENERGIA ELETTRICA OTTOBRE-NOVEMBRE 2021 - CIMITERO FONTIGO;28/01/2022;4145;0;138;1;Spese correnti;3;Acquisto di beni e servizi;2;Acquisto di servizi;5;Utenze e canoni;4;Energia elettrica;01/02/2022
174;2;9999999;-0,94;86,55;ENEL ENERGIA SPA;870016641B;SALDO Fatt.n. 004188838535  del 30/12/2021 RICALCOLI CONSUMI ENERGIA ELETTRICA OTTOBRE-NOVEMBRE 2021 - CIMITERO SERNAGLIA;28/01/2022;4145;0;138;1;Spese correnti;3;Acquisto di beni e servizi;2;Acquisto di servizi;5;Utenze e canoni;4;Energia elettrica;01/02/2022
174;3;9999999;8,59;86,55;ENEL ENERGIA SPA;870016641B;SALDO Fatt.n. 004188123325  del 14/12/2021 FORNITURA ENERGIA ELETTRICA NOVEMBRE 2021 - CIMITERO FONTIGO;28/01/2022;4145;0;138;1;Spese correnti;3;Acquisto di beni e servizi;2;Acquisto di servizi;5;Utenze e canoni;4;Energia elettrica;01/02/2022
174;4;9999999;8,6;86,55;ENEL ENERGIA SPA;870016641B;SALDO Fatt.n. 004190079449  del 09/01/2022 FORNITURA ENERGIA ELETTRICA DICEMBRE 2021 - CIMITERO FONTIGO;28/01/2022;4145;0;138;1;Spese correnti;3;Acquisto di beni e servizi;2;Acquisto di servizi;5;Utenze e canoni;4;Energia elettrica;01/02/2022
174;5;9999999;15,31;86,55;ENEL ENERGIA SPA;870016641B;SALDO Fatt.n. 004188123326  del 14/12/2021 FORNITURA ENERGIA ELETTRICA NOVEMBRE 2021 - CIMITERO SERNAGLIA;28/01/2022;4145;0;138;1;Spese correnti;3;Acquisto di beni e servizi;2;Acquisto di servizi;5;Utenze e canoni;4;Energia elettrica;01/02/2022
174;6;9999999;15,92;86,55;ENEL ENERGIA SPA;870016641B;SALDO Fatt.n. 004190079450  del 09/01/2022 FORNITURA ENERGIA ELETTRICA DICEMBRE 2021 - CIMITERO SERNAGLIA;28/01/2022;4145;0;138;1;Spese correnti;3;Acquisto di beni e servizi;2;Acquisto di servizi;5;Utenze e canoni;4;Energia elettrica;01/02/2022
174;7;9999999;20,65;86,55;ENEL ENERGIA SPA;870016641B;SALDO Fatt.n. 004187408509  del 13/12/2021 FORNITURA ENERGIA ELETTRICA NOVEMBRE 2021 - CIMITERO FALZE';28/01/2022;4145;0;138;1;Spese correnti;3;Acquisto di beni e servizi;2;Acquisto di servizi;5;Utenze e canoni;4;Energia elettrica;01/02/2022
174;8;9999999;21,19;86,55;ENEL ENERGIA SPA;870016641B;SALDO Fatt.n. 004197216624  del 17/01/2022 FORNITURA ENERGIA ELETTRICA DICEMBRE 2021 - CIMITERO FALZE';28/01/2022;4145;0;138;1;Spese correnti;3;Acquisto di beni e servizi;2;Acquisto di servizi;5;Utenze e canoni;4;Energia elettrica;01/02/2022
175;1;9999999;216,64;4.759,80;ENEL ENERGIA SPA;870016641B;SALDO Fatt.n. 004190079447  del 09/01/2022 FORNITURA ENERGIA ELETTRICA DICEMBRE 2021 - IMPIANTI SPORTIVI FALZE';28/01/2022;5290;2;139;1;Spese correnti;3;Acquisto di beni e servizi;2;Acquisto di servizi;5;Utenze e canoni;4;Energia elettrica;01/02/2022
175;2;9999999;299,1;4.759,80;ENEL ENERGIA SPA;870016641B;SALDO Fatt.n. 004188838532  del 30/12/2021 RICALCOLI CONSUMI ENERGIA ELETTRICA OTTBRE-NOVEMBRE 2021 - IMPIANTI SPORTIVI FONTIGO;28/01/2022;5290;2;139;1;Spese correnti;3;Acquisto di beni e servizi;2;Acquisto di servizi;5;Utenze e canoni;4;Energia elettrica;01/02/2022
175;3;9999999;346,76;4.759,80;ENEL ENERGIA SPA;870016641B;SALDO Fatt.n. 004188123323  del 14/12/2021 FORNITURA ENERGIA ELETTRICA NOVEMBRE 2021 - IMPIANTI SPORTIVI FONTIGO;28/01/2022;5290;2;139;1;Spese correnti;3;Acquisto di beni e servizi;2;Acquisto di servizi;5;Utenze e canoni;4;Energia elettrica;01/02/2022
175;4;9999999;385,12;4.759,80;ENEL ENERGIA SPA;870016641B;SALDO Fatt.n. 004190079439  del 09/01/2022 FORNITURA ENERGIA ELETTRICA DICEMBRE 2021 - IMPIANTI SPORTIVI FONTIGO;28/01/2022;5290;2;139;1;Spese correnti;3;Acquisto di beni e servizi;2;Acquisto di servizi;5;Utenze e canoni;4;Energia elettrica;01/02/2022
175;5;9999999;1.537,81;4.759,80;ENEL ENERGIA SPA;870016641B;SALDO Fatt.n. 004187408510  del 13/12/2021 FORNITURA ENERGIA ELETTRICA NOVEMBRE 2021 - IMPIANTI SPORTIVI SERNAGLIA;28/01/2022;5290;2;139;1;Spese correnti;3;Acquisto di beni e servizi;2;Acquisto di servizi;5;Utenze e canoni;4;Energia elettrica;01/02/2022
175;6;9999999;1.974,37;4.759,80;ENEL ENERGIA SPA;870016641B;SALDO Fatt.n. 004190079442  del 09/01/2022 FORNITURA ENERGIA ELETTRICA DICEMBRE 2021 - IMPIANTI SPORTIVI SERNAGLIA;28/01/2022;5290;2;139;1;Spese correnti;3;Acquisto di beni e servizi;2;Acquisto di servizi;5;Utenze e canoni;4;Energia elettrica;01/02/2022
176;1;9999999;42,71;937,26;ENEL ENERGIA SPA;870016641B;SALDO Fatt.n. 004188123322  del 14/12/2021 FORNITURA ENERGIA ELETTRICA NOVEMBRE 2021 - CENTRO ANZIANI SERNAGLIA;28/01/2022;5760;0;140;1;Spese correnti;3;Acquisto di beni e servizi;2;Acquisto di servizi;5;Utenze e canoni;4;Energia elettrica;01/02/2022
176;2;9999999;54,94;937,26;ENEL ENERGIA SPA;870016641B;ACCONTO Fatt.n. 004190079443  del 09/01/2022 FORNITURA ENERGIA ELETTRICA DICEMBRE 2021 - CENTRO ANZIANI SERNAGLIA POMPA CALORE;28/01/2022;5760;0;140;1;Spese correnti;3;Acquisto di beni e servizi;2;Acquisto di servizi;5;Utenze e canoni;4;Energia elettrica;01/02/2022
176;3;9999999;207,07;937,26;ENEL ENERGIA SPA;870016641B;SALDO Fatt.n. 004188838531  del 30/12/2021 RICALCOLI FORNITURA ENERGIA ELETTRICA OTTOBRE NOVEMBRE 2021 - CENTRO ANZIANI SERNAGLIA;28/01/2022;5760;0;140;1;Spese correnti;3;Acquisto di beni e servizi;2;Acquisto di servizi;5;Utenze e canoni;4;Energia elettrica;01/02/2022
176;4;9999999;289,92;937,26;ENEL ENERGIA SPA;870016641B;SALDO Fatt.n. 004190079437  del 09/01/2022 FORNITURA ENERGIA ELETTRICA DICEMBRE 2021 - CENTRO ANZIANI SERNAGLIA;28/01/2022;5760;0;140;1;Spese correnti;3;Acquisto di beni e servizi;2;Acquisto di servizi;5;Utenze e canoni;4;Energia elettrica;01/02/2022
176;5;9999999;342,62;937,26;ENEL ENERGIA SPA;870016641B;SALDO Fatt.n. 004190079446  del 09/01/2022 FORNITURA ENERGIA ELETTRICA DICEMBRE 2021 - CENTRO ANZIANI FALZE';28/01/2022;5760;0;140;1;Spese correnti;3;Acquisto di beni e servizi;2;Acquisto di servizi;5;Utenze e canoni;4;Energia elettrica;01/02/2022
177;1;9999999;669,27;1.444,95;ENEL ENERGIA SPA;870016641B;SALDO Fatt.n. 004190079438  del 09/01/2022 FORNITURA ENERGIA ELETTRICA DICEMBRE 2021 - CENTRO ANZIANI FALZE' POMPA CALORE;28/01/2022;5760;0;140;1;Spese correnti;3;Acquisto di beni e servizi;2;Acquisto di servizi;5;Utenze e canoni;4;Energia elettrica;01/02/2022
177;2;9999999;775,68;1.444,95;ENEL ENERGIA SPA;870016641B;SALDO Fatt.n. 004190079443  del 09/01/2022 FORNITURA ENERGIA ELETTRICA DICEMBRE 2021 - CENTRO ANZIANI SERNAGLIA POMPA CALORE;28/01/2022;5760;0;140;1;Spese correnti;3;Acquisto di beni e servizi;2;Acquisto di servizi;5;Utenze e canoni;4;Energia elettrica;01/02/2022
178;1;9999999;-21,37;54,83;ENEL ENERGIA SPA;870016641B;SALDO Fatt.n. 004188838533  del 30/12/2021 RICALCOLI CONSUMI ENERGIA ELETTRICA OTTOBRE-NOVEMBRE 2021 - MUSIL;28/01/2022;3751;0;141;1;Spese correnti;3;Acquisto di beni e servizi;2;Acquisto di servizi;5;Utenze e canoni;4;Energia elettrica;01/02/2022
178;2;9999999;36,33;54,83;ENEL ENERGIA SPA;870016641B;SALDO Fatt.n. 004190079445  del 09/01/2022 FORNITURA ENERGIA ELETTRICA DICEMBRE 2021 - MUSIL;28/01/2022;3751;0;141;1;Spese correnti;3;Acquisto di beni e servizi;2;Acquisto di servizi;5;Utenze e canoni;4;Energia elettrica;01/02/2022
178;3;9999999;39,87;54,83;ENEL ENERGIA SPA;870016641B;SALDO Fatt.n. 004188123324  del 14/12/2021 FORNITURA ENERGIA ELETTRICA NOVEMBRE 2021 - MUSIL;28/01/2022;3751;0;141;1;Spese correnti;3;Acquisto di beni e servizi;2;Acquisto di servizi;5;Utenze e canoni;4;Energia elettrica;01/02/2022
179;1;9999999;1.395,68;1.395,68;LUCCHETTA STEFANO;Z5E31E2B7E;SALDO Fatt.n. 4/PA  del 21/01/2022 COMPETENZE REDAZIONE PERIZIA DI VARIANTE LAVORI RIPRISTINO PERCORSO NATURALISTICO FONTANTE BIANCHE;28/01/2022;7749;0;169;2;Spese in conto capitale;2;Investimenti fissi lordi e acquisto di terreni;1;Beni materiali;9;Beni immobili;14;Opere per la sistemazione del suolo;01/02/2022
180;1;9999999;9.211,35;9.211,35;COMARELLA S.R.L.;8217972507;SALDO Fatt.n. 143.22  del 20/01/2022 LAVORI RIPRISTINO DEL PERCORSO NATURALISTICO DELLE FONTANE BIANCHE;31/01/2022;7749;0;539;2;Spese in conto capitale;2;Investimenti fissi lordi e acquisto di terreni;1;Beni materiali;9;Beni immobili;12;Infrastrutture stradali;02/02/2022
181;1;9999999;-5.161,20;5.161,20;COSTRUZIONI VANZIN S.R.L.;Z60349D560;SALDO Fatt.n. 2  del 27/01/2022 STORNO FATTURA N. 1 DEL 25.01.2022;31/01/2022;7749;0;597;2;Spese in conto capitale;2;Investimenti fissi lordi e acquisto di terreni;1;Beni materiali;9;Beni immobili;14;Opere per la sistemazione del suolo;02/02/2022
181;2;9999999;5.161,20;5.161,20;COSTRUZIONI VANZIN S.R.L.;Z60349D560;SALDO Fatt.n. 1  del 25/01/2022 LAVORI RIPRISTINO PERCORSO NATURALISTICO FONTANE BIANCHE;31/01/2022;7749;0;597;2;Spese in conto capitale;2;Investimenti fissi lordi e acquisto di terreni;1;Beni materiali;9;Beni immobili;14;Opere per la sistemazione del suolo;02/02/2022
181;3;9999999;5.161,20;5.161,20;COSTRUZIONI VANZIN S.R.L.;Z60349D560;SALDO Fatt.n. 3  del 27/01/2022 LAVORI RIPRISTINO PERCORSO NATURALISTICO FONTANE BIANCHE;31/01/2022;7749;0;597;2;Spese in conto capitale;2;Investimenti fissi lordi e acquisto di terreni;1;Beni materiali;9;Beni immobili;14;Opere per la sistemazione del suolo;02/02/2022
182;1;9999999;28;28;MAGGIOLI SPA;Z2B348537E;"SALDO Fatt.n. 0005960295  del 28/12/2021 FORNITURA LIBRO ""LA DISCIPLINA DEGLI AIUTI DI STATO AD USO DELLE AMMINISTRAZIONI LOCALI""";31/01/2022;340;1;558;1;Spese correnti;3;Acquisto di beni e servizi;1;Acquisto di beni;2;Altri beni di consumo;999;Altri beni e materiali di consumo n.a.c.;02/02/2022
183;1;9999999;308,55;308,55;CL.AN DI MUNDICI SRL;Z1430F2E95;SALDO Fatt.n. 91193  del 31/12/2021 FORNITURA LIBRI PER BIBLIOTECA;31/01/2022;3100;0;124;1;Spese correnti;3;Acquisto di beni e servizi;1;Acquisto di beni;1;Giornali, riviste e pubblicazioni;2;Pubblicazioni;02/02/2022
184;1;9999999;2.612,82;2.612,82;CENTRO SERVIZI ASSOCIATI - COOPERATIVA SOCIALE ONLUS;6995449B20;SALDO Fatt.n. 5/E  del 13/01/2022 SERVIZIO ASSISTENZA DOMICILIARE DICEMBRE 2021;31/01/2022;5750;0;366;1;Spese correnti;3;Acquisto di beni e servizi;2;Acquisto di servizi;99;Altri servizi;999;Altri servizi diversi n.a.c.;02/02/2022
185;1;9999999;863,6;863,6;LIBRERIA LA PIEVE SRL; ;SALDO Fatt.n. 3/PA  del 16/01/2022 FORNITURA LIBRI DI TESTO ALUNNI RESIDENTI A SERNAGLIA A.S. 2021/2022;31/01/2022;2360;0;483;1;Spese correnti;3;Acquisto di beni e servizi;1;Acquisto di beni;1;Giornali, riviste e pubblicazioni;2;Pubblicazioni;02/02/2022
186;1;9999999;7.500,00;7.500,00;ENAIP VENETO IMPRESA SOCIALE;Z80347E8FB;"SALDO Fatt.n. 1/22  del 14/01/2022 REALIZZAZIONE CORSO ""LABORATORIO ADDETTO BANCO BAR"" (DGR198/2020)";31/01/2022;3340;2;556;1;Spese correnti;3;Acquisto di beni e servizi;2;Acquisto di servizi;99;Altri servizi;999;Altri servizi diversi n.a.c.;02/02/2022
187;1;9999999;1.763,96;1.763,96;ISTITUTI POLESANI SRL; ;ACCONTO Fatt.n. 883/E  del 31/12/2021 RETTA RICOVERO L.P. DICEMBRE 2021;31/01/2022;5610;2;297;1;Spese correnti;3;Acquisto di beni e servizi;2;Acquisto di servizi;99;Altri servizi;999;Altri servizi diversi n.a.c.;02/02/2022
188;1;9999999;10;10;ISTITUTI POLESANI SRL; ;SALDO Fatt.n. 883/E  del 31/12/2021 RETTA RICOVERO L.P. DICEMBRE 2021;31/01/2022;5610;2;26;1;Spese correnti;3;Acquisto di beni e servizi;2;Acquisto di servizi;99;Altri servizi;999;Altri servizi diversi n.a.c.;02/02/2022
189;1;9999999;139,86;139,86;COOPERATIVA ITACA SOC.COOP.SOC.ONLUS;ZA9332E85B;SALDO Fatt.n. 3478/PA  del 31/12/2021 SERVIZIO EDUCATIVO DOMICILIARE MINORE DICEMBRE 2021;31/01/2022;5025;0;360;1;Spese correnti;3;Acquisto di beni e servizi;2;Acquisto di servizi;99;Altri servizi;999;Altri servizi diversi n.a.c.;02/02/2022
190;1;9999999;2.577,81;2.577,81;EURORISTORAZIONE SRL;88454990B2;ACCONTO Fatt.n. 21CPA06689  del 31/12/2021 FORNITURA PASTI CALDI A DOMICILIO DICEMBRE 2021;31/01/2022;5745;0;368;1;Spese correnti;3;Acquisto di beni e servizi;2;Acquisto di servizi;14;Servizi di ristorazione;999;Altri servizi di ristorazione;02/02/2022
191;1;9999999;52,38;52,38;EURORISTORAZIONE SRL;88454990B2;SALDO Fatt.n. 21CPA06689  del 31/12/2021 FORNITURA PASTI CALDI A DOMICILIO DICEMBRE 2021;31/01/2022;5745;0;368;1;Spese correnti;3;Acquisto di beni e servizi;2;Acquisto di servizi;14;Servizi di ristorazione;999;Altri servizi di ristorazione;02/02/2022
192;1;9999999;1.116,11;1.116,11;EURORISTORAZIONE SRL;887133593A;SALDO Fatt.n. 21CPA06507  del 31/12/2021 FORNITURA PASTI INSEGNANTI DICEMBRE 2021;31/01/2022;2740;0;369;1;Spese correnti;3;Acquisto di beni e servizi;2;Acquisto di servizi;14;Servizi di ristorazione;999;Altri servizi di ristorazione;02/02/2022
193;1;9999999;209,84;209,84;GRAFICHE E. GASPARI S.R.L.;Z89340FCC2;SALDO Fatt.n. 16407/S  del 15/12/2021 FORNITURA BLOCCHETTI BUONI SPESA;31/01/2022;365;1;471;1;Spese correnti;3;Acquisto di beni e servizi;1;Acquisto di beni;2;Altri beni di consumo;999;Altri beni e materiali di consumo n.a.c.;02/02/2022
197;1;9999999;352,59;352,59;MINISTERO INTERNO - TESORERIA DI ROMA; ;COMUNE DI SERNAGLIA DELLA BATTAGLIA CORRISPETTIVO RILASCIO N. 21 C.I.E. PERIODO 01.01.2022 - 15.01.2022;07/02/2022;432;0;13;1;Spese correnti;4;Trasferimenti correnti;1;Trasferimenti correnti a Amministrazioni Pubbliche;1;Trasferimenti correnti a Amministrazioni Centrali;1;Trasferimenti correnti a Ministeri;10/02/2022
198;1;9999999;345;9.405,00;CAMILLI STEFANO - MACELLERIA; ;RIMBORSO BUONI SPESA - 2021 - INTERVENTO SOLIDARIETA ALIMENTARE EMERGENZA SANITARIA COVID-19;07/02/2022;5440;0;614;1;Spese correnti;4;Trasferimenti correnti;2;Trasferimenti correnti a Famiglie;2;Interventi assistenziali;999;Altri assegni e sussidi assistenziali;10/02/2022
198;2;9999999;175;9.405,00;FARMACIA LA PIAVE S.N.C. DEI DOTTORI ZONTA E MERCANZIN; ;RIMBORSO BUONI SPESA - 2021 - INTERVENTO SOLIDARIETA ALIMENTARE EMERGENZA SANITARIA COVID-19;07/02/2022;5440;0;614;1;Spese correnti;4;Trasferimenti correnti;2;Trasferimenti correnti a Famiglie;2;Interventi assistenziali;999;Altri assegni e sussidi assistenziali;10/02/2022
198;3;9999999;375;9.405,00;L'ORTO DI NOVI DI PILLONETTO NOVELLA; ;RIMBORSO BUONI SPESA - 2021 - INTERVENTO SOLIDARIETA ALIMENTARE EMERGENZA SANITARIA COVID-19;07/02/2022;5440;0;614;1;Spese correnti;4;Trasferimenti correnti;2;Trasferimenti correnti a Famiglie;2;Interventi assistenziali;999;Altri assegni e sussidi assistenziali;10/02/2022
198;4;9999999;25;9.405,00;LA LATTERIA DI LORENZON ANTONELLA; ;RIMBORSO BUONI SPESA - 2021 - INTERVENTO SOLIDARIETA ALIMENTARE EMERGENZA SANITARIA COVID-19;07/02/2022;5440;0;614;1;Spese correnti;4;Trasferimenti correnti;2;Trasferimenti correnti a Famiglie;2;Interventi assistenziali;999;Altri assegni e sussidi assistenziali;10/02/2022
198;5;9999999;135;9.405,00;PESCHERIA EUREKA DI FAVERO GAETANO; ;RIMBORSO BUONI SPESA - 2021 - INTERVENTO SOLIDARIETA ALIMENTARE EMERGENZA SANITARIA COVID-19;07/02/2022;5440;0;614;1;Spese correnti;4;Trasferimenti correnti;2;Trasferimenti correnti a Famiglie;2;Interventi assistenziali;999;Altri assegni e sussidi assistenziali;10/02/2022
198;6;9999999;140;9.405,00;ROMEO S.N.C. DI ROSSETTO ROMEO & C.; ;RIMBORSO BUONI SPESA - 2021 - INTERVENTO SOLIDARIETA ALIMENTARE EMERGENZA SANITARIA COVID-19;07/02/2022;5440;0;614;1;Spese correnti;4;Trasferimenti correnti;2;Trasferimenti correnti a Famiglie;2;Interventi assistenziali;999;Altri assegni e sussidi assistenziali;10/02/2022
198;7;9999999;425;9.405,00;SPIRONELLI FERDINANDO; ;RIMBORSO BUONI SPESA - 2021 - INTERVENTO SOLIDARIETA ALIMENTARE EMERGENZA SANITARIA COVID-19;07/02/2022;5440;0;614;1;Spese correnti;4;Trasferimenti correnti;2;Trasferimenti correnti a Famiglie;2;Interventi assistenziali;999;Altri assegni e sussidi assistenziali;10/02/2022
198;8;9999999;6.385,00;9.405,00;SUPERMECATI SALAMON S.A.S. DI SALAMOM IVAN & C.; ;RIMBORSO BUONI SPESA - 2021 - INTERVENTO SOLIDARIETA ALIMENTARE EMERGENZA SANITARIA COVID-19;07/02/2022;5440;0;614;1;Spese correnti;4;Trasferimenti correnti;2;Trasferimenti correnti a Famiglie;2;Interventi assistenziali;999;Altri assegni e sussidi assistenziali;10/02/2022
198;9;9999999;545;9.405,00;TOSETTO DOTT. GIUSEPPE; ;RIMBORSO BUONI SPESA - 2021 - INTERVENTO SOLIDARIETA ALIMENTARE EMERGENZA SANITARIA COVID-19;07/02/2022;5440;0;614;1;Spese correnti;4;Trasferimenti correnti;2;Trasferimenti correnti a Famiglie;2;Interventi assistenziali;999;Altri assegni e sussidi assistenziali;10/02/2022
198;10;9999999;855;9.405,00;VILLANOVA SANDRO - STAZIONE DI SERVIZIO; ;RIMBORSO BUONI SPESA - 2021 - INTERVENTO SOLIDARIETA ALIMENTARE EMERGENZA SANITARIA COVID-19;07/02/2022;5440;0;614;1;Spese correnti;4;Trasferimenti correnti;2;Trasferimenti correnti a Famiglie;2;Interventi assistenziali;999;Altri assegni e sussidi assistenziali;10/02/2022
199;1;9999999;1.000,00;4.927,33;BORSOI FEDERICA; ;LIQUIDAZIONE CONTRIBUTO ANNO 2021 - ACQUISTO PRIMA CASA;07/02/2022;3570;0;577;1;Spese correnti;4;Trasferimenti correnti;2;Trasferimenti correnti a Famiglie;2;Interventi assistenziali;999;Altri assegni e sussidi assistenziali;10/02/2022
199;2;9999999;927,33;4.927,33;BORTOLINI SUSANNA; ;LIQUIDAZIONE CONTRIBUTO ANNO 2021 - ACQUISTO PRIMA CASA;07/02/2022;3570;0;577;1;Spese correnti;4;Trasferimenti correnti;2;Trasferimenti correnti a Famiglie;2;Interventi assistenziali;999;Altri assegni e sussidi assistenziali;10/02/2022
199;3;9999999;1.000,00;4.927,33;DAL COL MICHELE; ;LIQUIDAZIONE CONTRIBUTO ANNO 2021 - ACQUISTO PRIMA CASA;07/02/2022;3570;0;577;1;Spese correnti;4;Trasferimenti correnti;2;Trasferimenti correnti a Famiglie;2;Interventi assistenziali;999;Altri assegni e sussidi assistenziali;10/02/2022
199;4;9999999;1.000,00;4.927,33;DE CONTO CRISTINA; ;LIQUIDAZIONE CONTRIBUTO ANNO 2021 - ACQUISTO PRIMA CASA;07/02/2022;3570;0;577;1;Spese correnti;4;Trasferimenti correnti;2;Trasferimenti correnti a Famiglie;2;Interventi assistenziali;999;Altri assegni e sussidi assistenziali;10/02/2022
199;5;9999999;1.000,00;4.927,33;RONFINI SIMONE; ;LIQUIDAZIONE CONTRIBUTO ANNO 2021 - ACQUISTO PRIMA CASA;07/02/2022;3570;0;577;1;Spese correnti;4;Trasferimenti correnti;2;Trasferimenti correnti a Famiglie;2;Interventi assistenziali;999;Altri assegni e sussidi assistenziali;10/02/2022
210;1;9999999;1.000,00;1.000,00;ASSOCIAZIONE FESTEGGIAMENTI VILLANOVA; ;LIQUIDAZIONE CONTRIBUTO;07/02/2022;6250;0;529;1;Spese correnti;4;Trasferimenti correnti;4;Trasferimenti correnti a Istituzioni Sociali Private;1;Trasferimenti correnti a Istituzioni Sociali Private;1;Trasferimenti correnti a Istituzioni Sociali Private;10/02/2022
211;1;9999999;450;450;ASSOC. A.I.D.O. ONLUS FALZE' DI PIAVE; ;LIQUIDAZIONE CONTRIBUTO;07/02/2022;3330;0;531;1;Spese correnti;4;Trasferimenti correnti;4;Trasferimenti correnti a Istituzioni Sociali Private;1;Trasferimenti correnti a Istituzioni Sociali Private;1;Trasferimenti correnti a Istituzioni Sociali Private;10/02/2022
212;1;9999999;8,87;80,41;ALTO TREVIGIANO SERVIZI S.R.L.; ;SALDO Fatt.n. 62202100009256  del 13/12/2021 FORNITURA ACQUA PERIODO 01.09.2021-30.11.2021 - MAGAZZINO;07/02/2022;355;3;231;1;Spese correnti;3;Acquisto di beni e servizi;2;Acquisto di servizi;5;Utenze e canoni;5;Acqua;10/02/2022
212;2;9999999;27,15;80,41;ALTO TREVIGIANO SERVIZI S.R.L.; ;SALDO Fatt.n. 62202100009254  del 13/12/2021 FORNITURA ACQUA PERIODO 01.09.2021-30.11.2021 - MUNICIPIO PARTE STORICA;07/02/2022;355;3;231;1;Spese correnti;3;Acquisto di beni e servizi;2;Acquisto di servizi;5;Utenze e canoni;5;Acqua;10/02/2022
212;3;9999999;44,39;80,41;ALTO TREVIGIANO SERVIZI S.R.L.; ;SALDO Fatt.n. 62202100009255  del 13/12/2021 FORNITURA ACQUA PERIODO 01.09.2021-30.11.2021 - MUNICIPIO PARTE NUOVA;07/02/2022;355;3;231;1;Spese correnti;3;Acquisto di beni e servizi;2;Acquisto di servizi;5;Utenze e canoni;5;Acqua;10/02/2022
213;1;9999999;85,33;185,33;ALTO TREVIGIANO SERVIZI S.R.L.; ;SALDO Fatt.n. 62202100009251  del 13/12/2021 FORNITURA ACQUA PERIODO 01.09.2021-30.11.2021 - SCUOLA ELEMENTARE FALZE';07/02/2022;2355;1;232;1;Spese correnti;3;Acquisto di beni e servizi;2;Acquisto di servizi;5;Utenze e canoni;5;Acqua;10/02/2022
213;2;9999999;100;185,33;ALTO TREVIGIANO SERVIZI S.R.L.; ;ACCONTO Fatt.n. 62202100009253  del 13/12/2021 FORNITURA ACQUA PERIODO 01.09.2021-30.11.2021 - SCUOLE SERNAGLIA;07/02/2022;2355;1;232;1;Spese correnti;3;Acquisto di beni e servizi;2;Acquisto di servizi;5;Utenze e canoni;5;Acqua;10/02/2022
214;1;9999999;76,86;76,86;ALTO TREVIGIANO SERVIZI S.R.L.; ;SALDO Fatt.n. 62202100009253  del 13/12/2021 FORNITURA ACQUA PERIODO 01.09.2021-30.11.2021 - SCUOLE SERNAGLIA;07/02/2022;2510;1;233;1;Spese correnti;3;Acquisto di beni e servizi;2;Acquisto di servizi;5;Utenze e canoni;5;Acqua;10/02/2022
215;1;9999999;39,24;854,71;ALTO TREVIGIANO SERVIZI S.R.L.; ;ACCONTO Fatt.n. 62202100009252  del 13/12/2021 FORNITURA ACQUA PERIODO 31.08.2021-30.11.2021 - PALESTRA FALZE';07/02/2022;2935;1;234;1;Spese correnti;3;Acquisto di beni e servizi;2;Acquisto di servizi;5;Utenze e canoni;5;Acqua;10/02/2022
215;2;9999999;41,33;854,71;ALTO TREVIGIANO SERVIZI S.R.L.; ;ACCONTO Fatt.n. 62202100009249  del 13/12/2021 FORNITURA ACQUA PERIODO 31.08.2021-30.11.2021 - PALESTRA SERNAGLIA;07/02/2022;2935;1;234;1;Spese correnti;3;Acquisto di beni e servizi;2;Acquisto di servizi;5;Utenze e canoni;5;Acqua;10/02/2022
215;3;9999999;52,61;854,71;ALTO TREVIGIANO SERVIZI S.R.L.; ;SALDO Fatt.n. 62202100009249  del 13/12/2021 FORNITURA ACQUA PERIODO 31.08.2021-30.11.2021 - PALESTRA SERNAGLIA;07/02/2022;2935;1;234;1;Spese correnti;3;Acquisto di beni e servizi;2;Acquisto di servizi;5;Utenze e canoni;5;Acqua;10/02/2022
215;4;9999999;69,77;854,71;ALTO TREVIGIANO SERVIZI S.R.L.; ;SALDO Fatt.n. 62202100009252  del 13/12/2021 FORNITURA ACQUA PERIODO 31.08.2021-30.11.2021 - PALESTRA FALZE';07/02/2022;2935;1;234;1;Spese correnti;3;Acquisto di beni e servizi;2;Acquisto di servizi;5;Utenze e canoni;5;Acqua;10/02/2022
215;5;9999999;107,92;854,71;ALTO TREVIGIANO SERVIZI S.R.L.; ;SALDO Fatt.n. 62202100009262  del 13/12/2021 FORNITURA ACQUA PERIODO 01.09.2021-30.11.2021 - PALESTRA FONTIGO;07/02/2022;2935;1;234;1;Spese correnti;3;Acquisto di beni e servizi;2;Acquisto di servizi;5;Utenze e canoni;5;Acqua;10/02/2022
215;6;9999999;543,84;854,71;ALTO TREVIGIANO SERVIZI S.R.L.; ;ACCONTO Fatt.n. 62202100007359  del 24/09/2021 FORNITURA ACQUA PERIODO 08.08.2020-30.08.2021 - PALESTRA FONTIGO;07/02/2022;2935;1;234;1;Spese correnti;3;Acquisto di beni e servizi;2;Acquisto di servizi;5;Utenze e canoni;5;Acqua;10/02/2022
216;1;9999999;169,04;169,04;ALTO TREVIGIANO SERVIZI S.R.L.; ;SALDO Fatt.n. 62202100007359  del 24/09/2021 FORNITURA ACQUA PERIODO 08.08.2020-30.08.2021 - PALESTRA FONTIGO;07/02/2022;2935;1;234;1;Spese correnti;3;Acquisto di beni e servizi;2;Acquisto di servizi;5;Utenze e canoni;5;Acqua;10/02/2022
217;1;9999999;6,71;80,43;ALTO TREVIGIANO SERVIZI S.R.L.; ;SALDO Fatt.n. 62202100009250  del 13/12/2021 FORNITURA ACQUA PERIODO 01.09.2021-30.11.2021 - CIMITERO FONTIGO;07/02/2022;4140;1;235;1;Spese correnti;3;Acquisto di beni e servizi;2;Acquisto di servizi;5;Utenze e canoni;5;Acqua;10/02/2022
217;2;9999999;35,79;80,43;ALTO TREVIGIANO SERVIZI S.R.L.; ;SALDO Fatt.n. 62202100009259  del 13/12/2021 FORNITURA ACQUA PERIODO 01.09.2021-30.11.2021 - CIMITERO FALZE';07/02/2022;4140;1;235;1;Spese correnti;3;Acquisto di beni e servizi;2;Acquisto di servizi;5;Utenze e canoni;5;Acqua;10/02/2022
217;3;9999999;37,93;80,43;ALTO TREVIGIANO SERVIZI S.R.L.; ;SALDO Fatt.n. 62202100009258  del 13/12/2021 FORNITURA ACQUA PERIODO 01.09.2021-30.11.2021 - CIMITERO SERNAGLIA;07/02/2022;4140;1;235;1;Spese correnti;3;Acquisto di beni e servizi;2;Acquisto di servizi;5;Utenze e canoni;5;Acqua;10/02/2022
218;1;9999999;1,39;264,65;ALTO TREVIGIANO SERVIZI S.R.L.; ;SALDO Fatt.n. 62202100009248  del 13/12/2021 FORNITURA ACQUA PERIODO 01.09.2021-30.11.2021 - IMPIANTI SPORTIVI FONTIGO;07/02/2022;5295;2;236;1;Spese correnti;3;Acquisto di beni e servizi;2;Acquisto di servizi;5;Utenze e canoni;5;Acqua;10/02/2022
218;2;9999999;87,47;264,65;ALTO TREVIGIANO SERVIZI S.R.L.; ;SALDO Fatt.n. 62202100009261  del 13/12/2021 FORNITURA ACQUA PERIODO 01.09.2021-30.11.2021 - IMPIANTI SPORTIVI FALZE';07/02/2022;5295;2;236;1;Spese correnti;3;Acquisto di beni e servizi;2;Acquisto di servizi;5;Utenze e canoni;5;Acqua;10/02/2022
218;3;9999999;175,79;264,65;ALTO TREVIGIANO SERVIZI S.R.L.; ;SALDO Fatt.n. 62202100009260  del 13/12/2021 FORNITURA ACQUA PERIODO 01.09.2021-30.11.2021 - IMPIANTI SPORTIVI SERNAGLIA;07/02/2022;5295;2;236;1;Spese correnti;3;Acquisto di beni e servizi;2;Acquisto di servizi;5;Utenze e canoni;5;Acqua;10/02/2022
219;1;9999999;0,41;1.088,93;ALTO TREVIGIANO SERVIZI S.R.L.; ;SALDO Fatt.n. 62202100009271  del 13/12/2021 FORNITURA ACQUA PERIODO 01.09.2021-30.11.2021 - VIALE DELLA RIMEMBRANZA 1/SNC;07/02/2022;5910;5;237;1;Spese correnti;3;Acquisto di beni e servizi;2;Acquisto di servizi;5;Utenze e canoni;5;Acqua;10/02/2022
219;2;9999999;0,81;1.088,93;ALTO TREVIGIANO SERVIZI S.R.L.; ;SALDO Fatt.n. 62202100009265  del 13/12/2021 FORNITURA ACQUA PERIODO 01.09.2021-30.11.2021 - CENTRO ANZIANI FALZE';07/02/2022;5910;5;237;1;Spese correnti;3;Acquisto di beni e servizi;2;Acquisto di servizi;5;Utenze e canoni;5;Acqua;10/02/2022
219;3;9999999;1,59;1.088,93;ALTO TREVIGIANO SERVIZI S.R.L.; ;SALDO Fatt.n. 62202100009277  del 13/12/2021 FORNITURA ACQUA PERIODO 01.09.2021-30.11.2021 - PIAZZA SAN ROCCO 1/SNC;07/02/2022;5910;5;237;1;Spese correnti;3;Acquisto di beni e servizi;2;Acquisto di servizi;5;Utenze e canoni;5;Acqua;10/02/2022
219;4;9999999;8,44;1.088,93;ALTO TREVIGIANO SERVIZI S.R.L.; ;SALDO Fatt.n. 62202100009270  del 13/12/2021 FORNITURA ACQUA PERIODO 01.09.2021-30.11.2021 - VIA G. MARCONI 1/SNC;07/02/2022;5910;5;237;1;Spese correnti;3;Acquisto di beni e servizi;2;Acquisto di servizi;5;Utenze e canoni;5;Acqua;10/02/2022
219;5;9999999;8,71;1.088,93;ALTO TREVIGIANO SERVIZI S.R.L.; ;SALDO Fatt.n. 62202100009276  del 13/12/2021 FORNITURA ACQUA PERIODO 01.09.2021-30.11.2021 - PIAZZA MARTIRI DELLA LIBERTA' 1/SNC;07/02/2022;5910;5;237;1;Spese correnti;3;Acquisto di beni e servizi;2;Acquisto di servizi;5;Utenze e canoni;5;Acqua;10/02/2022
219;6;9999999;8,72;1.088,93;ALTO TREVIGIANO SERVIZI S.R.L.; ;SALDO Fatt.n. 62202100009269  del 13/12/2021 FORNITURA ACQUA PERIODO 01.09.2021-30.11.2021 - VIA CASTELLO 1/SNC;07/02/2022;5910;5;237;1;Spese correnti;3;Acquisto di beni e servizi;2;Acquisto di servizi;5;Utenze e canoni;5;Acqua;10/02/2022
219;7;9999999;8,87;1.088,93;ALTO TREVIGIANO SERVIZI S.R.L.; ;SALDO Fatt.n. 62202100009268  del 13/12/2021 FORNITURA ACQUA PERIODO 01.09.2021-30.11.2021 - BAGNO VIA GRAVE;07/02/2022;5910;5;237;1;Spese correnti;3;Acquisto di beni e servizi;2;Acquisto di servizi;5;Utenze e canoni;5;Acqua;10/02/2022
219;8;9999999;9,06;1.088,93;ALTO TREVIGIANO SERVIZI S.R.L.; ;SALDO Fatt.n. 62202100009264  del 13/12/2021 FORNITURA ACQUA PERIODO 01.09.2021-30.11.2021 - PRO LOCO;07/02/2022;5910;5;237;1;Spese correnti;3;Acquisto di beni e servizi;2;Acquisto di servizi;5;Utenze e canoni;5;Acqua;10/02/2022
219;9;9999999;9,69;1.088,93;ALTO TREVIGIANO SERVIZI S.R.L.; ;SALDO Fatt.n. 62202100009272  del 13/12/2021 FORNITURA ACQUA PERIODO 01.09.2021-30.11.2021 - VIA GRAVE 1/SNC;07/02/2022;5910;5;237;1;Spese correnti;3;Acquisto di beni e servizi;2;Acquisto di servizi;5;Utenze e canoni;5;Acqua;10/02/2022
219;10;9999999;9,91;1.088,93;ALTO TREVIGIANO SERVIZI S.R.L.; ;SALDO Fatt.n. 62202100009257  del 13/12/2021 FORNITURA ACQUA PERIODO 01.09.2021-30.11.2021 - CARD;07/02/2022;5910;5;237;1;Spese correnti;3;Acquisto di beni e servizi;2;Acquisto di servizi;5;Utenze e canoni;5;Acqua;10/02/2022
219;11;9999999;17,48;1.088,93;ALTO TREVIGIANO SERVIZI S.R.L.; ;SALDO Fatt.n. 62202100009274  del 13/12/2021 FORNITURA ACQUA PERIODO 01.09.2021-30.11.2021 - PIAZZA MARTIRI DELLA LIBERTA' 1/SNC;07/02/2022;5910;5;237;1;Spese correnti;3;Acquisto di beni e servizi;2;Acquisto di servizi;5;Utenze e canoni;5;Acqua;10/02/2022
219;12;9999999;17,48;1.088,93;ALTO TREVIGIANO SERVIZI S.R.L.; ;SALDO Fatt.n. 62202100009275  del 13/12/2021  FORNITURA ACQUA PERIODO 01.09.2021-30.11.2021 - PIAZZA MARTIRI DELLA LIBERTA' 1/SNC;07/02/2022;5910;5;237;1;Spese correnti;3;Acquisto di beni e servizi;2;Acquisto di servizi;5;Utenze e canoni;5;Acqua;10/02/2022
219;13;9999999;22,85;1.088,93;ALTO TREVIGIANO SERVIZI S.R.L.; ;SALDO Fatt.n. 62202100009273  del 13/12/2021 FORNITURA ACQUA PERIODO 01.09.2021-30.11.2021 - PIAZZA MARTIRI DELLA LIBERTA' 1/SNC;07/02/2022;5910;5;237;1;Spese correnti;3;Acquisto di beni e servizi;2;Acquisto di servizi;5;Utenze e canoni;5;Acqua;10/02/2022
219;14;9999999;51,14;1.088,93;ALTO TREVIGIANO SERVIZI S.R.L.; ;SALDO Fatt.n. 62202100009267  del 13/12/2021 FORNITURA ACQUA PERIODO 01.09.2021-30.11.2021 - BAGNO LOC. MUSIL;07/02/2022;5910;5;237;1;Spese correnti;3;Acquisto di beni e servizi;2;Acquisto di servizi;5;Utenze e canoni;5;Acqua;10/02/2022
219;15;9999999;54,08;1.088,93;ALTO TREVIGIANO SERVIZI S.R.L.; ;SALDO Fatt.n. 62202100009266  del 13/12/2021 FORNITURA ACQUA PERIODO 01.09.2021-30.11.2021 - CASETTA ACQUA;07/02/2022;5910;5;237;1;Spese correnti;3;Acquisto di beni e servizi;2;Acquisto di servizi;5;Utenze e canoni;5;Acqua;10/02/2022
219;16;9999999;859,69;1.088,93;ALTO TREVIGIANO SERVIZI S.R.L.; ;SALDO Fatt.n. 62202100009263  del 13/12/2021 FORNITURA ACQUA PERIODO 01.09.2021-30.11.2021 - IDRANTI;07/02/2022;5910;5;237;1;Spese correnti;3;Acquisto di beni e servizi;2;Acquisto di servizi;5;Utenze e canoni;5;Acqua;10/02/2022
220;1;9999999;1.122,40;1.122,40;CENTRO STUDI AMMINISTRATIVI DELLA MARCA TREVIGIANA;ZA1309CFBB;SALDO Fatt.n. 1034/2021  del 13/12/2021 ESPLETAMENTO PRATICHE DI PENSIONE;07/02/2022;365;3;60;1;Spese correnti;3;Acquisto di beni e servizi;2;Acquisto di servizi;99;Altri servizi;999;Altri servizi diversi n.a.c.;10/02/2022
221;1;9999999;453,84;453,84;COPISTERIA SASSARO STENOTYPE TRANSCRIPTION MULTIMEDIA SRL;ZE92707497;SALDO Fatt.n. 22  del 20/01/2022 SERVIZIO TRASCRIZIONE SEDUTE CONSIGLIO COMUNALE AL 31.12.2021;07/02/2022;365;3;71;1;Spese correnti;3;Acquisto di beni e servizi;2;Acquisto di servizi;99;Altri servizi;999;Altri servizi diversi n.a.c.;10/02/2022
222;1;9999999;486;486;SALUMI DE STEFANI S.R.L.;Z3F334C9A1;SALDO Fatt.n. 1790/S  del 24/12/2021 FORNITURA PASTI DIPENDENTI COMUNALI DICEMBRE 2021;07/02/2022;6510;0;382;1;Spese correnti;3;Acquisto di beni e servizi;2;Acquisto di servizi;14;Servizi di ristorazione;999;Altri servizi di ristorazione;10/02/2022
223;1;9999999;7.232,16;7.232,16;ACCATRE STP SRL;ZEE2F48B5A;SALDO Fatt.n. 96/1  del 13/01/2022 AFFIDAMENTO SERVICE PAGHE - GESTIONE ECONOMICA DEL PERSONALE E PORTALE ANNO 2022;07/02/2022;365;3;542;1;Spese correnti;3;Acquisto di beni e servizi;2;Acquisto di servizi;99;Altri servizi;999;Altri servizi diversi n.a.c.;10/02/2022
224;1;9999999;6.710,00;6.710,00;ACCATRE SRL;Z3B3446105;SALDO Fatt.n. 1/220012  del 10/01/2022 PROGETTO DIGITALIZZAZIONE AVVIAMENTO ISTANZE ON LINE;07/02/2022;365;3;567;1;Spese correnti;3;Acquisto di beni e servizi;2;Acquisto di servizi;99;Altri servizi;999;Altri servizi diversi n.a.c.;10/02/2022
225;1;9999999;1.404,00;1.404,00;WOLTERS KLUWER ITALIA SRL;Z9A2B91095;SALDO Fatt.n. 0073823116  del 27/01/2022 RINNOVO ABBONAMENTO ANNO 2022 - LEGGI D'ITALIA;07/02/2022;420;0;19;1;Spese correnti;3;Acquisto di beni e servizi;1;Acquisto di beni;1;Giornali, riviste e pubblicazioni;2;Pubblicazioni;10/02/2022
226;1;9999999;255,36;255,36;KYOCERA DOCUMENT SOLUTIONS ITALIA S.P.A.;Z1A2BFDAC5;ACCONTO Fatt.n. 1010742449  del 31/01/2022 CANONE NOLEGGIO FOTOCOPIATRICE UFFICIO ANAGRAFRE E POLIZIA LOCALE PERIODO DAL 01.11.2021 AL 31.01.2022;07/02/2022;340;3;67;1;Spese correnti;3;Acquisto di beni e servizi;2;Acquisto di servizi;7;Utilizzo di beni di terzi;8;Noleggi di impianti e macchinari;10/02/2022
227;1;9999999;127,7;127,7;KYOCERA DOCUMENT SOLUTIONS ITALIA S.P.A.;Z1A2BFDAC5;SALDO Fatt.n. 1010742449  del 31/01/2022 CANONE NOLEGGIO FOTOCOPIATRICE UFFICIO ANAGRAFRE E POLIZIA LOCALE PERIODO DAL 01.11.2021 AL 31.01.2022;07/02/2022;340;3;67;1;Spese correnti;3;Acquisto di beni e servizi;2;Acquisto di servizi;7;Utilizzo di beni di terzi;8;Noleggi di impianti e macchinari;10/02/2022
228;1;9999999;703,96;1.437,56;DOLOMITI ENERGIA S.P.A.;ZA330DC41D;ACCONTO Fatt.n. 42200478565  del 28/01/2022 FORNITURA GAS IMPIANTI SPORTIVI SERNAGLIA DICEMBRE 2021;07/02/2022;5290;2;85;1;Spese correnti;3;Acquisto di beni e servizi;2;Acquisto di servizi;5;Utenze e canoni;6;Gas;10/02/2022
228;2;9999999;733,6;1.437,56;DOLOMITI ENERGIA S.P.A.;ZA330DC41D;SALDO Fatt.n. 42200478564  del 28/01/2022 FORNITURA GAS IMPIANTI SPORTIVI FONTIGO DICEMRE 2021;07/02/2022;5290;2;85;1;Spese correnti;3;Acquisto di beni e servizi;2;Acquisto di servizi;5;Utenze e canoni;6;Gas;10/02/2022
229;1;9999999;1.037,96;1.037,96;DOLOMITI ENERGIA S.P.A.;ZA330DC41D;SALDO Fatt.n. 42200478565  del 28/01/2022 FORNITURA GAS IMPIANTI SPORTIVI SERNAGLIA DICEMBRE 2021;07/02/2022;5290;2;85;1;Spese correnti;3;Acquisto di beni e servizi;2;Acquisto di servizi;5;Utenze e canoni;6;Gas;10/02/2022
230;1;9999999;1.254,57;6.475,95;A2A ENERGIA S.P.A.; ;ACCONTO Fatt.n. 822000006902  del 26/01/2022 FORNITURA ENERGIA ELETTRICA ILLUMINAZIONE PUBBLICA DICEMBRE 2021 POD IT001E00058548;07/02/2022;6000;0;95;1;Spese correnti;3;Acquisto di beni e servizi;2;Acquisto di servizi;5;Utenze e canoni;4;Energia elettrica;10/02/2022
230;2;9999999;2.177,85;6.475,95;A2A ENERGIA S.P.A.; ;SALDO Fatt.n. 822000006826  del 26/01/2022 FORNITURA ENERGIA ELETTRICA ILLUMINAZIONE PUBBLICA DICEMBRE 2021 POD IT001E00058577;07/02/2022;6000;0;95;1;Spese correnti;3;Acquisto di beni e servizi;2;Acquisto di servizi;5;Utenze e canoni;4;Energia elettrica;10/02/2022
230;3;9999999;3.043,53;6.475,95;A2A ENERGIA S.P.A.; ;SALDO Fatt.n. 822000005231  del 25/01/2022 FORNITURA ENERGIA ELETTRICA ILLUMINAZIONE PUBBLICA DICEMBRE 2021 POD IT001E00058556;07/02/2022;6000;0;95;1;Spese correnti;3;Acquisto di beni e servizi;2;Acquisto di servizi;5;Utenze e canoni;4;Energia elettrica;10/02/2022
231;1;9999999;547,99;1.833,30;A2A ENERGIA S.P.A.; ;SALDO Fatt.n. 822000028517  del 31/01/2022 FORNITURA ENERGIA ELETTRICA ILLUMINAZIONE PUBBLICA SETTEMBRE - OTTOBRE 2021 POD IT001E00058581;07/02/2022;6000;0;327;1;Spese correnti;3;Acquisto di beni e servizi;2;Acquisto di servizi;5;Utenze e canoni;4;Energia elettrica;10/02/2022
231;2;9999999;1.285,31;1.833,30;A2A ENERGIA S.P.A.; ;SALDO Fatt.n. 822000006902  del 26/01/2022 FORNITURA ENERGIA ELETTRICA ILLUMINAZIONE PUBBLICA DICEMBRE 2021 POD IT001E00058548;07/02/2022;6000;0;327;1;Spese correnti;3;Acquisto di beni e servizi;2;Acquisto di servizi;5;Utenze e canoni;4;Energia elettrica;10/02/2022
232;1;9999999;281,8;281,8;KYOCERA DOCUMENT SOLUTIONS ITALIA S.P.A.;Z0F2E69B21;ACCONTO Fatt.n. 1010742450  del 31/01/2022 CANONE NOLEGGIO FOTOCOPIATRICE UFFICI TECNICI PERIODO DAL 30.10.2021 AL 29.01.2022;07/02/2022;340;3;368;1;Spese correnti;3;Acquisto di beni e servizi;2;Acquisto di servizi;7;Utilizzo di beni di terzi;8;Noleggi di impianti e macchinari;10/02/2022
233;1;9999999;140,88;140,88;KYOCERA DOCUMENT SOLUTIONS ITALIA S.P.A.;Z0F2E69B21;SALDO Fatt.n. 1010742450  del 31/01/2022 CANONE NOLEGGIO FOTOCOPIATRICE UFFICI TECNICI PERIODO DAL 30.10.2021 AL 29.01.2022;07/02/2022;340;3;368;1;Spese correnti;3;Acquisto di beni e servizi;2;Acquisto di servizi;7;Utilizzo di beni di terzi;8;Noleggi di impianti e macchinari;10/02/2022
234;1;9999999;67,1;67,1;I TIGLI2 SOCIETA' COOPERATIVA SOCIALE - ONLUS;Z44309615D;SALDO Fatt.n. 2021/00610/PA  del 31/12/2021 SERVIZIO PULIZIA AMBULATORIO FONTIGO DICEMBRE 2021;07/02/2022;1085;1;83;1;Spese correnti;3;Acquisto di beni e servizi;2;Acquisto di servizi;13;Servizi ausiliari per il funzionamento dell'ente;2;Servizi di pulizia e lavanderia;10/02/2022
235;1;9999999;1.030,90;1.030,90;DEFOR ITALIANA S.N.C.;Z692C88064;SALDO Fatt.n. 000070/E  del 21/01/2022 SERVIZIO DERATIZZAZIONE;07/02/2022;3750;0;152;1;Spese correnti;3;Acquisto di beni e servizi;2;Acquisto di servizi;99;Altri servizi;999;Altri servizi diversi n.a.c.;10/02/2022
236;1;9999999;122;122;I TIGLI2 SOCIETA' COOPERATIVA SOCIALE - ONLUS;Z9831CB0FA;SALDO Fatt.n. 2021/00604/PA  del 31/12/2021 SERVIZIO PULIZIA SALA CONSILIARE IN OCCASIONE DI EVENTI CULTURALI DICEMBRE 2021;07/02/2022;2171;2;183;1;Spese correnti;3;Acquisto di beni e servizi;2;Acquisto di servizi;13;Servizi ausiliari per il funzionamento dell'ente;2;Servizi di pulizia e lavanderia;10/02/2022
237;1;9999999;781,7;781,7;ZANNONI SCAVI S.R.L.;Z21328E8F4;SALDO Fatt.n. 7  del 31/01/2022 FORNITURA GHIAIA ROSSA;07/02/2022;4140;0;287;1;Spese correnti;3;Acquisto di beni e servizi;1;Acquisto di beni;2;Altri beni di consumo;999;Altri beni e materiali di consumo n.a.c.;10/02/2022
238;1;9999999;556,8;556,8;MEDI. LAV. SRL;ZA92D84E63;SALDO Fatt.n. FPA 41/21  del 31/12/2021 SERVIZIO VISITE MEDICHE D.LGS 81/08;07/02/2022;370;1;310;1;Spese correnti;3;Acquisto di beni e servizi;2;Acquisto di servizi;11;Prestazioni professionali e specialistiche;999;Altre prestazioni professionali e specialistiche n.a.c.;10/02/2022
239;1;9999999;472,14;472,14;I TIGLI2 SOCIETA' COOPERATIVA SOCIALE - ONLUS;Z9232E71CB;SALDO Fatt.n. 2021/00581/PA  del 31/12/2021 SERVIZIO PULIZIA PREFABBRICATO E CENTRI ANZIANI DICEMBRE 2021;07/02/2022;5765;4;322;1;Spese correnti;3;Acquisto di beni e servizi;2;Acquisto di servizi;13;Servizi ausiliari per il funzionamento dell'ente;2;Servizi di pulizia e lavanderia;10/02/2022
240;1;9999999;6.658,55;6.658,55;EM. GI. IMPIANTI ELETTRICI DI MARSURA GIUSEPPE;ZA13321170;SALDO Fatt.n. 1PA  del 10/01/2022 LAVORI SOSTITUZIONE IMPIANTO ALLARME SEDE MUNICIPALE;07/02/2022;6680;0;343;2;Spese in conto capitale;2;Investimenti fissi lordi e acquisto di terreni;1;Beni materiali;9;Beni immobili;999;Beni immobili n.a.c.;10/02/2022
241;1;9999999;1.903,20;1.903,20;DE ZOLT SAPPADINA CESARE;Z223334469;SALDO Fatt.n. 5  del 04/01/2022 COMPETENZE SERVIZIO SUPPORTO AL RESPONSABILE UNICO DEL PROCEDIMENTO PROCEDURE APPALTO LAVORI RECUPERO AMBITO URBANO MESSA IN SICUREZZA CON REGIMAZIONE IDRAULICA E ABBATTIMENTO BARRIERE ARCHITETTONICHE AREA VIALE RIMEMB;07/02/2022;640;0;353;1;Spese correnti;3;Acquisto di beni e servizi;2;Acquisto di servizi;11;Prestazioni professionali e specialistiche;999;Altre prestazioni professionali e specialistiche n.a.c.;10/02/2022
242;1;9999999;790,56;790,56;BUTANGAS S.P.A. - FILIALE TRIVENETO;Z6E331E160;SALDO Fatt.n. 85/231P  del 17/12/2021 FORNITURA BOMBOLE GPL;07/02/2022;4140;0;371;1;Spese correnti;3;Acquisto di beni e servizi;1;Acquisto di beni;2;Altri beni di consumo;999;Altri beni e materiali di consumo n.a.c.;10/02/2022
243;1;9999999;1.000,00;1.000,00;DCF IMPIANTI SRLS;ZED3347139;ACCONTO Fatt.n. 5  del 25/01/2022 FORNITURA ED INSTALLAZIONE APPARECCHIATURE ELETTRICHE VARIE;07/02/2022;6930;1;380;2;Spese in conto capitale;2;Investimenti fissi lordi e acquisto di terreni;1;Beni materiali;5;Attrezzature;999;Attrezzature n.a.c.;10/02/2022
244;1;9999999;3.117,95;3.117,95;DCF IMPIANTI SRLS;ZED3347139;SALDO Fatt.n. 5  del 25/01/2022 FORNITURA ED INSTALLAZIONE APPARECCHIATURE ELETTRICHE VARIE;07/02/2022;6995;0;381;2;Spese in conto capitale;2;Investimenti fissi lordi e acquisto di terreni;3;Beni immateriali;99;Spese di investimento per beni immateriali n.a.c.;1;Spese di investimento per beni immateriali n.a.c.;10/02/2022
245;1;9999999;2.928,00;2.928,00;SAVNO S.R.L.;ZAC336BE9D;SALDO Fatt.n. 50000007  del 17/01/2022 SERVIZIO RACCOLTA E SMALTIMENTO RIFIUTI AREA PIAVE A FALZE';07/02/2022;3750;0;396;1;Spese correnti;3;Acquisto di beni e servizi;2;Acquisto di servizi;99;Altri servizi;999;Altri servizi diversi n.a.c.;10/02/2022
246;1;9999999;387,96;387,96;SAVNO S.R.L.;Z3D33B760C;SALDO Fatt.n. 50000004  del 13/01/2022 SERVIZIO RACCOLTA E SMALTIMENTO MATERIALI CONTENENTI AMIANTO C/O CARD;07/02/2022;3750;0;431;1;Spese correnti;3;Acquisto di beni e servizi;2;Acquisto di servizi;99;Altri servizi;999;Altri servizi diversi n.a.c.;10/02/2022
247;1;9999999;610;610;KIMIA SRL;Z0333B80E3;SALDO Fatt.n. 968  del 31/12/2021 ANALISI EMISSIONE DIFFFUSE BIOGAS EX DISCARICA RSU;07/02/2022;7874;0;432;2;Spese in conto capitale;2;Investimenti fissi lordi e acquisto di terreni;1;Beni materiali;9;Beni immobili;14;Opere per la sistemazione del suolo;10/02/2022
248;1;9999999;42,91;42,91;MEB S.R.L.;Z1133DCEFB;SALDO Fatt.n. 067050  del 30/12/2021 FORNITURA MATERIALE ELETTRICO;07/02/2022;5910;1;451;1;Spese correnti;3;Acquisto di beni e servizi;1;Acquisto di beni;2;Altri beni di consumo;999;Altri beni e materiali di consumo n.a.c.;10/02/2022
249;1;9999999;605;605;MARCON F.LLI VIVAIO SS SOCIETA' AGRICOLA;Z5733F1F85;SALDO Fatt.n. 1/50  del 21/01/2022 FORNITURA ABETE ROSSO;07/02/2022;7764;0;474;2;Spese in conto capitale;2;Investimenti fissi lordi e acquisto di terreni;1;Beni materiali;9;Beni immobili;12;Infrastrutture stradali;10/02/2022
250;1;9999999;291,09;727,73;FANTI FERRAMENTA SNC DI VENDRAMIN VIRGINIO E C.;Z213480B2F;ACCONTO Fatt.n. 1/22/PA  del 28/01/2022 FORNITURA MATERIALE FERRAMENTA VARIA;07/02/2022;2920;0;560;1;Spese correnti;3;Acquisto di beni e servizi;1;Acquisto di beni;2;Altri beni di consumo;999;Altri beni e materiali di consumo n.a.c.;10/02/2022
250;2;9999999;436,64;727,73;FANTI FERRAMENTA SNC DI VENDRAMIN VIRGINIO E C.;Z213480B2F;SALDO Fatt.n. 1/22/PA  del 28/01/2022 FORNITURA MATERIALE FERRAMENTA VARIA;07/02/2022;2920;0;560;1;Spese correnti;3;Acquisto di beni e servizi;1;Acquisto di beni;2;Altri beni di consumo;999;Altri beni e materiali di consumo n.a.c.;10/02/2022
251;1;9999999;96,38;96,38;MEDICASL S.N.C. DI STEFFAN ALBERTO & LUCA;Z533488B60;SALDO Fatt.n. 51/2022  del 31/01/2022 FORNITURA KIT ELETTRODI PER DEFIBRILLATORE;07/02/2022;370;1;563;1;Spese correnti;3;Acquisto di beni e servizi;2;Acquisto di servizi;11;Prestazioni professionali e specialistiche;999;Altre prestazioni professionali e specialistiche n.a.c.;10/02/2022
252;1;9999999;215,4;215,4;IGEAM CONSULTING S.R.L.;Z8F2FF4E5B;ACCONTO Fatt.n. 3582/2021  del 31/12/2021 INCARICO RSPP - DVR PDE 4 TRIM. 2021 ESTERNO AI SENSI D.LGS. 81/08;07/02/2022;370;1;628;1;Spese correnti;3;Acquisto di beni e servizi;2;Acquisto di servizi;11;Prestazioni professionali e specialistiche;999;Altre prestazioni professionali e specialistiche n.a.c.;10/02/2022
253;1;9999999;23,9;23,9;IGEAM CONSULTING S.R.L.;Z8F2FF4E5B;SALDO Fatt.n. 3582/2021  del 31/12/2021 INCARICO RSPP - DVR PDE 4 TRIM. 2021 ESTERNO AI SENSI D.LGS. 81/08;07/02/2022;370;1;628;1;Spese correnti;3;Acquisto di beni e servizi;2;Acquisto di servizi;11;Prestazioni professionali e specialistiche;999;Altre prestazioni professionali e specialistiche n.a.c.;10/02/2022
254;1;9999999;4.798,66;4.798,66;EUROTEL S.R.L.;Z202FE2D98;SALDO Fatt.n. A32  del 14/01/2022 SERVIZIO MANUTENZIONE E ASSISTENZA IMPIANTO VIDEOSORVEGLIANZA ANNO 2022;07/02/2022;1861;0;629;1;Spese correnti;3;Acquisto di beni e servizi;2;Acquisto di servizi;9;Manutenzione ordinaria e riparazioni;4;Manutenzione ordinaria e riparazioni di impianti e macchinari;10/02/2022
255;1;9999999;1.926,04;1.926,04;CASTEL MONTE SOCIETA' COOPERATIVA SOCIALE ONLUS;Z0E2FF402D;SALDO Fatt.n. 702/P  del 31/12/2021 SERVIZIO MANUTENZIONE PATRIMONIO COMUNALE DICEMBRE 2021;07/02/2022;5910;4;630;1;Spese correnti;3;Acquisto di beni e servizi;2;Acquisto di servizi;9;Manutenzione ordinaria e riparazioni;12;Manutenzione ordinaria e riparazioni di terreni e beni materiali non prodotti;10/02/2022
256;1;9999999;14.424,12;14.424,12;PUREAIRION S.R.L.;ZD134A348B;SALDO Fatt.n. 8/2022  del 21/01/2022 FORNITURA DISPOSITIVI SANIFICAZIONE DELL'ARIA;07/02/2022;2171;1;637;1;Spese correnti;3;Acquisto di beni e servizi;1;Acquisto di beni;2;Altri beni di consumo;999;Altri beni e materiali di consumo n.a.c.;10/02/2022
257;1;9999999;11.543,54;11.543,54;STEA PROGETTO S.R.L.;Z4A31DCBE6;SALDO Fatt.n. 378  del 31/12/2021 COMPETENZE PER DIREZIONE LAVORI CONTABILITA E LIQUIDAZIONI DEI LAVORI A MISURA, CERTIFICATO DI REGOLARE ESECUZIONE E ATTIVITA'DI SUPPORTO AL RUP NELLA GESTIONE E RENDICONTAZIONE TECNICO AMMINISTRATIVA INCENTIVO EROGA;07/02/2022;6976;0;205;2;Spese in conto capitale;2;Investimenti fissi lordi e acquisto di terreni;1;Beni materiali;9;Beni immobili;3;Fabbricati ad uso scolastico;10/02/2022
258;1;9999999;14.844,96;14.844,96;METODO SRL;ZB331D728B;SALDO Fatt.n. 3/PA  del 17/01/2022 1 ACCONTO PER C.S.E. LAVORI RIQUALIFICAZIONE ENERGETICA CON TRASFORMAZIONE IN EDIFICIO A ENERGIA QUASI ZERO (NZEB) DEL PLESSO SCOLASTICO - SCUOLA SERNAGLIA;07/02/2022;6976;0;206;2;Spese in conto capitale;2;Investimenti fissi lordi e acquisto di terreni;1;Beni materiali;9;Beni immobili;3;Fabbricati ad uso scolastico;10/02/2022
259;1;9999999;15.606,24;15.606,24;MADE ASSOCIATI ADRIANO MARANGON MICHELA DE POLI;Z7A332F52E;SALDO Fatt.n. FATTPA 2_22  del 10/01/2022 COMPETENZE REDAZIONE PROGETTO ESECUTIVO DIREZIONE LAVORI RECUPERO E RIQUALIFICA AREA VIALE DELLA RIMEMBRANZA 1 LOTTO;07/02/2022;7727;1;352;2;Spese in conto capitale;2;Investimenti fissi lordi e acquisto di terreni;1;Beni materiali;9;Beni immobili;12;Infrastrutture stradali;10/02/2022
260;1;9999999;2.791,36;2.791,36;TOFFOLI LUCA;ZF331DACF9;SALDO Fatt.n. 7/PA  del 17/01/2022 1 ACCONTO COORDINAMENTO SICUREZZA IN ESECUZIONE LAVORI RIQUALIFICAZIONE ENERGETICA MEDIANTE LA TRASFORMAZIONE IN NZEB (EDIFICIO A ENERGIA QUASI ZERO) DELLA SCUOLA PRIMARIA O. DE GASPARI DI FALZE DI PIAVE;07/02/2022;6977;0;204;2;Spese in conto capitale;2;Investimenti fissi lordi e acquisto di terreni;1;Beni materiali;9;Beni immobili;3;Fabbricati ad uso scolastico;10/02/2022
262;1;9999999;5.165,52;5.165,52;AMMINISTRATORI C/INDENNITA'; ;INDENNITA DI FUNZIONE AMMINISTRATORI MESE DI GENNAIO 2022;18/02/2022;20;0;61;1;Spese correnti;3;Acquisto di beni e servizi;2;Acquisto di servizi;1;Organi e incarichi istituzionali dell'amministrazione;1;Organi istituzionali dell'amministrazione - Indennità;24/02/2022
263;1;9999999;623;623;ISTITUTO NAZIONALE PREVIDENZA SOCIALE; ;ASPETTATIVA NON RETRIBUITA DEL SINDACO PER ESPLETAMENTO DEL MANDATO ELETTIVO - CONTRIBUTI FEBBRAIO 2022;18/02/2022;21;0;54;1;Spese correnti;3;Acquisto di beni e servizi;2;Acquisto di servizi;1;Organi e incarichi istituzionali dell'amministrazione;2;Organi istituzionali dell'amministrazione - Rimborsi;15/03/2022
326;1;9999999;538,47;538,47;G.A.L. DELL'ALTA MARCA TREVIGIANA S.C.R.L.; ;LIQUIDAZIONE QUOTA ASSOCIATIVA ANNO 2021;21/02/2022;6360;0;40;1;Spese correnti;4;Trasferimenti correnti;3;Trasferimenti correnti a Imprese;2;Trasferimenti correnti a altre imprese partecipate;1;Trasferimenti correnti a altre imprese partecipate;23/02/2022
327;1;9999999;55,62;55,62;MINISTERO DEI TRASPORTI; ;COD UT. CMTV0041 - LIQUIDAZIONE ACCESSI ARCHIVI MOTORIZZAZIONE CIVILE 4 TRIM. 2021;21/02/2022;1780;1;62;1;Spese correnti;3;Acquisto di beni e servizi;2;Acquisto di servizi;5;Utenze e canoni;999;Utenze e canoni per altri servizi n.a.c.;23/02/2022
328;1;9999999;503,7;503,7;MINISTERO INTERNO - TESORERIA DI ROMA; ;COMUNE DI SERNAGLIA DELLA BATTAGLIA CORRISPETTIVO RILASCIO N. 30 C.I.E. PERIODO 16.01.2022 - 31.01.2022;21/02/2022;432;0;13;1;Spese correnti;4;Trasferimenti correnti;1;Trasferimenti correnti a Amministrazioni Pubbliche;1;Trasferimenti correnti a Amministrazioni Centrali;1;Trasferimenti correnti a Ministeri;23/02/2022
329;1;9999999;198;1.256,71;CURTIS S.R.L.;8333539DEC;CORRESPONSIONE REGOLAZIONE PREMI POLIZZE INFORTUNI E ALL RISK;21/02/2022;350;0;41;1;Spese correnti;10;Altre spese correnti;4;Premi di assicurazione;1;Premi di assicurazione contro i danni;999;Altri premi di assicurazione contro i danni;23/02/2022
329;2;9999999;1.058,71;1.256,71;CURTIS S.R.L.;ZD62D48125;CORRESPONSIONE REGOLAZIONE PREMI POLIZZE INFORTUNI E ALL RISK;21/02/2022;350;0;41;1;Spese correnti;10;Altre spese correnti;4;Premi di assicurazione;1;Premi di assicurazione contro i danni;999;Altri premi di assicurazione contro i danni;23/02/2022
330;1;9999999;440;440;A.N.U.S.C.A.; ;LIQUIDAZIONE QUOTA ASSOCIATIVA D-  ANNO 2022;21/02/2022;820;1;47;1;Spese correnti;3;Acquisto di beni e servizi;2;Acquisto di servizi;99;Altri servizi;999;Altri servizi diversi n.a.c.;23/02/2022
333;1;9999999;9.889,00;9.889,00;SOLIGO VIAGGI SAS DI SCAPOL GIUSEPPINA & C.;7965830ADC;SALDO Fatt.n. PA/003  del 31/01/2022 SERVIZIO TRASPORTO SCOLASTICO GENNAIO 2022;21/02/2022;2730;0;408;1;Spese correnti;3;Acquisto di beni e servizi;2;Acquisto di servizi;15;Contratti di servizio pubblico;2;Contratti di servizio di trasporto scolastico;23/02/2022
334;1;9999999;105,12;105,12;ITALIANA PETROLI S.P.A.;ZD534C6964;SALDO Fatt.n. 9500256334  del 31/01/2022 FORNITURA CARBURANTE GENNAIO 2022 MEZZI SERVIZI SOCIALI TARGATA FM886TG;21/02/2022;5810;1;9;1;Spese correnti;3;Acquisto di beni e servizi;1;Acquisto di beni;2;Altri beni di consumo;2;Carburanti, combustibili e lubrificanti;23/02/2022
338;1;9999999;507,09;507,09;ASSOCIAZIONE REGIONALE COMUNI DEL VENETO; ;LIQUIDAZIONE QUOTA ASSOCIATIVA ANNO 2022;22/02/2022;510;0;73;1;Spese correnti;4;Trasferimenti correnti;4;Trasferimenti correnti a Istituzioni Sociali Private;1;Trasferimenti correnti a Istituzioni Sociali Private;1;Trasferimenti correnti a Istituzioni Sociali Private;24/02/2022
339;1;9999999;610;610;ASSOCIAZIONE COMUNI DELLA MARCA TREVIGIANA; ;QUOTA ASSOCIATIVA ACMT ANNO 2022;22/02/2022;510;0;71;1;Spese correnti;4;Trasferimenti correnti;4;Trasferimenti correnti a Istituzioni Sociali Private;1;Trasferimenti correnti a Istituzioni Sociali Private;1;Trasferimenti correnti a Istituzioni Sociali Private;24/02/2022
340;1;9999999;810;810;CENTRO STUDI AMMINISTRATIVI DELLA MARCA TREVIGIANA; ;LIQUIDAZIONE QUOTA ASSOCIATIVA ANNO 2022;22/02/2022;510;0;72;1;Spese correnti;4;Trasferimenti correnti;4;Trasferimenti correnti a Istituzioni Sociali Private;1;Trasferimenti correnti a Istituzioni Sociali Private;1;Trasferimenti correnti a Istituzioni Sociali Private;24/02/2022
341;1;9999999;17.603,60;17.603,60;INSIEME SI PUO' - SOCIETA' COOPERATIVA SOCIALE; ;SALDO Fatt.n. 114/S  del 25/01/2022 PROGETTO L.I.C. - DGR 541/2019;22/02/2022;5777;0;260;1;Spese correnti;4;Trasferimenti correnti;4;Trasferimenti correnti a Istituzioni Sociali Private;1;Trasferimenti correnti a Istituzioni Sociali Private;1;Trasferimenti correnti a Istituzioni Sociali Private;24/02/2022
342;1;9999999;2.000,80;2.000,80;ARTI GRAFICHE CONEGLIANO SRL;Z86346100D;SALDO Fatt.n. 2022-SE402-0000001  del 27/01/2022 STAMPA CALENDARIO 2022 REALIZZATO CON DISEGNO BAMBINI;22/02/2022;3310;3;559;1;Spese correnti;3;Acquisto di beni e servizi;2;Acquisto di servizi;99;Altri servizi;999;Altri servizi diversi n.a.c.;24/02/2022
343;1;9999999;1.552,00;1.552,00;ISTITUTO BON BOZZOLLA - I.P.A.B.; ;SALDO Fatt.n. 4/E  del 31/01/2022 RETTA RICOVERO B.G. GENNAIO 2022;22/02/2022;5610;4;22;1;Spese correnti;3;Acquisto di beni e servizi;2;Acquisto di servizi;99;Altri servizi;999;Altri servizi diversi n.a.c.;24/02/2022
344;1;9999999;1.773,96;1.773,96;ISTITUTI POLESANI SRL; ;SALDO Fatt.n. 51/E  del 31/01/2022 RETTA RICOVERO L.P. GENNAIO 2022;22/02/2022;5610;2;26;1;Spese correnti;3;Acquisto di beni e servizi;2;Acquisto di servizi;99;Altri servizi;999;Altri servizi diversi n.a.c.;24/02/2022
345;1;9999999;4.185,49;4.185,49;ABACO S.P.A.;8555333422;SALDO Fatt.n. 2022120001162  del 14/02/2022 AGGIO ESPOSIZIONI PUBBLICITARIE GENNAIO 2022;22/02/2022;1270;1;20;1;Spese correnti;3;Acquisto di beni e servizi;2;Acquisto di servizi;3;Aggi di riscossione;999;Altri aggi di riscossione n.a.c.;24/02/2022
346;1;9999999;13.481,00;13.481,00;HALLEY VENETO S.R.L.;Z2B31184FC;SALDO Fatt.n. 1/220342  del 03/02/2022 CANONE MANUTENZIONE E ASSISTENZA APPLICATIVI HALLEY ANNO 2022;22/02/2022;440;0;105;1;Spese correnti;3;Acquisto di beni e servizi;2;Acquisto di servizi;19;Servizi informatici e di telecomunicazioni;1;Gestione e manutenzione applicazioni;24/02/2022
347;1;9999999;4.062,60;4.062,60;HALLEY VENETO S.R.L.;Z3A311851B;SALDO Fatt.n. 1/220343  del 03/02/2022 CANONE MANUTENZIONE SOFTWARE APPLICATIVO E-GOVERNMENT SERVIZI E-GOVERNMENT SERVIZIO VAOL ANNO 2022;22/02/2022;440;0;106;1;Spese correnti;3;Acquisto di beni e servizi;2;Acquisto di servizi;19;Servizi informatici e di telecomunicazioni;1;Gestione e manutenzione applicazioni;24/02/2022
348;1;9999999;2.470,61;2.470,61;ENEL ENERGIA SPA;870016641B;SALDO Fatt.n. 004198312603  del 06/02/2022 FORNITURA ENERGIA ELETTRICA GENNAIO 2022 - MUNICIPIO;22/02/2022;345;0;132;1;Spese correnti;3;Acquisto di beni e servizi;2;Acquisto di servizi;5;Utenze e canoni;4;Energia elettrica;24/02/2022
349;1;9999999;6,71;6,71;ENEL ENERGIA SPA;870016641B;SALDO Fatt.n. 004205141031  del 12/02/2022 FORNITURA ENERGIA ELETTRICA GENNAIO 2022 - CHIESETTA;22/02/2022;1080;0;133;1;Spese correnti;3;Acquisto di beni e servizi;2;Acquisto di servizi;5;Utenze e canoni;4;Energia elettrica;24/02/2022
350;1;9999999;253,03;4.555,56;ENEL ENERGIA SPA;870016641B;SALDO Fatt.n. 004205141032  del 12/02/2022 FORNITURA ENERGIA ELETTRICA GENNAIO 2022 - SCUOLA ELEMENTARE FALZE';22/02/2022;2350;0;134;1;Spese correnti;3;Acquisto di beni e servizi;2;Acquisto di servizi;5;Utenze e canoni;4;Energia elettrica;24/02/2022
350;2;9999999;1.724,91;4.555,56;ENEL ENERGIA SPA;870016641B;ACCONTO Fatt.n. 004197943119  del 05/02/2022 FORNITURA ENERGIA ELETTRICA GENNAIO 2022 - PALESTRA SERNAGLIA;22/02/2022;2350;0;134;1;Spese correnti;3;Acquisto di beni e servizi;2;Acquisto di servizi;5;Utenze e canoni;4;Energia elettrica;24/02/2022
350;3;9999999;2.577,62;4.555,56;ENEL ENERGIA SPA;870016641B;ACCONTO Fatt.n. 004190079441  del 09/01/2022 FORNITURA ENERGIA ELETTRICA DICEMBRE 2021 - PALESTRA SERNAGLIA;22/02/2022;2350;0;134;1;Spese correnti;3;Acquisto di beni e servizi;2;Acquisto di servizi;5;Utenze e canoni;4;Energia elettrica;24/02/2022
351;1;9999999;529,83;529,83;ENEL ENERGIA SPA;870016641B;ACCONTO Fatt.n. 004190079441  del 09/01/2022 FORNITURA ENERGIA ELETTRICA DICEMBRE 2021 - PALESTRA SERNAGLIA;22/02/2022;2520;0;135;1;Spese correnti;3;Acquisto di beni e servizi;2;Acquisto di servizi;5;Utenze e canoni;4;Energia elettrica;24/02/2022
352;1;9999999;2,4;3.058,01;ENEL ENERGIA SPA;870016641B;SALDO Fatt.n. 004197943125  del 05/02/2022 FORNITURA ENERGIA ELETTRICA GENNAIO 2022 - SCUOLE SERNAGLIA;22/02/2022;2520;0;135;1;Spese correnti;3;Acquisto di beni e servizi;2;Acquisto di servizi;5;Utenze e canoni;4;Energia elettrica;24/02/2022
352;2;9999999;1.437,43;3.058,01;ENEL ENERGIA SPA;870016641B;ACCONTO Fatt.n. 004197943119  del 05/02/2022 FORNITURA ENERGIA ELETTRICA GENNAIO 2022 - PALESTRA SERNAGLIA;22/02/2022;2520;0;135;1;Spese correnti;3;Acquisto di beni e servizi;2;Acquisto di servizi;5;Utenze e canoni;4;Energia elettrica;24/02/2022
352;3;9999999;1.618,18;3.058,01;ENEL ENERGIA SPA;870016641B;ACCONTO Fatt.n. 004190079441  del 09/01/2022 FORNITURA ENERGIA ELETTRICA DICEMBRE 2021 - PALESTRA SERNAGLIA;22/02/2022;2520;0;135;1;Spese correnti;3;Acquisto di beni e servizi;2;Acquisto di servizi;5;Utenze e canoni;4;Energia elettrica;24/02/2022
353;1;9999999;1.193,71;2.712,98;ENEL ENERGIA SPA;870016641B;ACCONTO Fatt.n. 004190079441  del 09/01/2022 FORNITURA ENERGIA ELETTRICA DICEMBRE 2021 - PALESTRA SERNAGLIA;22/02/2022;2930;0;136;1;Spese correnti;3;Acquisto di beni e servizi;2;Acquisto di servizi;5;Utenze e canoni;4;Energia elettrica;24/02/2022
353;2;9999999;1.519,27;2.712,98;ENEL ENERGIA SPA;870016641B;ACCONTO Fatt.n. 004190079441  del 09/01/2022 FORNITURA ENERGIA ELETTRICA DICEMBRE 2021 - PALESTRA SERNAGLIA;22/02/2022;2930;0;136;1;Spese correnti;3;Acquisto di beni e servizi;2;Acquisto di servizi;5;Utenze e canoni;4;Energia elettrica;24/02/2022
354;1;9999999;562,55;11.543,74;ENEL ENERGIA SPA;870016641B;ACCONTO Fatt.n. 004205141029  del 12/02/2022 FORNITURA ENERGIA ELETTRICA GENNAIO 2022 - PALESTRA FALZE';22/02/2022;2930;0;136;1;Spese correnti;3;Acquisto di beni e servizi;2;Acquisto di servizi;5;Utenze e canoni;4;Energia elettrica;24/02/2022
354;2;9999999;1.452,64;11.543,74;ENEL ENERGIA SPA;870016641B;ACCONTO Fatt.n. 004190079441  del 09/01/2022 FORNITURA ENERGIA ELETTRICA DICEMBRE 2021 - PALESTRA SERNAGLIA;22/02/2022;2930;0;136;1;Spese correnti;3;Acquisto di beni e servizi;2;Acquisto di servizi;5;Utenze e canoni;4;Energia elettrica;24/02/2022
354;3;9999999;1.660,46;11.543,74;ENEL ENERGIA SPA;870016641B;SALDO Fatt.n. 004197943123  del 05/02/2022 FORNITURA ENERGIA ELETTRICA GENNAIO 2022 - PALESTRA FONTIGO;22/02/2022;2930;0;136;1;Spese correnti;3;Acquisto di beni e servizi;2;Acquisto di servizi;5;Utenze e canoni;4;Energia elettrica;24/02/2022
354;4;9999999;1.770,91;11.543,74;ENEL ENERGIA SPA;870016641B;SALDO Fatt.n. 004197943119  del 05/02/2022 FORNITURA ENERGIA ELETTRICA GENNAIO 2022 - PALESTRA SERNAGLIA;22/02/2022;2930;0;136;1;Spese correnti;3;Acquisto di beni e servizi;2;Acquisto di servizi;5;Utenze e canoni;4;Energia elettrica;24/02/2022
354;5;9999999;1.848,82;11.543,74;ENEL ENERGIA SPA;870016641B;SALDO Fatt.n. 004190079441  del 09/01/2022 FORNITURA ENERGIA ELETTRICA DICEMBRE 2021 - PALESTRA SERNAGLIA;22/02/2022;2930;0;136;1;Spese correnti;3;Acquisto di beni e servizi;2;Acquisto di servizi;5;Utenze e canoni;4;Energia elettrica;24/02/2022
354;6;9999999;1.994,48;11.543,74;ENEL ENERGIA SPA;870016641B;SALDO Fatt.n. 004205141029  del 12/02/2022 FORNITURA ENERGIA ELETTRICA GENNAIO 2022 - PALESTRA FALZE';22/02/2022;2930;0;136;1;Spese correnti;3;Acquisto di beni e servizi;2;Acquisto di servizi;5;Utenze e canoni;4;Energia elettrica;24/02/2022
354;7;9999999;2.253,88;11.543,74;ENEL ENERGIA SPA;870016641B;ACCONTO Fatt.n. 004197943119  del 05/02/2022 FORNITURA ENERGIA ELETTRICA GENNAIO 2022 - PALESTRA SERNAGLIA;22/02/2022;2930;0;136;1;Spese correnti;3;Acquisto di beni e servizi;2;Acquisto di servizi;5;Utenze e canoni;4;Energia elettrica;24/02/2022
355;1;9999999;104,52;104,52;ENEL ENERGIA SPA;870016641B;SALDO Fatt.n. 004197943126  del 05/02/2022 FORNITURA ENERGIA ELETTRICA GENNAIO 2022 - ANFITEATRO;22/02/2022;3112;0;137;1;Spese correnti;3;Acquisto di beni e servizi;2;Acquisto di servizi;5;Utenze e canoni;4;Energia elettrica;24/02/2022
356;1;9999999;8,03;41,9;ENEL ENERGIA SPA;870016641B;SALDO Fatt.n. 004197943124  del 05/02/2022 FORNITURA ENERGIA ELETTRICA GENNAIO 2022 - CIMITERO FONTIGO;22/02/2022;4145;0;138;1;Spese correnti;3;Acquisto di beni e servizi;2;Acquisto di servizi;5;Utenze e canoni;4;Energia elettrica;24/02/2022
356;2;9999999;15,19;41,9;ENEL ENERGIA SPA;870016641B;SALDO Fatt.n. 004198312604  del 06/02/2022 FORNITURA ENERGIA ELETTRICA GENNAIO 2022 - CIMITERO SERNAGLIA;22/02/2022;4145;0;138;1;Spese correnti;3;Acquisto di beni e servizi;2;Acquisto di servizi;5;Utenze e canoni;4;Energia elettrica;24/02/2022
356;3;9999999;18,68;41,9;ENEL ENERGIA SPA;870016641B;SALDO Fatt.n. 004197943117  del 05/02/2022 FORNITURA ENERGIA ELETTRICA GENNAIO 2022 - CIMITERO FALZE';22/02/2022;4145;0;138;1;Spese correnti;3;Acquisto di beni e servizi;2;Acquisto di servizi;5;Utenze e canoni;4;Energia elettrica;24/02/2022
357;1;9999999;227,3;1.686,91;ENEL ENERGIA SPA;870016641B;SALDO Fatt.n. 004197943122  del 05/02/2022 FORNITURA ENERGIA ELETTRICA GENNAIO 2022 - IMPIANTI SPORTIVI FALZE';22/02/2022;5290;2;139;1;Spese correnti;3;Acquisto di beni e servizi;2;Acquisto di servizi;5;Utenze e canoni;4;Energia elettrica;24/02/2022
357;2;9999999;245,49;1.686,91;ENEL ENERGIA SPA;870016641B;SALDO Fatt.n. 004197943118  del 05/02/2022 FORNITURA ENERGIA ELETTRICA GENNAIO 2022 - IMPIANTI SPORTIVI FONTIGO;22/02/2022;5290;2;139;1;Spese correnti;3;Acquisto di beni e servizi;2;Acquisto di servizi;5;Utenze e canoni;4;Energia elettrica;24/02/2022
357;3;9999999;1.214,12;1.686,91;ENEL ENERGIA SPA;870016641B;SALDO Fatt.n. 004203674690  del 11/02/2022 FORNITURA ENERGIA ELETTRICA GENNAIO 2022 - IMPIANTI SPORTIVI SERNAGLIA;22/02/2022;5290;2;139;1;Spese correnti;3;Acquisto di beni e servizi;2;Acquisto di servizi;5;Utenze e canoni;4;Energia elettrica;24/02/2022
358;1;9999999;63,77;723,42;ENEL ENERGIA SPA;870016641B;SALDO Fatt.n. 004205141028  del 12/02/2022 FORNITURA ENERGIA ELETTRICA GENNAIO 2022 - CENTRO ANZIANI FALZE' POMPA CALORE;22/02/2022;5760;0;140;1;Spese correnti;3;Acquisto di beni e servizi;2;Acquisto di servizi;5;Utenze e canoni;4;Energia elettrica;24/02/2022
358;2;9999999;79,61;723,42;ENEL ENERGIA SPA;870016641B;SALDO Fatt.n. 004205141030  del 12/02/2022 FORNITURA ENERGIA ELETTRICA GENNAIO 2022 - CENTRO ANZIANI FALZE';22/02/2022;5760;0;140;1;Spese correnti;3;Acquisto di beni e servizi;2;Acquisto di servizi;5;Utenze e canoni;4;Energia elettrica;24/02/2022
358;3;9999999;237,73;723,42;ENEL ENERGIA SPA;870016641B;SALDO Fatt.n. 004197943116  del 05/02/2022 FORNITURA ENERGIA ELETTRICA GENNAIO 2022 - CENTRO ANZIANI SERNAGLIA;22/02/2022;5760;0;140;1;Spese correnti;3;Acquisto di beni e servizi;2;Acquisto di servizi;5;Utenze e canoni;4;Energia elettrica;24/02/2022
358;4;9999999;342,31;723,42;ENEL ENERGIA SPA;870016641B;SALDO Fatt.n. 004197943120  del 05/02/2022 FORNITURA ENERGIA ELETTRICA GENNAIO 2022 - CENTRO ANZIANI SERNAGLIA POMPA CALORE;22/02/2022;5760;0;140;1;Spese correnti;3;Acquisto di beni e servizi;2;Acquisto di servizi;5;Utenze e canoni;4;Energia elettrica;24/02/2022
359;1;9999999;32,33;32,33;ENEL ENERGIA SPA;870016641B;SALDO Fatt.n. 004197943121  del 05/02/2022 FORNITURA ENERGIA ELETTRICA GENNAIO 2022 - MUSIL;22/02/2022;3751;0;141;1;Spese correnti;3;Acquisto di beni e servizi;2;Acquisto di servizi;5;Utenze e canoni;4;Energia elettrica;24/02/2022
360;1;9999999;634,4;2.689,86;COVRE ALDO;Z843163589;ACCONTO Fatt.n. 26A  del 16/02/2022 COMPETENZE ANNO 2021 SERVIZIO SUPPORTO SPECIALISTICO ASSISTENZA FISCALE E TRIBUTARIA;22/02/2022;340;6;147;1;Spese correnti;3;Acquisto di beni e servizi;2;Acquisto di servizi;11;Prestazioni professionali e specialistiche;999;Altre prestazioni professionali e specialistiche n.a.c.;24/02/2022
360;2;9999999;2.055,46;2.689,86;COVRE ALDO;Z843163589;SALDO Fatt.n. 26A  del 16/02/2022 COMPETENZE ANNO 2021 SERVIZIO SUPPORTO SPECIALISTICO ASSISTENZA FISCALE E TRIBUTARIA;22/02/2022;340;6;147;1;Spese correnti;3;Acquisto di beni e servizi;2;Acquisto di servizi;11;Prestazioni professionali e specialistiche;999;Altre prestazioni professionali e specialistiche n.a.c.;24/02/2022
361;1;9999999;1.830,00;1.830,00;HALLEY VENETO S.R.L.;Z4A329C6CE;SALDO Fatt.n. 1/220344  del 03/02/2022 CANONE RICONCILIAZIONE PAGOPA E GESTIONE SPORTELLO ANNO 2022;22/02/2022;440;0;310;1;Spese correnti;3;Acquisto di beni e servizi;2;Acquisto di servizi;19;Servizi informatici e di telecomunicazioni;1;Gestione e manutenzione applicazioni;24/02/2022
362;1;9999999;170,2;170,2;TIM S.P.A.;Z3032F5261;SALDO Fatt.n. 7X00601004  del 10/02/2022 BOLLETTE TELEFONIA MOBILE 2 BIM 2022;22/02/2022;345;0;336;1;Spese correnti;3;Acquisto di beni e servizi;2;Acquisto di servizi;5;Utenze e canoni;2;Telefonia mobile;24/02/2022
363;1;9999999;549;549;ASCO TLC S.P.A.;ZE7339955B;SALDO Fatt.n. 09001915  del 31/01/2022 SERVIZIO CONNETTIVITA' FIBRA OTTICA UFFICI GENNAIO 2022;22/02/2022;345;0;426;1;Spese correnti;3;Acquisto di beni e servizi;2;Acquisto di servizi;5;Utenze e canoni;999;Utenze e canoni per altri servizi n.a.c.;24/02/2022
364;1;9999999;11,14;929,35;TIM S.P.A.;Z4134D6B90;SALDO Fatt.n. 8E00052605  del 10/02/2022 BOLLETTE TELEFONIA FISSA 2 BIM 2022 - MUNICIPIO TELEGRAMMI;22/02/2022;345;0;15;1;Spese correnti;3;Acquisto di beni e servizi;2;Acquisto di servizi;5;Utenze e canoni;1;Telefonia fissa;24/02/2022
364;2;9999999;85,4;929,35;TIM S.P.A.;Z4134D6B90;SALDO Fatt.n. 8E00052723  del 10/02/2022 BOLLETTE TELEFONIA FISSA 2 BIM 2022 - LOCALI FONTIGO;22/02/2022;345;0;15;1;Spese correnti;3;Acquisto di beni e servizi;2;Acquisto di servizi;5;Utenze e canoni;1;Telefonia fissa;24/02/2022
364;3;9999999;146,4;929,35;TIM S.P.A.;Z4134D6B90;SALDO Fatt.n. 8E00055221  del 10/02/2022 BOLLETTE TELEFONIA FISSA 2 BIM 2022 - MUNICIPIO;22/02/2022;345;0;15;1;Spese correnti;3;Acquisto di beni e servizi;2;Acquisto di servizi;5;Utenze e canoni;1;Telefonia fissa;24/02/2022
364;4;9999999;686,41;929,35;TIM S.P.A.;Z4134D6B90;SALDO Fatt.n. 8E00054453  del 10/02/2022 BOLLETTE TELEFONIA FISSA 2 BIM 2022 - MUNICIPIO;22/02/2022;345;0;15;1;Spese correnti;3;Acquisto di beni e servizi;2;Acquisto di servizi;5;Utenze e canoni;1;Telefonia fissa;24/02/2022
365;1;9999999;98,2;230,22;TIM S.P.A.;Z4134D6B90;SALDO Fatt.n. 8E00053160  del 10/02/2022 BOLLETTE TELEFONIA FISSA 2 BIM 2022 - SCUOLA ELEMENTARE FALZE';22/02/2022;2350;0;16;1;Spese correnti;3;Acquisto di beni e servizi;2;Acquisto di servizi;5;Utenze e canoni;1;Telefonia fissa;24/02/2022
365;2;9999999;132,02;230,22;TIM S.P.A.;Z4134D6B90;SALDO Fatt.n. 8E00052913  del 10/02/2022 BOLLETTE TELEFONIA FISSA 2 BIM 2022 - SCUOLA ELEMENTARE SERNAGLIA;22/02/2022;2350;0;16;1;Spese correnti;3;Acquisto di beni e servizi;2;Acquisto di servizi;5;Utenze e canoni;1;Telefonia fissa;24/02/2022
366;1;9999999;85,4;487,21;TIM S.P.A.;Z4134D6B90;SALDO Fatt.n. 8E00053452  del 10/02/2022 BOLLETTE TELEFONIA FISSA 2 BIM 2022 - SCUOLA MEDIA;22/02/2022;2520;0;17;1;Spese correnti;3;Acquisto di beni e servizi;2;Acquisto di servizi;5;Utenze e canoni;1;Telefonia fissa;24/02/2022
366;2;9999999;146,4;487,21;TIM S.P.A.;Z4134D6B90;SALDO Fatt.n. 8E00053161  del 10/02/2022 BOLLETTE TELEFONIA FISSA 2 BIM 2022 - SCUOLA MEDIA;22/02/2022;2520;0;17;1;Spese correnti;3;Acquisto di beni e servizi;2;Acquisto di servizi;5;Utenze e canoni;1;Telefonia fissa;24/02/2022
366;3;9999999;255,41;487,21;TIM S.P.A.;Z4134D6B90;SALDO Fatt.n. 8E00054954  del 10/02/2022 BOLLETTE TELEFONIA FISSA 2 BIM 2022 - SCUOLA MEDIA;22/02/2022;2520;0;17;1;Spese correnti;3;Acquisto di beni e servizi;2;Acquisto di servizi;5;Utenze e canoni;1;Telefonia fissa;24/02/2022
367;1;9999999;85,81;85,81;TIM S.P.A.;Z4134D6B90;SALDO Fatt.n. 8E00052692  del 10/02/2022 BOLLETTE TELEFONIA FISSA 2 BIM 2022 - MAGAZZINO;22/02/2022;1080;0;18;1;Spese correnti;3;Acquisto di beni e servizi;2;Acquisto di servizi;5;Utenze e canoni;1;Telefonia fissa;24/02/2022
368;1;9999999;128;128;EGAF EDIZIONI SRL;Z34351069A;SALDO Fatt.n. 2022-V-VE2-187  del 10/02/2022 FORNITURA N. 4 PRONTUARI VIOLAZIONI CDS ANNO 2022;22/02/2022;420;0;35;1;Spese correnti;3;Acquisto di beni e servizi;1;Acquisto di beni;1;Giornali, riviste e pubblicazioni;2;Pubblicazioni;24/02/2022
369;1;9999999;181,78;181,78;GESTIONI.DOC SRL;ZC43524DAC;SALDO Fatt.n. 2/41  del 11/02/2022 RINNOVO ANNO 2022 N. 5 LICENZE DIKE PRO;22/02/2022;445;1;39;1;Spese correnti;3;Acquisto di beni e servizi;2;Acquisto di servizi;7;Utilizzo di beni di terzi;6;Licenze d'uso per software;24/02/2022
370;1;9999999;656,03;656,03;A2A ENERGIA S.P.A.; ;ACCONTO Fatt.n. 822000033409  del 07/02/2022 FORNITURA ENERGIA ELETTRICA NOVEMBRE - DICEMBRE 2021 -  POD IT001E00058543;22/02/2022;6000;0;327;1;Spese correnti;3;Acquisto di beni e servizi;2;Acquisto di servizi;5;Utenze e canoni;4;Energia elettrica;24/02/2022
371;1;9999999;36,15;20.839,82;A2A ENERGIA S.P.A.; ;SALDO Fatt.n. 822000029240  del 04/02/2022 FORNITURA ENERGIA ELETTRICA NOVEMBRE - DICEMBRE 2021 POD IT001E34606373 Contatore 13E6E512100425421 kWh 36;22/02/2022;6000;0;48;1;Spese correnti;3;Acquisto di beni e servizi;2;Acquisto di servizi;5;Utenze e canoni;4;Energia elettrica;24/02/2022
371;2;9999999;59;20.839,82;A2A ENERGIA S.P.A.; ;SALDO Fatt.n. 822000038419  del 10/02/2022 FORNITURA ENERGIA ELETTRICA NOVEMBRE - DICEMBRE 2021 POD IT001E34694202 Contatore 11E4E5A2100362812 kWh 73;22/02/2022;6000;0;48;1;Spese correnti;3;Acquisto di beni e servizi;2;Acquisto di servizi;5;Utenze e canoni;4;Energia elettrica;24/02/2022
371;3;9999999;81,34;20.839,82;A2A ENERGIA S.P.A.; ;SALDO Fatt.n. 822000033079  del 07/02/2022 FORNITURA ENERGIA ELETTRICA NOVEMBRE - DICEMBRE 2021 POD IT001E00058544 Contatore 04E1E516200752585 kWh 189;22/02/2022;6000;0;48;1;Spese correnti;3;Acquisto di beni e servizi;2;Acquisto di servizi;5;Utenze e canoni;4;Energia elettrica;24/02/2022
371;4;9999999;190,98;20.839,82;A2A ENERGIA S.P.A.; ;SALDO Fatt.n. 822000038866  del 10/02/2022 FORNITURA ENERGIA ELETTRICA NOVEMBRE - DICEMBRE 2021 POD IT001E00058565 Contatore 08E6E517100327819 kWh 425;22/02/2022;6000;0;48;1;Spese correnti;3;Acquisto di beni e servizi;2;Acquisto di servizi;5;Utenze e canoni;4;Energia elettrica;24/02/2022
371;5;9999999;229,53;20.839,82;A2A ENERGIA S.P.A.; ;SALDO Fatt.n. 822000030599  del 04/02/2022 FORNITURA ENERGIA ELETTRICA NOVEMBRE - DICEMBRE 2021 POD IT001E00058545 Contatore 19E4E5LA106891173 kWh 534;22/02/2022;6000;0;48;1;Spese correnti;3;Acquisto di beni e servizi;2;Acquisto di servizi;5;Utenze e canoni;4;Energia elettrica;24/02/2022
371;6;9999999;261,56;20.839,82;A2A ENERGIA S.P.A.; ;SALDO Fatt.n. 822000036335  del 08/02/2022 FORNITURA ENERGIA ELETTRICA NOVEMBRE - DICEMBRE 2021 POD IT001E32111701 Contatore 07E1E512100597022 kWh 619;22/02/2022;6000;0;48;1;Spese correnti;3;Acquisto di beni e servizi;2;Acquisto di servizi;5;Utenze e canoni;4;Energia elettrica;24/02/2022
371;7;9999999;284,54;20.839,82;A2A ENERGIA S.P.A.; ;SALDO Fatt.n. 822000036123  del 08/02/2022 FORNITURA ENERGIA ELETTRICA NOVEMBRE - DICEMBRE 2021 POD IT001E00058587 Contatore 05E1E516201444147 kWh 663;22/02/2022;6000;0;48;1;Spese correnti;3;Acquisto di beni e servizi;2;Acquisto di servizi;5;Utenze e canoni;4;Energia elettrica;24/02/2022
371;8;9999999;288,97;20.839,82;A2A ENERGIA S.P.A.; ;SALDO Fatt.n. 822000033080  del 07/02/2022 FORNITURA ENERGIA ELETTRICA NOVEMBRE - DICEMBRE 2021 POD IT001E00058542 Contatore 04E1E516200754710 kWh 671;22/02/2022;6000;0;48;1;Spese correnti;3;Acquisto di beni e servizi;2;Acquisto di servizi;5;Utenze e canoni;4;Energia elettrica;24/02/2022
371;9;9999999;387,48;20.839,82;A2A ENERGIA S.P.A.; ;SALDO Fatt.n. 822000030015  del 04/02/2022 FORNITURA ENERGIA ELETTRICA NOVEMBRE - DICEMBRE 2021 POD IT001E00058570 Contatore 08E6E517100327835 kWh 879;22/02/2022;6000;0;48;1;Spese correnti;3;Acquisto di beni e servizi;2;Acquisto di servizi;5;Utenze e canoni;4;Energia elettrica;24/02/2022
371;10;9999999;387,92;20.839,82;A2A ENERGIA S.P.A.; ;SALDO Fatt.n. 822000029047  del 04/02/2022 FORNITURA ENERGIA ELETTRICA NOVEMBRE - DICEMBRE 2021 POD IT001E32160717 Contatore 07E1E512100488305 kWh 898;22/02/2022;6000;0;48;1;Spese correnti;3;Acquisto di beni e servizi;2;Acquisto di servizi;5;Utenze e canoni;4;Energia elettrica;24/02/2022
371;11;9999999;533,7;20.839,82;A2A ENERGIA S.P.A.; ;SALDO Fatt.n. 822000033859  del 07/02/2022 FORNITURA ENERGIA ELETTRICA NOVEMBRE - DICEMBRE 2021 POD IT001E00058589 Contatore 08E5G532100337877 kWh 1204;22/02/2022;6000;0;48;1;Spese correnti;3;Acquisto di beni e servizi;2;Acquisto di servizi;5;Utenze e canoni;4;Energia elettrica;24/02/2022
371;12;9999999;821,06;20.839,82;A2A ENERGIA S.P.A.; ;SALDO Fatt.n. 822000034798  del 08/02/2022 FORNITURA ENERGIA ELETTRICA NOVEMBRE - DICEMBRE 2021 POD IT001E00058581 Contatore 08E6E517100327510 kWh 1903;22/02/2022;6000;0;48;1;Spese correnti;3;Acquisto di beni e servizi;2;Acquisto di servizi;5;Utenze e canoni;4;Energia elettrica;24/02/2022
371;13;9999999;984,14;20.839,82;A2A ENERGIA S.P.A.; ;SALDO Fatt.n. 822000034765  del 08/02/2022 FORNITURA ENERGIA ELETTRICA NOVEMBRE - DICEMBRE 2021 POD IT001E00058568 Contatore 08E6E517100327802 kWh 2080;22/02/2022;6000;0;48;1;Spese correnti;3;Acquisto di beni e servizi;2;Acquisto di servizi;5;Utenze e canoni;4;Energia elettrica;24/02/2022
371;14;9999999;1.378,49;20.839,82;A2A ENERGIA S.P.A.; ;SALDO Fatt.n. 822000033409  del 07/02/2022 FORNITURA ENERGIA ELETTRICA NOVEMBRE - DICEMBRE 2021 -  POD IT001E00058543;22/02/2022;6000;0;48;1;Spese correnti;3;Acquisto di beni e servizi;2;Acquisto di servizi;5;Utenze e canoni;4;Energia elettrica;24/02/2022
371;15;9999999;1.721,03;20.839,82;A2A ENERGIA S.P.A.; ;SALDO Fatt.n. 822000039707  del 15/02/2022 FORNITURA ENERGIA ELETTRICA NOVEMBRE - DICEMBRE 2021POD IT001E00058566 Contatore 07E1G535200006613 kWh 4085;22/02/2022;6000;0;48;1;Spese correnti;3;Acquisto di beni e servizi;2;Acquisto di servizi;5;Utenze e canoni;4;Energia elettrica;24/02/2022
371;16;9999999;1.838,77;20.839,82;A2A ENERGIA S.P.A.; ;SALDO Fatt.n. 822000037253  del 09/02/2022 FORNITURA ENERGIA ELETTRICA NOVEMBRE - DICEMBRE 2021 POD IT001E00058555 Contatore 08E5G532100337748 kWh 4250;22/02/2022;6000;0;48;1;Spese correnti;3;Acquisto di beni e servizi;2;Acquisto di servizi;5;Utenze e canoni;4;Energia elettrica;24/02/2022
371;17;9999999;2.130,18;20.839,82;A2A ENERGIA S.P.A.; ;SALDO Fatt.n. 822000029874  del 04/02/2022 FORNITURA ENERGIA ELETTRICA NOVEMBRE - DICEMBRE 2021 POD IT001E00058592 Contatore 04E1G535200075412 kWh 4797;22/02/2022;6000;0;48;1;Spese correnti;3;Acquisto di beni e servizi;2;Acquisto di servizi;5;Utenze e canoni;4;Energia elettrica;24/02/2022
371;18;9999999;2.400,87;20.839,82;A2A ENERGIA S.P.A.; ;SALDO Fatt.n. 822000038953  del 10/02/2022 FORNITURA ENERGIA ELETTRICA NOVEMBRE - DICEMBRE 2021 POD IT001E00058551 Contatore 08E5G532100337873 kWh 5424;22/02/2022;6000;0;48;1;Spese correnti;3;Acquisto di beni e servizi;2;Acquisto di servizi;5;Utenze e canoni;4;Energia elettrica;24/02/2022
371;19;9999999;3.062,26;20.839,82;A2A ENERGIA S.P.A.; ;SALDO Fatt.n. 822000034744  del 08/02/2022 FORNITURA ENERGIA ELETTRICA NOVEMBRE - DICEMBRE 2021 POD IT001E00058586 Contatore 04E1G535200038052 kWh 6452;22/02/2022;6000;0;48;1;Spese correnti;3;Acquisto di beni e servizi;2;Acquisto di servizi;5;Utenze e canoni;4;Energia elettrica;24/02/2022
371;20;9999999;3.761,85;20.839,82;A2A ENERGIA S.P.A.; ;SALDO Fatt.n. 822000034743  del 08/02/2022 FORNITURA ENERGIA ELETTRICA NOVEMBRE - DICEMBRE 2021 POD IT001E00058546 Contatore 11E5G532100369978 kWh 8523;22/02/2022;6000;0;48;1;Spese correnti;3;Acquisto di beni e servizi;2;Acquisto di servizi;5;Utenze e canoni;4;Energia elettrica;24/02/2022
372;1;9999999;1.982,50;1.982,50;PULI 4 SRL;Z4830634A7;SALDO Fatt.n. 112/E  del 31/01/2022 SERVIZIO PULIZIA UFFICI COMUNALI GENNAIO 2022;22/02/2022;355;1;56;1;Spese correnti;3;Acquisto di beni e servizi;2;Acquisto di servizi;13;Servizi ausiliari per il funzionamento dell'ente;2;Servizi di pulizia e lavanderia;24/02/2022
373;1;9999999;97,6;683,2;ASCO TLC S.P.A.;ZCE311E6D8;SALDO Fatt.n. 09001914  del 31/01/2022 CANONE SERVIZIO CONNETTIVITA TELECAMERE AL SERVER DI VIDEOSORVEGLIANZA GENNAIO 2022;22/02/2022;1860;0;145;1;Spese correnti;3;Acquisto di beni e servizi;2;Acquisto di servizi;5;Utenze e canoni;999;Utenze e canoni per altri servizi n.a.c.;24/02/2022
373;2;9999999;585,6;683,2;ASCO TLC S.P.A.;ZCE311E6D8;SALDO Fatt.n. 09001913  del 31/01/2022 CANONE SERVIZIO CONNETTIVITA TELECAMERE AL SERVER DI VIDEOSORVEGLIANZA GENNAIO 2022;22/02/2022;1860;0;145;1;Spese correnti;3;Acquisto di beni e servizi;2;Acquisto di servizi;5;Utenze e canoni;999;Utenze e canoni per altri servizi n.a.c.;24/02/2022
374;1;9999999;1.064,74;1.064,74;ENEL ENERGIA SPA;870016641B;ACCONTO Fatt.n. 004205424728  del 15/02/2022 INSTALLAZIONE CONTATORE E FORNITURA ENERGIA ELETTRICA GENNAIO 2022 - DISCARICA;22/02/2022;7874;0;387;2;Spese in conto capitale;2;Investimenti fissi lordi e acquisto di terreni;1;Beni materiali;9;Beni immobili;14;Opere per la sistemazione del suolo;24/02/2022
375;1;9999999;-7.320,12;7.320,12;CASA VENETA S.R.L.S.;ZB833952C3;SALDO Fatt.n. 8  del 04/02/2022 STORNO FATTURA N. 2 DEL 19.01.2022;22/02/2022;7764;0;420;2;Spese in conto capitale;2;Investimenti fissi lordi e acquisto di terreni;1;Beni materiali;9;Beni immobili;12;Infrastrutture stradali;24/02/2022
375;2;9999999;7.320,12;7.320,12;CASA VENETA S.R.L.S.;ZB833952C3;SALDO Fatt.n. 2  del 19/01/2022 LAVORI EDILI SISTEMAZIONE FONTANA PIAZZA MARTIRI DELLA LIBERTA';22/02/2022;7764;0;420;2;Spese in conto capitale;2;Investimenti fissi lordi e acquisto di terreni;1;Beni materiali;9;Beni immobili;12;Infrastrutture stradali;24/02/2022
375;3;9999999;7.320,12;7.320,12;CASA VENETA S.R.L.S.;ZB833952C3;SALDO Fatt.n. FPA 8/22  del 04/02/2022 LAVORI EDILI SISTEMAZIONE FONTANA PIAZZA MARTIRI DELLA LIBERTA';22/02/2022;7764;0;420;2;Spese in conto capitale;2;Investimenti fissi lordi e acquisto di terreni;1;Beni materiali;9;Beni immobili;12;Infrastrutture stradali;24/02/2022
376;1;9999999;2.883,98;2.883,98;TOFFOLI LUCA;Z602A210EC;SALDO Fatt.n. 5/PA  del 16/01/2022 SALDO COMPETENZE REDAZIONE PROGETTO DEFINITO ESECUTIVO REALIZZAZIONE BLOCCO LOCULI CIMITERO DI FONTIGO;22/02/2022;7300;2;468;2;Spese in conto capitale;2;Investimenti fissi lordi e acquisto di terreni;1;Beni materiali;9;Beni immobili;15;Cimiteri;24/02/2022
377;1;9999999;1.874,00;1.874,00;GAETAN PAOLO;Z5A3475579;SALDO Fatt.n. 1  del 10/02/2022 COMPETENZE RIQUALIFICAZIONE ENERGETICA E ADEGUAMENTO SISMICO EDIFICIO POLIFUNZIONALE DI FONTIGO;22/02/2022;640;0;550;1;Spese correnti;3;Acquisto di beni e servizi;2;Acquisto di servizi;11;Prestazioni professionali e specialistiche;999;Altre prestazioni professionali e specialistiche n.a.c.;24/02/2022
378;1;9999999;1.218,00;1.218,00;PASSIONE UFFICIO DI GABRIELE VECE;ZB634C1A71;SALDO Fatt.n. FPR 109/22  del 25/01/2022 FORNITURA MASCHERINE FFP2;22/02/2022;2110;0;37;1;Spese correnti;3;Acquisto di beni e servizi;1;Acquisto di beni;2;Altri beni di consumo;999;Altri beni e materiali di consumo n.a.c.;24/02/2022
379;1;9999999;640,5;640,5;TECNOGREEN DI L. GUARNIER & C. S.A.S.;Z44347F92A;SALDO Fatt.n. 6/PA  del 07/02/2022 LAVORI SUPPLETIVI IMPIANTISTICA FONTANA - FARETTI TRICOLORE;22/02/2022;7764;0;561;2;Spese in conto capitale;2;Investimenti fissi lordi e acquisto di terreni;1;Beni materiali;9;Beni immobili;12;Infrastrutture stradali;24/02/2022
380;1;9999999;57,15;57,15;ENEL ENERGIA SPA;870016641B;SALDO Fatt.n. 004205424728  del 15/02/2022 INSTALLAZIONE CONTATORE E FORNITURA ENERGIA ELETTRICA GENNAIO 2022 - DISCARICA;22/02/2022;4711;0;498;1;Spese correnti;3;Acquisto di beni e servizi;2;Acquisto di servizi;5;Utenze e canoni;4;Energia elettrica;24/02/2022
381;1;9999999;371;371;SALUMI DE STEFANI S.R.L.;Z23349F304;SALDO Fatt.n. 102/S  del 31/01/2022 FORNITURA PASTI DIPENDENTI COMUNALI GENNAIO 2022;25/02/2022;6510;0;598;1;Spese correnti;3;Acquisto di beni e servizi;2;Acquisto di servizi;14;Servizi di ristorazione;999;Altri servizi di ristorazione;01/03/2022
382;1;9999999;408,7;408,7;CENTRO STUDI AMMINISTRATIVI DELLA MARCA TREVIGIANA;Z59309C621;SALDO Fatt.n. 39/2022  del 10/02/2022 SERVIZIO GESTIONE AUDIO/VIDEO A DISTANZA SEDUTE CONSIGLIO COMUNALE;25/02/2022;365;3;78;1;Spese correnti;3;Acquisto di beni e servizi;2;Acquisto di servizi;99;Altri servizi;999;Altri servizi diversi n.a.c.;01/03/2022
383;1;9999999;1.638,86;1.638,86;I TIGLI2 SOCIETA' COOPERATIVA SOCIALE - ONLUS;Z1F30BDF7B;SALDO Fatt.n. 2022/00018/PA  del 31/01/2022 SERVIZIO CONSEGNA PASTI E TRASPORTO SOCIALE GENNAIO 2022;25/02/2022;5746;0;113;1;Spese correnti;3;Acquisto di beni e servizi;2;Acquisto di servizi;99;Altri servizi;999;Altri servizi diversi n.a.c.;01/03/2022
384;1;9999999;384,3;384,3;I TIGLI2 SOCIETA' COOPERATIVA SOCIALE - ONLUS;Z1033B77A5;SALDO Fatt.n. 2022/00026/PA  del 31/01/2022 SERVIZIO SANIFICAZIONE E PULIZIA PALESTRA CORSO GINNASTICA;25/02/2022;2171;5;427;1;Spese correnti;10;Altre spese correnti;99;Altre spese correnti n.a.c.;99;Altre spese correnti n.a.c.;999;Altre spese correnti n.a.c.;01/03/2022
385;1;9999999;2.196,00;2.196,00;BOXXAPPS S.R.L.;ZC1349BA93;SALDO Fatt.n. 1/220236  del 17/02/2022 ATTIVAZIONE SERVIZIO E PIATTAFORMA X-GDPR;25/02/2022;365;3;594;1;Spese correnti;3;Acquisto di beni e servizi;2;Acquisto di servizi;99;Altri servizi;999;Altri servizi diversi n.a.c.;01/03/2022
386;1;9999999;129;129;LIBRERIA LA PIEVE SRL;ZEE3512B02;SALDO Fatt.n. 11/PA  del 08/02/2022 FORNITURA VOLUMI PER NUOVI NATI;25/02/2022;40;2;34;1;Spese correnti;3;Acquisto di beni e servizi;1;Acquisto di beni;2;Altri beni di consumo;9;Beni per attività di rappresentanza;01/03/2022
387;1;9999999;2.841,22;6.441,22;BIM PIAVE NUOVE ENERGIE S.R.L.; ;SALDO Fatt.n. 9000172  del 16/02/2022 SEDE MUNICIPALE PARTE VECCHIA -  MANUTENZIONE PERIODO 01.10.2021 - 31.12.2021;25/02/2022;355;3;49;1;Spese correnti;3;Acquisto di beni e servizi;2;Acquisto di servizi;5;Utenze e canoni;6;Gas;01/03/2022
387;2;9999999;3.600,00;6.441,22;BIM PIAVE NUOVE ENERGIE S.R.L.; ;ACCONTO Fatt.n. 9000171  del 16/02/2022 SEDE MUNICIPALE PARTE NUOVA - MANUTENZIONE PERIODO 01.10.2021 - 31.12.2021;25/02/2022;355;3;49;1;Spese correnti;3;Acquisto di beni e servizi;2;Acquisto di servizi;5;Utenze e canoni;6;Gas;01/03/2022
388;1;9999999;835,07;835,07;BIM PIAVE NUOVE ENERGIE S.R.L.; ;SALDO Fatt.n. 9000171  del 16/02/2022 SEDE MUNICIPALE PARTE NUOVA - MANUTENZIONE PERIODO 01.10.2021 - 31.12.2021;25/02/2022;3060;1;50;1;Spese correnti;3;Acquisto di beni e servizi;2;Acquisto di servizi;5;Utenze e canoni;6;Gas;01/03/2022
389;1;9999999;800;800;BIM PIAVE NUOVE ENERGIE S.R.L.; ;ACCONTO Fatt.n. 9000177  del 16/02/2022 CEA FONTIGO - MANUTENZIONE PERIODO 01.10.2021 - 31.12.2021;25/02/2022;1085;0;51;1;Spese correnti;3;Acquisto di beni e servizi;2;Acquisto di servizi;5;Utenze e canoni;6;Gas;01/03/2022
390;1;9999999;4.286,49;4.286,49;BIM PIAVE NUOVE ENERGIE S.R.L.; ;SALDO Fatt.n. 9000176  del 16/02/2022 SCUOLA PRIMARIA FALZE' - MANUTENZIONE PERIODO 01.10.2021 - 31.12.2021;25/02/2022;2355;1;52;1;Spese correnti;3;Acquisto di beni e servizi;2;Acquisto di servizi;5;Utenze e canoni;6;Gas;01/03/2022
391;1;9999999;752,31;752,31;BIM PIAVE NUOVE ENERGIE S.R.L.; ;SALDO Fatt.n. 9000175  del 16/02/2022 SCUOLA SECONDARIA/PRIMARIA - MANUTENZIONE PERIODO 01.10.2021 - 31.12.2021;25/02/2022;2510;1;53;1;Spese correnti;3;Acquisto di beni e servizi;2;Acquisto di servizi;5;Utenze e canoni;6;Gas;01/03/2022
392;1;9999999;534,52;10.661,75;BIM PIAVE NUOVE ENERGIE S.R.L.; ;ACCONTO Fatt.n. 9000179  del 16/02/2022 PALESTRA FALZE' - MANUTENZIONE E CONSUMO PERIODO DAL 01.10.2021 AL 31.12.2021;25/02/2022;2935;1;54;1;Spese correnti;3;Acquisto di beni e servizi;2;Acquisto di servizi;5;Utenze e canoni;6;Gas;01/03/2022
392;2;9999999;609,95;10.661,75;BIM PIAVE NUOVE ENERGIE S.R.L.; ;SALDO Fatt.n. 9000177  del 16/02/2022 CEA FONTIGO - MANUTENZIONE PERIODO 01.10.2021 - 31.12.2021;25/02/2022;2935;1;54;1;Spese correnti;3;Acquisto di beni e servizi;2;Acquisto di servizi;5;Utenze e canoni;6;Gas;01/03/2022
392;3;9999999;1.895,11;10.661,75;BIM PIAVE NUOVE ENERGIE S.R.L.; ;SALDO Fatt.n. 9000179  del 16/02/2022 PALESTRA FALZE' - MANUTENZIONE E CONSUMO PERIODO DAL 01.10.2021 AL 31.12.2021;25/02/2022;2935;1;54;1;Spese correnti;3;Acquisto di beni e servizi;2;Acquisto di servizi;5;Utenze e canoni;6;Gas;01/03/2022
392;4;9999999;3.353,75;10.661,75;BIM PIAVE NUOVE ENERGIE S.R.L.; ;ACCONTO Fatt.n. 9000178  del 16/02/2022 PALESTRA SERNAGLIA - MANUTENZIONE E CONSUMO PERIODO DAL 01.10.2021 AL 31.12.2021;25/02/2022;2935;1;54;1;Spese correnti;3;Acquisto di beni e servizi;2;Acquisto di servizi;5;Utenze e canoni;6;Gas;01/03/2022
392;5;9999999;4.268,42;10.661,75;BIM PIAVE NUOVE ENERGIE S.R.L.; ;SALDO Fatt.n. 9000178  del 16/02/2022 PALESTRA SERNAGLIA - MANUTENZIONE E CONSUMO PERIODO DAL 01.10.2021 AL 31.12.2021;25/02/2022;2935;1;54;1;Spese correnti;3;Acquisto di beni e servizi;2;Acquisto di servizi;5;Utenze e canoni;6;Gas;01/03/2022
393;1;9999999;111,48;1.227,94;BIM PIAVE NUOVE ENERGIE S.R.L.; ;SALDO Fatt.n. 9000182  del 16/02/2022 IMPIANTI SPORTIVI FALZE' - MANUTENZIONE PERIODO 01.10.2021 - 31.12.2021;25/02/2022;5295;2;55;1;Spese correnti;3;Acquisto di beni e servizi;2;Acquisto di servizi;5;Utenze e canoni;6;Gas;01/03/2022
393;2;9999999;111,48;1.227,94;BIM PIAVE NUOVE ENERGIE S.R.L.; ;SALDO Fatt.n. 9000184  del 16/02/2022 SPOGLIATOI TENNIS - MANUTENZIONE PERIODO 01.10.2021 - 31.12.2021;25/02/2022;5295;2;55;1;Spese correnti;3;Acquisto di beni e servizi;2;Acquisto di servizi;5;Utenze e canoni;6;Gas;01/03/2022
393;3;9999999;306,22;1.227,94;BIM PIAVE NUOVE ENERGIE S.R.L.; ;SALDO Fatt.n. 9000181  del 16/02/2022 IMPIANTI SPORTIVI FONTIGO - MANUTENZIONE PERIODO 01.10.2021 - 31.12.2021;25/02/2022;5295;2;55;1;Spese correnti;3;Acquisto di beni e servizi;2;Acquisto di servizi;5;Utenze e canoni;6;Gas;01/03/2022
393;4;9999999;336,93;1.227,94;BIM PIAVE NUOVE ENERGIE S.R.L.; ;SALDO Fatt.n. 9000180  del 16/02/2022 SPOGLIATOI CALCIO  - MANUTENZIONE PERIODO 01.10.2021 - 31.12.2021;25/02/2022;5295;2;55;1;Spese correnti;3;Acquisto di beni e servizi;2;Acquisto di servizi;5;Utenze e canoni;6;Gas;01/03/2022
393;5;9999999;361,83;1.227,94;BIM PIAVE NUOVE ENERGIE S.R.L.; ;SALDO Fatt.n. 9000183  del 16/02/2022 IMPIANTI SPORTIVI NUOVI - MANUTENZIONE PERIODO 01.10.2021 - 31.12.2021;25/02/2022;5295;2;55;1;Spese correnti;3;Acquisto di beni e servizi;2;Acquisto di servizi;5;Utenze e canoni;6;Gas;01/03/2022
394;1;9999999;514,41;1.241,81;BIM PIAVE NUOVE ENERGIE S.R.L.; ;SALDO Fatt.n. 9000174  del 16/02/2022 CENTRO ANZIANI FALZE' - MANUTENZIONE PERIODO 01.10.2021 - 31.12.2021;25/02/2022;5765;2;56;1;Spese correnti;3;Acquisto di beni e servizi;2;Acquisto di servizi;13;Servizi ausiliari per il funzionamento dell'ente;6;Rimozione e smaltimento di rifiuti tossico-nocivi e di altri materiali;01/03/2022
394;2;9999999;727,4;1.241,81;BIM PIAVE NUOVE ENERGIE S.R.L.; ;SALDO Fatt.n. 9000173  del 16/02/2022 CENTRO ANZIANI SERNAGLIA - MANUTENZIONE PERIODO 01.10.2021 - 31.12.2021;25/02/2022;5765;2;56;1;Spese correnti;3;Acquisto di beni e servizi;2;Acquisto di servizi;13;Servizi ausiliari per il funzionamento dell'ente;6;Rimozione e smaltimento di rifiuti tossico-nocivi e di altri materiali;01/03/2022
395;1;9999999;180,33;180,33;BIM PIAVE NUOVE ENERGIE S.R.L.; ;SALDO FATTURA N. 9000256 DEL 16.02.2021 - ERRATO VERSAMENTO;25/02/2022;355;3;84;1;Spese correnti;3;Acquisto di beni e servizi;2;Acquisto di servizi;5;Utenze e canoni;6;Gas;01/03/2022
396;1;9999999;31,91;31,91;ISTITUTO NAZIONALE PREVIDENZA SOCIALE; ;ASPETTATIVA NON RETRIBUITA DEL SINDACO VERSAMENTO CONGUAGLIO CONTRIBUTIVO ANNO 2021;25/02/2022;21;0;54;1;Spese correnti;3;Acquisto di beni e servizi;2;Acquisto di servizi;1;Organi e incarichi istituzionali dell'amministrazione;2;Organi istituzionali dell'amministrazione - Rimborsi;09/03/2022
397;1;9999999;1.088,72;1.088,72;ASSOCIAZIONE COMUNI DELLA MARCA TREVIGIANA; ;LIQUIDAZIONE SERVIZIO ASSOCIATO VIGILANZA E SORVEGLIANZA ALUNNI NEGLI E PRESSO GLI EDIFICI SCOLASTICI E NEGLI SCUOLABUS NOVEMBRE-DICEMBRE 2022;25/02/2022;510;0;17;1;Spese correnti;4;Trasferimenti correnti;4;Trasferimenti correnti a Istituzioni Sociali Private;1;Trasferimenti correnti a Istituzioni Sociali Private;1;Trasferimenti correnti a Istituzioni Sociali Private;01/03/2022
398;1;9999999;578,18;578,18;COMUNE DI CONEGLIANO; ;LIQUIDAZIONE QUOTA ANNO 2021 - VI SOTTOCOMMISSIONE ELETTORALE;25/02/2022;380;1;83;1;Spese correnti;4;Trasferimenti correnti;1;Trasferimenti correnti a Amministrazioni Pubbliche;2;Trasferimenti correnti a Amministrazioni Locali;3;Trasferimenti correnti a Comuni;01/03/2022
399;1;9999999;570,86;570,86;MINISTERO INTERNO - TESORERIA DI ROMA; ;COMUNE DI SERNAGLIA DELLA BATTAGLIA CORRISPETTIVO RILASCIO N. 34 C.I.E. PERIODO 01.02.2022 - 15.02.2022;25/02/2022;432;0;13;1;Spese correnti;4;Trasferimenti correnti;1;Trasferimenti correnti a Amministrazioni Pubbliche;1;Trasferimenti correnti a Amministrazioni Centrali;1;Trasferimenti correnti a Ministeri;01/03/2022
402;1;9999999;52,92;52,92;COMUNE DI JESOLO; ;ME - 2022/93 - RIMBORSO SPESE NOTIFICA ATTI;03/03/2022;340;4;90;1;Spese correnti;3;Acquisto di beni e servizi;2;Acquisto di servizi;16;Servizi amministrativi;2;Spese postali;07/03/2022
405;1;9999999;300;300;UNIONE MONTANA FELTRINA; ;LIQUIDAZINE QUOTA ANNO 2021 - CONVENZIONE GESTIONE IN MODO COORDINATO ATTIVITA IN MATERIA DI PERSONALE;03/03/2022;365;3;580;1;Spese correnti;3;Acquisto di beni e servizi;2;Acquisto di servizi;99;Altri servizi;999;Altri servizi diversi n.a.c.;07/03/2022
406;1;9999999;9,52;239,16;COMUNE DI SERNAGLIA DELLA BATTAGLIA; ;RIVERSAMENTO SPESE TENUTA CONTI CORRENTI POSTALI OTTOBRE - DICEMBRE 2021;03/03/2022;450;0;65;1;Spese correnti;3;Acquisto di beni e servizi;2;Acquisto di servizi;17;Servizi finanziari;999;Spese per servizi finanziari n.a.c.;07/03/2022
406;2;9999999;147,49;239,16;COMUNE DI SERNAGLIA DELLA BATTAGLIA; ;RIVERSAMENTO SPESE TENUTA CONTI CORRENTI POSTALI OTTOBRE - DICEMBRE 2021;03/03/2022;450;0;65;1;Spese correnti;3;Acquisto di beni e servizi;2;Acquisto di servizi;17;Servizi finanziari;999;Spese per servizi finanziari n.a.c.;07/03/2022
406;3;9999999;82,15;239,16;COMUNE DI SERNAGLIA DELLA BATTAGLIA; ;RIVERSAMENTO SPESE TENUTA CONTI CORRENTI POSTALI OTTOBRE - DICEMBRE 2021;03/03/2022;450;0;65;1;Spese correnti;3;Acquisto di beni e servizi;2;Acquisto di servizi;17;Servizi finanziari;999;Spese per servizi finanziari n.a.c.;07/03/2022
407;1;9999999;161,13;161,13;COMUNE DI SERNAGLIA DELLA BATTAGLIA; ;LIQUIDAZIONE SPESE TENUTA CONTI CORRENTI POSTALI PERIODO OTTOBRE - DICEMBRE 2021;03/03/2022;450;0;88;1;Spese correnti;3;Acquisto di beni e servizi;2;Acquisto di servizi;17;Servizi finanziari;999;Spese per servizi finanziari n.a.c.;07/03/2022
408;1;9999999;67,1;67,1;I TIGLI2 SOCIETA' COOPERATIVA SOCIALE - ONLUS;Z44309615D;SALDO Fatt.n. 2022/00016/PA  del 31/01/2022 SERVIZIO PULIZIA AMBULATORIO FONTIGO GENNAIO 2022;03/03/2022;1085;1;83;1;Spese correnti;3;Acquisto di beni e servizi;2;Acquisto di servizi;13;Servizi ausiliari per il funzionamento dell'ente;2;Servizi di pulizia e lavanderia;07/03/2022
409;1;9999999;472,14;472,14;I TIGLI2 SOCIETA' COOPERATIVA SOCIALE - ONLUS;Z9232E71CB;SALDO Fatt.n. 2022/00017/PA  del 31/01/2022 SERVIZIO PULIZIA PREFABBRICATO E CENTRI ANZIANI GENNAIO 2022;03/03/2022;5765;4;322;1;Spese correnti;3;Acquisto di beni e servizi;2;Acquisto di servizi;13;Servizi ausiliari per il funzionamento dell'ente;2;Servizi di pulizia e lavanderia;07/03/2022
410;1;9999999;-2.546,14;3.928,40;I TIGLI2 SOCIETA' COOPERATIVA SOCIALE - ONLUS;ZFA32E8019;SALDO Fatt.n. 2022/00025/PA  del 31/01/2022 STORNO FATTURA N. 2021/00609/PA DEL 31.12.2021;03/03/2022;2935;3;323;1;Spese correnti;3;Acquisto di beni e servizi;2;Acquisto di servizi;13;Servizi ausiliari per il funzionamento dell'ente;2;Servizi di pulizia e lavanderia;07/03/2022
410;2;9999999;1.382,26;3.928,40;I TIGLI2 SOCIETA' COOPERATIVA SOCIALE - ONLUS;ZFA32E8019;SALDO Fatt.n. 2021/00603/PA  del 31/12/2021 SERVIZIO PULIZIA PALESTRE DICEMBRE 2021;03/03/2022;2935;3;323;1;Spese correnti;3;Acquisto di beni e servizi;2;Acquisto di servizi;13;Servizi ausiliari per il funzionamento dell'ente;2;Servizi di pulizia e lavanderia;07/03/2022
410;3;9999999;2.546,14;3.928,40;I TIGLI2 SOCIETA' COOPERATIVA SOCIALE - ONLUS;ZFA32E8019;SALDO Fatt.n. 2021/00609/PA  del 31/12/2021 SERVIZIO PULIZIA PALESTRE NOVEMBRE-DICEMBRE 2021;03/03/2022;2935;3;323;1;Spese correnti;3;Acquisto di beni e servizi;2;Acquisto di servizi;13;Servizi ausiliari per il funzionamento dell'ente;2;Servizi di pulizia e lavanderia;07/03/2022
410;4;9999999;2.546,14;3.928,40;I TIGLI2 SOCIETA' COOPERATIVA SOCIALE - ONLUS;ZFA32E8019;SALDO Fatt.n. 2021/00602/PA  del 31/12/2021 SERVIZIO PULIZIA PALESTRE DICEMBRE 2021;03/03/2022;2935;3;323;1;Spese correnti;3;Acquisto di beni e servizi;2;Acquisto di servizi;13;Servizi ausiliari per il funzionamento dell'ente;2;Servizi di pulizia e lavanderia;07/03/2022
411;1;9999999;1.382,26;3.306,20;I TIGLI2 SOCIETA' COOPERATIVA SOCIALE - ONLUS;ZFA32E8019;SALDO Fatt.n. 2022/00015/PA  del 31/01/2022 SERVIZIO PULIZIA PALESTRE GENNAIO 2022;03/03/2022;2935;3;323;1;Spese correnti;3;Acquisto di beni e servizi;2;Acquisto di servizi;13;Servizi ausiliari per il funzionamento dell'ente;2;Servizi di pulizia e lavanderia;07/03/2022
411;2;9999999;1.923,94;3.306,20;I TIGLI2 SOCIETA' COOPERATIVA SOCIALE - ONLUS;ZFA32E8019;SALDO Fatt.n. 2022/00014/PA  del 31/01/2022 SERVIZIO PULIZIA PALESTRE GENNAIO 2022;03/03/2022;2935;3;323;1;Spese correnti;3;Acquisto di beni e servizi;2;Acquisto di servizi;13;Servizi ausiliari per il funzionamento dell'ente;2;Servizi di pulizia e lavanderia;07/03/2022
412;1;9999999;1.908,08;1.908,08;I TIGLI2 SOCIETA' COOPERATIVA SOCIALE - ONLUS;ZE3345CFE5;SALDO Fatt.n. 2022/00032/PA  del 31/01/2022 SERVIZIO LOGISTICA E MANUTENZIONE PATRIMONIO GENNAIO 2022;03/03/2022;5910;4;554;1;Spese correnti;3;Acquisto di beni e servizi;2;Acquisto di servizi;9;Manutenzione ordinaria e riparazioni;11;Manutenzione ordinaria e riparazioni di altri beni materiali;07/03/2022
413;1;9999999;854;854;I TIGLI2 SOCIETA' COOPERATIVA SOCIALE - ONLUS;ZB234A68FA;SALDO Fatt.n. 2022/00027/PA  del 31/01/2022 SERVIZIO PULIZIA EXTRA LOCALI SCUOLA ELEMENTARE FALZE';03/03/2022;2171;2;624;1;Spese correnti;3;Acquisto di beni e servizi;2;Acquisto di servizi;13;Servizi ausiliari per il funzionamento dell'ente;2;Servizi di pulizia e lavanderia;07/03/2022
414;1;9999999;164,27;164,27;CL.AN DI MUNDICI SRL;Z1430F2E95;SALDO Fatt.n. 92026  del 31/01/2022 FORNITURA LIBRI PER BIBLIOTECA;03/03/2022;3100;0;124;1;Spese correnti;3;Acquisto di beni e servizi;1;Acquisto di beni;1;Giornali, riviste e pubblicazioni;2;Pubblicazioni;07/03/2022
415;1;9999999;231,8;231,8;ABACO S.P.A.;ZDB321B9B9;SALDO Fatt.n. 2022140000852  del 25/02/2022 SERVIZIO GESTIONE PARCHEGGI E AREE SOSTA PERIODO 01.07.2021 - 31.10.2021.;03/03/2022;1091;0;254;1;Spese correnti;3;Acquisto di beni e servizi;2;Acquisto di servizi;3;Aggi di riscossione;999;Altri aggi di riscossione n.a.c.;07/03/2022
416;1;9999999;9.889,00;9.889,00;SOLIGO VIAGGI SAS DI SCAPOL GIUSEPPINA & C.;7965830ADC;SALDO Fatt.n. PA/008  del 28/02/2022 SERVIZIO TRASPORTO SCOLASTICO FEBBRAIO 2022;03/03/2022;2730;0;408;1;Spese correnti;3;Acquisto di beni e servizi;2;Acquisto di servizi;15;Contratti di servizio pubblico;2;Contratti di servizio di trasporto scolastico;07/03/2022
417;1;9999999;707,6;707,6;MAGGIOLI SPA;ZE634C6A0D;SALDO Fatt.n. 0002107022  del 15/02/2022 SERVIZIO INTERNET - AREA SERVIZI DEMOGRAFICI ANNO 2022;03/03/2022;820;1;12;1;Spese correnti;3;Acquisto di beni e servizi;2;Acquisto di servizi;99;Altri servizi;999;Altri servizi diversi n.a.c.;07/03/2022
418;1;9999999;99;99;CENTRO STUDI AMMINISTRATIVI DELLA MARCA TREVIGIANA; ;ACCONTO Fatt.n. 82/2022  del 25/02/2022 PARTECIPAZIONE E ACQUISTO VIDEOREGISTRAZIONE CORSO APPROFONDIMENTI SULLA PROCEDURA DI VINCA;03/03/2022;310;0;34;1;Spese correnti;3;Acquisto di beni e servizi;2;Acquisto di servizi;4;Acquisto di servizi per formazione e addestramento del personale dell'ente;999;Acquisto di servizi per altre spese per formazione e addestramento n.a.c.;07/03/2022
419;1;9999999;145;145;CENTRO STUDI AMMINISTRATIVI DELLA MARCA TREVIGIANA; ;"SALDO Fatt.n. 82/2022  del 25/02/2022 PARTECIPAZIONE E ACQUISTO VIDEOREGISTRAZIONE CORSO ""APPROFONDIMENTI SULLA PROCEDURA DI VINCA""";03/03/2022;310;0;483;1;Spese correnti;3;Acquisto di beni e servizi;2;Acquisto di servizi;4;Acquisto di servizi per formazione e addestramento del personale dell'ente;999;Acquisto di servizi per altre spese per formazione e addestramento n.a.c.;07/03/2022
420;1;9999999;200;200;CENTRO STUDI AMMINISTRATIVI DELLA MARCA TREVIGIANA; ;SALDO Fatt.n. 81/2022  del 25/02/2022 PARTECIPAZIONE DIPENDENTE CORSO DI FORMAZIONE MARCACONTABILE 2021-INSIEME PER LAVORARE MEGLIO;03/03/2022;310;0;86;1;Spese correnti;3;Acquisto di beni e servizi;2;Acquisto di servizi;4;Acquisto di servizi per formazione e addestramento del personale dell'ente;999;Acquisto di servizi per altre spese per formazione e addestramento n.a.c.;07/03/2022
421;1;9999999;100;100;CENTRO STUDI AMMINISTRATIVI DELLA MARCA TREVIGIANA; ;SALDO Fatt.n. 80/2022  del 25/02/2022 PARTECIPAZIONE DIPENDENTI CORSI FORMAZIONE;03/03/2022;310;0;217;1;Spese correnti;3;Acquisto di beni e servizi;2;Acquisto di servizi;4;Acquisto di servizi per formazione e addestramento del personale dell'ente;999;Acquisto di servizi per altre spese per formazione e addestramento n.a.c.;07/03/2022
422;1;9999999;170,8;170,8;CENTRO STUDI AMMINISTRATIVI DELLA MARCA TREVIGIANA; ;SALDO Fatt.n. 79/2022  del 25/02/2022 ACQUISTO VIDEOREGISTRAZIONE CORSO DEL 30.11.2021;03/03/2022;310;0;477;1;Spese correnti;3;Acquisto di beni e servizi;2;Acquisto di servizi;4;Acquisto di servizi per formazione e addestramento del personale dell'ente;999;Acquisto di servizi per altre spese per formazione e addestramento n.a.c.;07/03/2022
423;1;9999999;748,8;748,8;CEL NETWORK SRL;ZE62BF2E49;SALDO Fatt.n. 386  del 23/02/2022 ABBONAMENTO ANNO 2022 - PAWEB + MODULISTICA COMPLETA;03/03/2022;420;0;57;1;Spese correnti;3;Acquisto di beni e servizi;1;Acquisto di beni;1;Giornali, riviste e pubblicazioni;2;Pubblicazioni;07/03/2022
424;1;9999999;1.111,92;2.992,97;DOLOMITI ENERGIA S.P.A.;ZA330DC41D;SALDO Fatt.n. 42200788485  del 28/02/2022 FORNITURA GAS IMPIANTI SPORTIVI FONTIGO GENNAIO 2022;03/03/2022;5290;2;85;1;Spese correnti;3;Acquisto di beni e servizi;2;Acquisto di servizi;5;Utenze e canoni;6;Gas;07/03/2022
424;2;9999999;1.881,05;2.992,97;DOLOMITI ENERGIA S.P.A.;ZA330DC41D;SALDO Fatt.n. 42200788486  del 28/02/2022 FORNITURA GAS IMPIANTI SPORTIVI SERNAGLIA GENNAIO 2022;03/03/2022;5290;2;85;1;Spese correnti;3;Acquisto di beni e servizi;2;Acquisto di servizi;5;Utenze e canoni;6;Gas;07/03/2022
425;1;9999999;137,15;137,15;KYOCERA DOCUMENT SOLUTIONS ITALIA S.P.A.;Z232CB440D;ACCONTO Fatt.n. 1010747210  del 25/02/2022 CANONE NOLEGGIO FOTOCOPIATRICE UFFICIO SEGRETERIA PERIODO 26.01.2021 - 25.02.2022;03/03/2022;340;3;165;1;Spese correnti;3;Acquisto di beni e servizi;2;Acquisto di servizi;7;Utilizzo di beni di terzi;8;Noleggi di impianti e macchinari;07/03/2022
426;1;9999999;274,31;274,31;KYOCERA DOCUMENT SOLUTIONS ITALIA S.P.A.;Z232CB440D;SALDO Fatt.n. 1010747210  del 25/02/2022 CANONE NOLEGGIO FOTOCOPIATRICE UFFICIO SEGRETERIA PERIODO 26.01.2021 - 25.02.2022;03/03/2022;340;3;165;1;Spese correnti;3;Acquisto di beni e servizi;2;Acquisto di servizi;7;Utilizzo di beni di terzi;8;Noleggi di impianti e macchinari;07/03/2022
427;1;9999999;1.162,05;1.162,05;MG SAS DI MANIGHETTI KATIA E ALBERTO & C.;Z2534CE87A;SALDO Fatt.n. 1I-204  del 21/02/2022 FORNITURA CARTA F.TO A4 + A3;03/03/2022;340;1;19;1;Spese correnti;3;Acquisto di beni e servizi;1;Acquisto di beni;2;Altri beni di consumo;1;Carta, cancelleria e stampati;07/03/2022
428;1;9999999;976;976;GRAFICHE BRONCA SRL;Z4134F781D;SALDO Fatt.n. 2/S  del 28/02/2022 FORNITURA CARTA E BUSTE INTESTATE CON RILIEVO A SECCO;03/03/2022;340;1;31;1;Spese correnti;3;Acquisto di beni e servizi;1;Acquisto di beni;2;Altri beni di consumo;1;Carta, cancelleria e stampati;07/03/2022
429;1;9999999;524,6;524,6;TEAM UFFICIO SRL;Z823505592;SALDO Fatt.n. 29/FE  del 26/02/2022 SOFTWARE BACKUP ANNO 2022;03/03/2022;445;1;33;1;Spese correnti;3;Acquisto di beni e servizi;2;Acquisto di servizi;7;Utilizzo di beni di terzi;6;Licenze d'uso per software;07/03/2022
430;1;9999999;959,18;6.066,56;A2A ENERGIA S.P.A.; ;SALDO Fatt.n. 822000039930  del 21/02/2022 FORNITURA ENERGIA ELETTRICA DAL 01.11.2021 AL 31.01.2022 POD IT001E34221947;03/03/2022;6000;0;48;1;Spese correnti;3;Acquisto di beni e servizi;2;Acquisto di servizi;5;Utenze e canoni;4;Energia elettrica;07/03/2022
430;2;9999999;1.472,95;6.066,56;A2A ENERGIA S.P.A.; ;SALDO Fatt.n. 822000042329  del 24/02/2022 FORNITURA ENERGIA ELETTRICA GENNAIO 2022 POD IT001E00058577 Contatore 12E5F552101012216 kWh 4175;03/03/2022;6000;0;48;1;Spese correnti;3;Acquisto di beni e servizi;2;Acquisto di servizi;5;Utenze e canoni;4;Energia elettrica;07/03/2022
430;3;9999999;1.704,05;6.066,56;A2A ENERGIA S.P.A.; ;SALDO Fatt.n. 822000042153  del 24/02/2022 FORNITURA ENERGIA ELETTRICA GENNAIO 2022 POD IT001E00058548 Contatore 05E1F552100516439 kWh 4847;03/03/2022;6000;0;48;1;Spese correnti;3;Acquisto di beni e servizi;2;Acquisto di servizi;5;Utenze e canoni;4;Energia elettrica;07/03/2022
430;4;9999999;1.930,38;6.066,56;A2A ENERGIA S.P.A.; ;SALDO Fatt.n. 822000041044  del 22/02/2022 FORNITURA ENERGIA ELETTRICA GENNAIO 2022 POD IT001E00058556 Contatore 08E5F552100405882 kWh 5471;03/03/2022;6000;0;48;1;Spese correnti;3;Acquisto di beni e servizi;2;Acquisto di servizi;5;Utenze e canoni;4;Energia elettrica;07/03/2022
431;1;9999999;93,94;93,94;INFOCERT S.P.A.;ZA33546CC8;SALDO Fatt.n. 1221000538  del 28/02/2022 FORNITURA BUSINESS KEY LITE RICONOSCIMENTO WEB - Cod. Cliente: 502256;03/03/2022;440;0;74;1;Spese correnti;3;Acquisto di beni e servizi;2;Acquisto di servizi;19;Servizi informatici e di telecomunicazioni;999;Altri servizi informatici e di telecomunicazioni n.a.c.;07/03/2022
433;1;9999999;1,44;23,02;DIVERSI C/POS; ;COMUNE DI SERNAGLIA DELLA BATT-SPESE TENUTA POS - COMMISSIONI DEL 03/02/2022 (P. 3 -R. del 04/02/2022);14/03/2022;450;0;93;1;Spese correnti;3;Acquisto di beni e servizi;2;Acquisto di servizi;17;Servizi finanziari;999;Spese per servizi finanziari n.a.c.;16/03/2022
433;2;9999999;4,22;23,02;DIVERSI C/POS; ;COMUNE DI SERNAGLIA DELLA BATT-SPESE TENUTA POS - COMMISSIONI DAL 05/01/2022 AL 06/01/2022 (P. 1 -R. del 07/01/2022);14/03/2022;450;0;93;1;Spese correnti;3;Acquisto di beni e servizi;2;Acquisto di servizi;17;Servizi finanziari;999;Spese per servizi finanziari n.a.c.;16/03/2022
433;3;9999999;17,36;23,02;DIVERSI C/POS; ;COMUNE DI SERNAGLIA DELLA BATT-SPESE TENUTA POS - COMMISSIONI DEL 10/01/2022 (P. 2 -R. del 11/01/2022);14/03/2022;450;0;93;1;Spese correnti;3;Acquisto di beni e servizi;2;Acquisto di servizi;17;Servizi finanziari;999;Spese per servizi finanziari n.a.c.;16/03/2022
434;1;9999999;93.706,84;93.706,84;AZIENDA ULSS N. 2 MARCA TREVIGIANA; ;LIQUIDAZIONE QUOTA GESTIONE ASSOCIATA SERVIZI SOCIALI 1 SEMESTRE 2022;16/03/2022;5800;0;110;1;Spese correnti;4;Trasferimenti correnti;1;Trasferimenti correnti a Amministrazioni Pubbliche;2;Trasferimenti correnti a Amministrazioni Locali;11;Trasferimenti correnti a Aziende sanitarie locali  n.a.f.;18/03/2022
435;1;9999999;7.500,00;7.500,00;A.S.D. FONTIGO; ;LIQUIDAZIONE 1 RATA CONTRIBUTO PER LAVORI MANUTENZIONE STRAORDINARIA TERRENO DI GIOCO CAMPO TAMBURELLO FONTIGO;16/03/2022;5330;0;502;1;Spese correnti;4;Trasferimenti correnti;4;Trasferimenti correnti a Istituzioni Sociali Private;1;Trasferimenti correnti a Istituzioni Sociali Private;1;Trasferimenti correnti a Istituzioni Sociali Private;18/03/2022
436;1;9999999;960;960;IC SERNAGLIA DELLA BATTAGLIA; ;LIQUIDAZIONE CONTRIBUTO LETTERA B) CONVENZIONE PER GESTIONE FUNZIONI MISTE ANNO SCOLASTICO 2020/2021;16/03/2022;2580;0;569;1;Spese correnti;4;Trasferimenti correnti;1;Trasferimenti correnti a Amministrazioni Pubbliche;1;Trasferimenti correnti a Amministrazioni Centrali;2;Trasferimenti correnti a Ministero dell'Istruzione - Istituzioni scolastiche;18/03/2022
437;1;9999999;1.700,00;1.700,00;A.S.D. ATLETICA SERNAGLIA; ;LIQUIDAZIONE CONTRIBUTO PER COLLABORAZIONE ORGANIZZAZIONE  CONFERENZA DONNE DI SPORT ANNO 2022;16/03/2022;3330;0;118;1;Spese correnti;4;Trasferimenti correnti;4;Trasferimenti correnti a Istituzioni Sociali Private;1;Trasferimenti correnti a Istituzioni Sociali Private;1;Trasferimenti correnti a Istituzioni Sociali Private;18/03/2022
438;1;9999999;3.000,00;8.407,09;A.S.D. UNION QDP; ;LIQUIDAZIONE CONTRIBUTO PER ATTUAZIONE MISURE CONTENIMENTO E CONTRASTO EMERGENZA EPIDEMIOLOGICA DA COVID 19;16/03/2022;5020;1;535;1;Spese correnti;4;Trasferimenti correnti;4;Trasferimenti correnti a Istituzioni Sociali Private;1;Trasferimenti correnti a Istituzioni Sociali Private;1;Trasferimenti correnti a Istituzioni Sociali Private;18/03/2022
438;2;9999999;356,29;8.407,09;A.S.D. VOLLEY PIAVE; ;LIQUIDAZIONE CONTRIBUTO PER ATTUAZIONE MISURE CONTENIMENTO E CONTRASTO EMERGENZA EPIDEMIOLOGICA DA COVID 19;16/03/2022;5020;1;535;1;Spese correnti;4;Trasferimenti correnti;4;Trasferimenti correnti a Istituzioni Sociali Private;1;Trasferimenti correnti a Istituzioni Sociali Private;1;Trasferimenti correnti a Istituzioni Sociali Private;18/03/2022
438;3;9999999;3.000,00;8.407,09;ASCD MITTICI; ;LIQUIDAZIONE CONTRIBUTO PER ATTUAZIONE MISURE CONTENIMENTO E CONTRASTO EMERGENZA EPIDEMIOLOGICA DA COVID 19;16/03/2022;5020;1;535;1;Spese correnti;4;Trasferimenti correnti;4;Trasferimenti correnti a Istituzioni Sociali Private;1;Trasferimenti correnti a Istituzioni Sociali Private;1;Trasferimenti correnti a Istituzioni Sociali Private;18/03/2022
438;4;9999999;292,8;8.407,09;ASSOCIAZIONE FESTEGGIAMENTI VILLANOVA; ;LIQUIDAZIONE CONTRIBUTO PER ATTUAZIONE MISURE CONTENIMENTO E CONTRASTO EMERGENZA EPIDEMIOLOGICA DA COVID 19;16/03/2022;5020;1;535;1;Spese correnti;4;Trasferimenti correnti;4;Trasferimenti correnti a Istituzioni Sociali Private;1;Trasferimenti correnti a Istituzioni Sociali Private;1;Trasferimenti correnti a Istituzioni Sociali Private;18/03/2022
438;5;9999999;828;8.407,09;CENTRO RICREATIVO ANZIANI FALZE' DI PIAVE; ;LIQUIDAZIONE CONTRIBUTO PER ATTUAZIONE MISURE CONTENIMENTO E CONTRASTO EMERGENZA EPIDEMIOLOGICA DA COVID 19;16/03/2022;5020;1;535;1;Spese correnti;4;Trasferimenti correnti;4;Trasferimenti correnti a Istituzioni Sociali Private;1;Trasferimenti correnti a Istituzioni Sociali Private;1;Trasferimenti correnti a Istituzioni Sociali Private;18/03/2022
438;6;9999999;420;8.407,09;VOLONTARI D'EUROPA - O.D.V.; ;LIQUIDAZIONE CONTRIBUTO PER ATTUAZIONE MISURE CONTENIMENTO E CONTRASTO EMERGENZA EPIDEMIOLOGICA DA COVID 19;16/03/2022;5020;1;535;1;Spese correnti;4;Trasferimenti correnti;4;Trasferimenti correnti a Istituzioni Sociali Private;1;Trasferimenti correnti a Istituzioni Sociali Private;1;Trasferimenti correnti a Istituzioni Sociali Private;18/03/2022
438;7;9999999;510;8.407,09;VOLONTARI D'EUROPA SPORT & MOTORI ASDCR; ;LIQUIDAZIONE CONTRIBUTO PER ATTUAZIONE MISURE CONTENIMENTO E CONTRASTO EMERGENZA EPIDEMIOLOGICA DA COVID 19;16/03/2022;5020;1;535;1;Spese correnti;4;Trasferimenti correnti;4;Trasferimenti correnti a Istituzioni Sociali Private;1;Trasferimenti correnti a Istituzioni Sociali Private;1;Trasferimenti correnti a Istituzioni Sociali Private;18/03/2022
439;1;9999999;360;360;ASSOC. INTERNATIONAL ORDER KNIGHTS OF THE THUNDERBOLD COMMENDA DI SERNAGLIA; ;LIQUIDAZIONE CONTRIBUTO PER ATTUAZIONE MISURE CONTENIMENTO E CONTRASTO EMERGENZA EPIDEMIOLOGICA DA COVID 19;16/03/2022;5020;1;535;1;Spese correnti;4;Trasferimenti correnti;4;Trasferimenti correnti a Istituzioni Sociali Private;1;Trasferimenti correnti a Istituzioni Sociali Private;1;Trasferimenti correnti a Istituzioni Sociali Private;22/03/2022
440;1;9999999;18.862,00;18.862,00;AZIENDA ULSS N. 2 MARCA TREVIGIANA; ;SALDO Fatt.n. 22-709-00014  del 28/02/2022 SPESA RICOVERO PERSONE DISABILI PRESSO COMUNITA ALLOGGIA ANNO 2021;16/03/2022;5610;2;359;1;Spese correnti;3;Acquisto di beni e servizi;2;Acquisto di servizi;99;Altri servizi;999;Altri servizi diversi n.a.c.;18/03/2022
441;1;9999999;2.659,28;2.659,28;EURORISTORAZIONE SRL;88454990B2;SALDO Fatt.n. 22CPA00471  del 31/01/2022 FORNITURA PASTI CALDI A DOMICILIO GENNAIO 2022;16/03/2022;5745;0;368;1;Spese correnti;3;Acquisto di beni e servizi;2;Acquisto di servizi;14;Servizi di ristorazione;999;Altri servizi di ristorazione;18/03/2022
442;1;9999999;939,96;939,96;EURORISTORAZIONE SRL;887133593A;SALDO Fatt.n. 22CPA00319  del 31/01/2022 FORNITURA PASTI INSEGNANTI GENNAIO 2022;16/03/2022;2740;0;369;1;Spese correnti;3;Acquisto di beni e servizi;2;Acquisto di servizi;14;Servizi di ristorazione;999;Altri servizi di ristorazione;18/03/2022
443;1;9999999;3.500,00;3.500,00;INSIEME SI PUO' - SOCIETA' COOPERATIVA SOCIALE;7695221940;"ACCONTO Fatt.n. 288/S  del 17/02/2022 QUOTA PROGETTO ""P.U. - PARTECIPIAMO UNITI PER L'INCLUSIONE SOCIALE""";16/03/2022;5777;0;605;1;Spese correnti;4;Trasferimenti correnti;4;Trasferimenti correnti a Istituzioni Sociali Private;1;Trasferimenti correnti a Istituzioni Sociali Private;1;Trasferimenti correnti a Istituzioni Sociali Private;18/03/2022
444;1;9999999;14.834,57;14.834,57;INSIEME SI PUO' - SOCIETA' COOPERATIVA SOCIALE;7695221940;"SALDO Fatt.n. 288/S  del 17/02/2022 QUOTA PROGETTO ""P.U. - PARTECIPIAMO UNITI PER L'INCLUSIONE SOCIALE""";16/03/2022;5777;0;605;1;Spese correnti;4;Trasferimenti correnti;4;Trasferimenti correnti a Istituzioni Sociali Private;1;Trasferimenti correnti a Istituzioni Sociali Private;1;Trasferimenti correnti a Istituzioni Sociali Private;18/03/2022
445;1;9999999;1.402,00;1.402,00;ISTITUTO BON BOZZOLLA - I.P.A.B.; ;SALDO Fatt.n. 24/E  del 28/02/2022 RETTA RICOVERO B.G. FEBBRAIO 2022;16/03/2022;5610;4;22;1;Spese correnti;3;Acquisto di beni e servizi;2;Acquisto di servizi;99;Altri servizi;999;Altri servizi diversi n.a.c.;18/03/2022
446;1;9999999;425,25;425,25;COOPERATIVA ITACA SOC.COOP.SOC.ONLUS;Z3134E3CFE;SALDO Fatt.n. 454/PA  del 28/02/2022 SERVIZIO EDUCATIVO MINORE A DOMICILIO GENNAIO E FEBBRAIO 2022;16/03/2022;5025;0;24;1;Spese correnti;3;Acquisto di beni e servizi;2;Acquisto di servizi;99;Altri servizi;999;Altri servizi diversi n.a.c.;18/03/2022
447;1;9999999;2.598,75;5.327,44;CENTRO SERVIZI ASSOCIATI - COOPERATIVA SOCIALE ONLUS;9043086EA1;SALDO Fatt.n. 18/E  del 10/02/2022 SERVIZIO ASSISTENZA DOMICILIARE GENNAIO 2022;16/03/2022;5750;0;25;1;Spese correnti;3;Acquisto di beni e servizi;2;Acquisto di servizi;99;Altri servizi;999;Altri servizi diversi n.a.c.;18/03/2022
447;2;9999999;2.728,69;5.327,44;CENTRO SERVIZI ASSOCIATI - COOPERATIVA SOCIALE ONLUS;9043086EA1;SALDO Fatt.n. 32/E  del 28/02/2022 SERVIZIO ASSISTENZA DOMICILIARE FEBBRAIO 2022;16/03/2022;5750;0;25;1;Spese correnti;3;Acquisto di beni e servizi;2;Acquisto di servizi;99;Altri servizi;999;Altri servizi diversi n.a.c.;18/03/2022
448;1;9999999;1.602,48;1.602,48;ISTITUTI POLESANI SRL; ;SALDO Fatt.n. 128/E  del 28/02/2022 RETTA RICOVERO L.P. FEBBRAIO 2022;16/03/2022;5610;2;26;1;Spese correnti;3;Acquisto di beni e servizi;2;Acquisto di servizi;99;Altri servizi;999;Altri servizi diversi n.a.c.;18/03/2022
449;1;9999999;524;524;SALUMI DE STEFANI S.R.L.;Z23349F304;SALDO Fatt.n. 239/S  del 28/02/2022 FORNITURA PASTI DIPENDENTI COMUNALI FEBBRAIO 2022;16/03/2022;6510;0;598;1;Spese correnti;3;Acquisto di beni e servizi;2;Acquisto di servizi;14;Servizi di ristorazione;999;Altri servizi di ristorazione;18/03/2022
450;1;9999999;97,6;1.232,20;ASCO TLC S.P.A.;ZCE311E6D8;SALDO Fatt.n. 09005263  del 28/02/2022 CANONE SERVIZIO CONNETTIVITA TELECAMERE AL SERVER DI VIDEOSORVEGLIANZA FEBBRAIO 2022;16/03/2022;1860;0;145;1;Spese correnti;3;Acquisto di beni e servizi;2;Acquisto di servizi;5;Utenze e canoni;999;Utenze e canoni per altri servizi n.a.c.;18/03/2022
450;2;9999999;549;1.232,20;ASCO TLC S.P.A.;ZCE311E6D8;SALDO Fatt.n. 09005261  del 28/02/2022 CANONE SERVIZIO HOUSING DEL SERVER PER IL SISTEMA DI VIDEOSORVEGLIANZA GENNAIO FEBBRAIO 2022;16/03/2022;1860;0;145;1;Spese correnti;3;Acquisto di beni e servizi;2;Acquisto di servizi;5;Utenze e canoni;999;Utenze e canoni per altri servizi n.a.c.;18/03/2022
450;3;9999999;585,6;1.232,20;ASCO TLC S.P.A.;ZCE311E6D8;SALDO Fatt.n. 09005262  del 28/02/2022 CANONE SERVIZIO CONNETTIVITA TELECAMERE AL SERVER DI VIDEOSORVEGLIANZA FEBBRAIO 2022;16/03/2022;1860;0;145;1;Spese correnti;3;Acquisto di beni e servizi;2;Acquisto di servizi;5;Utenze e canoni;999;Utenze e canoni per altri servizi n.a.c.;18/03/2022
451;1;9999999;144,61;144,61;SUPERBETON S.P.A.;Z8E2F99835;ACCONTO Fatt.n. VP/1129  del 31/12/2021 FORNITURA ASFALTO A FREDDO PLASTICO;16/03/2022;5910;1;165;1;Spese correnti;3;Acquisto di beni e servizi;1;Acquisto di beni;2;Altri beni di consumo;999;Altri beni e materiali di consumo n.a.c.;18/03/2022
452;1;9999999;74,99;74,99;SUPERBETON S.P.A.;Z8E2F99835;SALDO Fatt.n. VP/1129  del 31/12/2021 FORNITURA ASFALTO A FREDDO PLASTICO;16/03/2022;5910;1;103;1;Spese correnti;3;Acquisto di beni e servizi;1;Acquisto di beni;2;Altri beni di consumo;999;Altri beni e materiali di consumo n.a.c.;18/03/2022
453;1;9999999;477,43;477,43;ZANNONI SCAVI S.R.L.;Z21328E8F4;SALDO Fatt.n. 37  del 28/02/2022 FORNITURA SABBIA E GHIAIA;16/03/2022;5910;1;286;1;Spese correnti;3;Acquisto di beni e servizi;1;Acquisto di beni;2;Altri beni di consumo;999;Altri beni e materiali di consumo n.a.c.;18/03/2022
454;1;9999999;3.079,89;3.079,89;TOMIO EROS;ZF13292FB9;SALDO Fatt.n. FATTPA 2_22  del 09/03/2022 COMPETENZE GESTIONE DEL PIANO DI MONITORAGGIO DELLA DISCARICA S0 - PERIODO AGOSTO 2021 -GENNAIO 2022;16/03/2022;7874;0;289;2;Spese in conto capitale;2;Investimenti fissi lordi e acquisto di terreni;1;Beni materiali;9;Beni immobili;14;Opere per la sistemazione del suolo;18/03/2022
455;1;9999999;1.952,00;1.952,00;VALENTE MARINO;ZDE338EB45;SALDO Fatt.n. 5/00  del 28/02/2022 LAVORI POSA PENSILINA AUTOBUS PIAZZA ARDITI FALZE';16/03/2022;7764;0;407;2;Spese in conto capitale;2;Investimenti fissi lordi e acquisto di terreni;1;Beni materiali;9;Beni immobili;12;Infrastrutture stradali;18/03/2022
456;1;9999999;146,4;146,4;SAVNO S.R.L.;Z6833B75DF;SALDO Fatt.n. 50000017  del 11/02/2022 SERVIZIO SMATIMENTO TONER;16/03/2022;3750;0;430;1;Spese correnti;3;Acquisto di beni e servizi;2;Acquisto di servizi;99;Altri servizi;999;Altri servizi diversi n.a.c.;18/03/2022
457;1;9999999;1.342,00;1.342,00;BIOPROGRAMM SOCIETA' COOPERATIVA;Z121682945;ACCONTO Fatt.n. 43  del 09/03/2022 MONITORAGGIO BIOLOGICO (METODO I.B.E.) NEI CORSI DACQUA DELLE FONTANE BIANCHE;16/03/2022;3750;0;473;1;Spese correnti;3;Acquisto di beni e servizi;2;Acquisto di servizi;99;Altri servizi;999;Altri servizi diversi n.a.c.;18/03/2022
458;1;9999999;671;671;BIOPROGRAMM SOCIETA' COOPERATIVA;Z121682945;SALDO Fatt.n. 43  del 09/03/2022 MONITORAGGIO BIOLOGICO (METODO I.B.E.) NEI CORSI DACQUA DELLE FONTANE BIANCHE;16/03/2022;3750;0;473;1;Spese correnti;3;Acquisto di beni e servizi;2;Acquisto di servizi;99;Altri servizi;999;Altri servizi diversi n.a.c.;18/03/2022
459;1;9999999;1.908,08;1.908,08;I TIGLI2 SOCIETA' COOPERATIVA SOCIALE - ONLUS;ZE3345CFE5;SALDO Fatt.n. 2022/00087/PA  del 28/02/2022 SERVIZIO LOGISTICA E MANUTENZIONE PATRIMONIO FEBBRAIO 2022;16/03/2022;5910;4;554;1;Spese correnti;3;Acquisto di beni e servizi;2;Acquisto di servizi;9;Manutenzione ordinaria e riparazioni;11;Manutenzione ordinaria e riparazioni di altri beni materiali;18/03/2022
460;1;9999999;5.641,49;5.641,49;IGLO S.R.L.;Z62349A2EE;SALDO Fatt.n. FE-0071  del 10/03/2022 FORNITURA MICROFONI PALMARI - SOSTITUZIONE VIDEOPROIETTORE C/O SALA CONSIGLIO;16/03/2022;6630;2;581;2;Spese in conto capitale;2;Investimenti fissi lordi e acquisto di terreni;1;Beni materiali;5;Attrezzature;999;Attrezzature n.a.c.;18/03/2022
461;1;9999999;61;61;CARRARO ASCENSORI S.R.L.;Z632BCAFFD;SALDO Fatt.n. 161/PA  del 28/12/2021 INTERVENTO SU ASCENSORE C/O SCUOLA MEDIA;16/03/2022;2510;2;102;1;Spese correnti;3;Acquisto di beni e servizi;2;Acquisto di servizi;9;Manutenzione ordinaria e riparazioni;4;Manutenzione ordinaria e riparazioni di impianti e macchinari;18/03/2022
462;1;9999999;107,36;107,36;SICURITALIA IVRI S.P.A.;ZF1343B578;ACCONTO Fatt.n. 9117002114  del 23/02/2022 SERVIZIO VIGILANZA EDIFICI COMUNALI DICEMBRE 2021;16/03/2022;3305;2;491;1;Spese correnti;3;Acquisto di beni e servizi;2;Acquisto di servizi;99;Altri servizi;999;Altri servizi diversi n.a.c.;18/03/2022
463;1;9999999;141,52;141,52;SICURITALIA IVRI S.P.A.;ZF1343B578;ACCONTO Fatt.n. 9117002114  del 23/02/2022 SERVIZIO VIGILANZA EDIFICI COMUNALI DICEMBRE 2021;16/03/2022;355;1;492;1;Spese correnti;3;Acquisto di beni e servizi;2;Acquisto di servizi;13;Servizi ausiliari per il funzionamento dell'ente;999;Altri servizi ausiliari n.a.c.;18/03/2022
464;1;9999999;36,6;36,6;SICURITALIA IVRI S.P.A.;ZF1343B578;ACCONTO Fatt.n. 9117002114  del 23/02/2022 SERVIZIO VIGILANZA EDIFICI COMUNALI DICEMBRE 2021;16/03/2022;3060;3;493;1;Spese correnti;3;Acquisto di beni e servizi;2;Acquisto di servizi;13;Servizi ausiliari per il funzionamento dell'ente;999;Altri servizi ausiliari n.a.c.;18/03/2022
465;1;9999999;184,22;184,22;SICURITALIA IVRI S.P.A.;ZF1343B578;SALDO Fatt.n. 9117002114  del 23/02/2022 SERVIZIO VIGILANZA EDIFICI COMUNALI DICEMBRE 2021;16/03/2022;2355;3;494;1;Spese correnti;3;Acquisto di beni e servizi;2;Acquisto di servizi;13;Servizi ausiliari per il funzionamento dell'ente;999;Altri servizi ausiliari n.a.c.;18/03/2022
466;1;9999999;1.996,53;1.996,53;MICHELETTI SIMONE;Z14347C30C;SALDO Fatt.n. 27  del 28/02/2022 FORNITURA VESTIARIO PER POLIZIA LOCALE;16/03/2022;1750;0;555;1;Spese correnti;3;Acquisto di beni e servizi;1;Acquisto di beni;2;Altri beni di consumo;4;Vestiario;18/03/2022
467;1;9999999;110,86;110,86;ITALIANA PETROLI S.P.A.;ZD534C6964;SALDO Fatt.n. 9500327829  del 28/02/2022 FORNITURA CARBURANTE FEBBRAIO 2022 MEZZI SERVIZI SOCIALI TARGATA FM886TG;16/03/2022;5810;1;9;1;Spese correnti;3;Acquisto di beni e servizi;1;Acquisto di beni;2;Altri beni di consumo;2;Carburanti, combustibili e lubrificanti;18/03/2022
468;1;9999999;1.037,00;1.037,00;BANCA MONTE DEI PASCHI DI SIENA S.P.A.;ZCA2681F8C;SALDO Fatt.n. 3020010883  del 10/03/2022 COMPETENZE SERVIZIO TESORERIA 1 TRIMESTRE 2022;16/03/2022;450;0;2;1;Spese correnti;3;Acquisto di beni e servizi;2;Acquisto di servizi;17;Servizi finanziari;2;Oneri per servizio di tesoreria;17/03/2022
469;1;9999999;1.892,81;1.892,81;ABACO S.P.A.;8555333422;SALDO Fatt.n. 2022120001537  del 14/03/2022 AGGIO INCASSI ESPOSIZIONI PUBBLICITARIE FEBBRAIO 2022;16/03/2022;1270;1;20;1;Spese correnti;3;Acquisto di beni e servizi;2;Acquisto di servizi;3;Aggi di riscossione;999;Altri aggi di riscossione n.a.c.;18/03/2022
470;1;9999999;916,88;916,88;BEYFIN SPA;Z2030F38AE;SALDO Fatt.n. 728/73-2022  del 28/02/2022 FORNITURA GPL IMPIANTI SPORTIVI FALZE' 11.12.2021 - 14.02.022;16/03/2022;5290;2;93;1;Spese correnti;3;Acquisto di beni e servizi;2;Acquisto di servizi;5;Utenze e canoni;6;Gas;18/03/2022
471;1;9999999;1.740,24;1.740,24;ENEL ENERGIA SPA;870016641B;SALDO Fatt.n. 004205744587  del 07/03/2022 FORNITURA ENERGIA ELETTRICA FEBBRAIO 2022 - MUNICIPIO;16/03/2022;345;0;132;1;Spese correnti;3;Acquisto di beni e servizi;2;Acquisto di servizi;5;Utenze e canoni;4;Energia elettrica;18/03/2022
472;1;9999999;6,72;6,72;ENEL ENERGIA SPA;870016641B;SALDO Fatt.n. 004212957297  del 14/03/2022 FORNITURA ENERGIA ELETTRICA FEBBRAIO 2022 - CHIESETTA;16/03/2022;1080;0;133;1;Spese correnti;3;Acquisto di beni e servizi;2;Acquisto di servizi;5;Utenze e canoni;4;Energia elettrica;18/03/2022
473;1;9999999;2,4;1.527,03;ENEL ENERGIA SPA;870016641B;SALDO Fatt.n. 004205744590  del 07/03/2022 FORNITURA ENERGIA ELETTRICA FEBBRAIO 2022 - SCUOLE;16/03/2022;2350;0;134;1;Spese correnti;3;Acquisto di beni e servizi;2;Acquisto di servizi;5;Utenze e canoni;4;Energia elettrica;18/03/2022
473;2;9999999;488,13;1.527,03;ENEL ENERGIA SPA;870016641B;SALDO Fatt.n. 004205744591  del 07/03/2022 FORNITURA ENERGIA ELETTRICA FEBBRAIO 2022 - SCUOLE ELEMENTARI FALZE';16/03/2022;2350;0;134;1;Spese correnti;3;Acquisto di beni e servizi;2;Acquisto di servizi;5;Utenze e canoni;4;Energia elettrica;18/03/2022
473;3;9999999;1.036,50;1.527,03;ENEL ENERGIA SPA;870016641B;ACCONTO Fatt.n. 004205744586  del 07/03/2022 FORNITURA ENERGIA ELETTRICA FEBBRAIO 2022 - PALESTRA SERNAGLIA;16/03/2022;2350;0;134;1;Spese correnti;3;Acquisto di beni e servizi;2;Acquisto di servizi;5;Utenze e canoni;4;Energia elettrica;18/03/2022
474;1;9999999;863,75;863,75;ENEL ENERGIA SPA;870016641B;ACCONTO Fatt.n. 004205744586  del 07/03/2022 FORNITURA ENERGIA ELETTRICA FEBBRAIO 2022 - PALESTRA SERNAGLIA;16/03/2022;2520;0;135;1;Spese correnti;3;Acquisto di beni e servizi;2;Acquisto di servizi;5;Utenze e canoni;4;Energia elettrica;18/03/2022
475;1;9999999;321,2;4.483,85;ENEL ENERGIA SPA;870016641B;ACCONTO Fatt.n. 004205744585  del 07/03/2022 FORNITURA ENERGIA ELETTRICA FEBBRAIO 2022 - PALESTRA FALZE';16/03/2022;2930;0;136;1;Spese correnti;3;Acquisto di beni e servizi;2;Acquisto di servizi;5;Utenze e canoni;4;Energia elettrica;18/03/2022
475;2;9999999;605,38;4.483,85;ENEL ENERGIA SPA;870016641B;SALDO Fatt.n. 004212957296  del 14/03/2022 FORNITURA ENERGIA ELETTRICA FEBBRAIO 2022 - PALESTRA FONTIGO;16/03/2022;2930;0;136;1;Spese correnti;3;Acquisto di beni e servizi;2;Acquisto di servizi;5;Utenze e canoni;4;Energia elettrica;18/03/2022
475;3;9999999;1.064,13;4.483,85;ENEL ENERGIA SPA;870016641B;SALDO Fatt.n. 004205744586  del 07/03/2022 FORNITURA ENERGIA ELETTRICA FEBBRAIO 2022 - PALESTRA SERNAGLIA;16/03/2022;2930;0;136;1;Spese correnti;3;Acquisto di beni e servizi;2;Acquisto di servizi;5;Utenze e canoni;4;Energia elettrica;18/03/2022
475;4;9999999;1.138,79;4.483,85;ENEL ENERGIA SPA;870016641B;SALDO Fatt.n. 004205744585  del 07/03/2022 FORNITURA ENERGIA ELETTRICA FEBBRAIO 2022 - PALESTRA FALZE';16/03/2022;2930;0;136;1;Spese correnti;3;Acquisto di beni e servizi;2;Acquisto di servizi;5;Utenze e canoni;4;Energia elettrica;18/03/2022
475;5;9999999;1.354,35;4.483,85;ENEL ENERGIA SPA;870016641B;ACCONTO Fatt.n. 004205744586  del 07/03/2022 FORNITURA ENERGIA ELETTRICA FEBBRAIO 2022 - PALESTRA SERNAGLIA;16/03/2022;2930;0;136;1;Spese correnti;3;Acquisto di beni e servizi;2;Acquisto di servizi;5;Utenze e canoni;4;Energia elettrica;18/03/2022
476;1;9999999;81,86;81,86;ENEL ENERGIA SPA;870016641B;SALDO Fatt.n. 004205744592  del 07/03/2022 FORNITURA ENERGIA ELETTRICA FEBBRAIO 2022 - ANFITEATRO;16/03/2022;3112;0;137;1;Spese correnti;3;Acquisto di beni e servizi;2;Acquisto di servizi;5;Utenze e canoni;4;Energia elettrica;18/03/2022
477;1;9999999;7,37;41,09;ENEL ENERGIA SPA;870016641B;SALDO Fatt.n. 004205744589  del 07/03/2022 FORNITURA ENERGIA ELETTRICA FEBBRAIO 2022 - CIMITERO FONTIGO;16/03/2022;4145;0;138;1;Spese correnti;3;Acquisto di beni e servizi;2;Acquisto di servizi;5;Utenze e canoni;4;Energia elettrica;18/03/2022
477;2;9999999;14,14;41,09;ENEL ENERGIA SPA;870016641B;SALDO Fatt.n. 004206238777  del 08/03/2022 FORNITURA ENERGIA ELETTRICA FEBBRAIO 2022 - CIMITERO SERNAGLIA;16/03/2022;4145;0;138;1;Spese correnti;3;Acquisto di beni e servizi;2;Acquisto di servizi;5;Utenze e canoni;4;Energia elettrica;18/03/2022
477;3;9999999;19,58;41,09;ENEL ENERGIA SPA;870016641B;SALDO Fatt.n. 004212957293  del 14/03/2022 FORNITURA ENERGIA ELETTRICA FEBBRAIO 2022 - CIMITERO FALZE';16/03/2022;4145;0;138;1;Spese correnti;3;Acquisto di beni e servizi;2;Acquisto di servizi;5;Utenze e canoni;4;Energia elettrica;18/03/2022
478;1;9999999;223,38;1.357,15;ENEL ENERGIA SPA;870016641B;SALDO Fatt.n. 004205744584  del 07/03/2022 FORNITURA ENERGIA ELETTRICA FEBBRAIO 2022 - IMPIANTI SPORTIVI FONTIGO;16/03/2022;5290;2;139;1;Spese correnti;3;Acquisto di beni e servizi;2;Acquisto di servizi;5;Utenze e canoni;4;Energia elettrica;18/03/2022
478;2;9999999;237,94;1.357,15;ENEL ENERGIA SPA;870016641B;SALDO Fatt.n. 004205744588  del 07/03/2022 FORNITURA ENERGIA ELETTRICA FEBBRAIO 2022 - IMPIANTI SPORTIVI FALZE';16/03/2022;5290;2;139;1;Spese correnti;3;Acquisto di beni e servizi;2;Acquisto di servizi;5;Utenze e canoni;4;Energia elettrica;18/03/2022
478;3;9999999;895,83;1.357,15;ENEL ENERGIA SPA;870016641B;SALDO Fatt.n. 004209775067  del 11/03/2022 FORNITURA ENERGIA ELETTRICA FEBBRAIO 2022 - IMPIANTI SPORTIVI SERNAGLIA;16/03/2022;5290;2;139;1;Spese correnti;3;Acquisto di beni e servizi;2;Acquisto di servizi;5;Utenze e canoni;4;Energia elettrica;18/03/2022
479;1;9999999;38,89;1.474,23;ENEL ENERGIA SPA;870016641B;SALDO Fatt.n. 004212957292  del 14/03/2022 FORNITURA ENERGIA ELETTRICA FEBBRAIO 2022 - CENTRO ANZIANI SERNAGLIA;16/03/2022;5760;0;140;1;Spese correnti;3;Acquisto di beni e servizi;2;Acquisto di servizi;5;Utenze e canoni;4;Energia elettrica;18/03/2022
479;2;9999999;228,47;1.474,23;ENEL ENERGIA SPA;870016641B;SALDO Fatt.n. 004209775068  del 11/03/2022 FORNITURA ENERGIA ELETTRICA FEBBRAIO 2022 - CENTRO ANZIANI SERNAGLIA POMPA CALORE;16/03/2022;5760;0;140;1;Spese correnti;3;Acquisto di beni e servizi;2;Acquisto di servizi;5;Utenze e canoni;4;Energia elettrica;18/03/2022
479;3;9999999;301,75;1.474,23;ENEL ENERGIA SPA;870016641B;SALDO Fatt.n. 004212957295  del 14/03/2022 FORNITURA ENERGIA ELETTRICA FEBBRAIO 2022 - CENTRO ANZIANI FALZE';16/03/2022;5760;0;140;1;Spese correnti;3;Acquisto di beni e servizi;2;Acquisto di servizi;5;Utenze e canoni;4;Energia elettrica;18/03/2022
479;4;9999999;905,12;1.474,23;ENEL ENERGIA SPA;870016641B;SALDO Fatt.n. 004205744583  del 07/03/2022 FORNITURA ENERGIA ELETTRICA FEBBRAIO 2022 - CENTRO ANZIANI FALZE' POMPA CALORE;16/03/2022;5760;0;140;1;Spese correnti;3;Acquisto di beni e servizi;2;Acquisto di servizi;5;Utenze e canoni;4;Energia elettrica;18/03/2022
480;1;9999999;23,08;23,08;ENEL ENERGIA SPA;870016641B;SALDO Fatt.n. 004212957294  del 14/03/2022 FORNITURA ENERGIA ELETTRICA FEBBRAIO 2022 - MUSIL;16/03/2022;3751;0;141;1;Spese correnti;3;Acquisto di beni e servizi;2;Acquisto di servizi;5;Utenze e canoni;4;Energia elettrica;18/03/2022
481;1;9999999;175,89;175,89;ENEL ENERGIA SPA;870016641B;SALDO Fatt.n. 004212957298  del 14/03/2022 FORNITURA ENERGIA ELETTRICA FEBBRAIO 2022 - DISCARICA;16/03/2022;4711;0;498;1;Spese correnti;3;Acquisto di beni e servizi;2;Acquisto di servizi;5;Utenze e canoni;4;Energia elettrica;18/03/2022
482;1;9999999;1.638,30;3.904,00;SAVNO S.R.L.;Z2C33940A3;ACCONTO Fatt.n. 50000021  del 04/03/2022 SERVIZIO RITIRO E AVVIO ALLO SMALTIMENTO MATERIALE DERIVANTE DAI LAVORI CIMITERIALI;16/03/2022;4187;0;408;1;Spese correnti;3;Acquisto di beni e servizi;2;Acquisto di servizi;99;Altri servizi;999;Altri servizi diversi n.a.c.;18/03/2022
482;2;9999999;2.265,70;3.904,00;SAVNO S.R.L.;Z2C33940A3;SALDO Fatt.n. 50000022  del 04/03/2022 SERVIZIO RITIRO E AVVIO ALLO SMALTIMENTO MATERIALE DERIVANTE DAI LAVORI CIMITERIALI;16/03/2022;4187;0;408;1;Spese correnti;3;Acquisto di beni e servizi;2;Acquisto di servizi;99;Altri servizi;999;Altri servizi diversi n.a.c.;18/03/2022
483;1;9999999;442,96;442,96;SAVNO S.R.L.;Z2C33940A3;SALDO Fatt.n. 50000021  del 04/03/2022 SERVIZIO RITIRO E AVVIO ALLO SMALTIMENTO MATERIALE DERIVANTE DAI LAVORI CIMITERIALI;16/03/2022;4187;0;89;1;Spese correnti;3;Acquisto di beni e servizi;2;Acquisto di servizi;99;Altri servizi;999;Altri servizi diversi n.a.c.;18/03/2022
484;1;9999999;549;549;ASCO TLC S.P.A.;ZE7339955B;SALDO Fatt.n. 09005264  del 28/02/2022 SERVIZIO CONNETTIVITA' FIBRA OTTICA UFFICI FEBBRAIO 2022;16/03/2022;345;0;426;1;Spese correnti;3;Acquisto di beni e servizi;2;Acquisto di servizi;5;Utenze e canoni;999;Utenze e canoni per altri servizi n.a.c.;18/03/2022
485;1;9999999;500;500;GALA S.P.A.;6106209B10;ACCONTO Fatt.n. E000008281  del 21/04/2020 CONGUAGLIO CONSUMI APRILE SETTEMBRE 2015 - PUBBLICA;16/03/2022;345;0;111;1;Spese correnti;3;Acquisto di beni e servizi;2;Acquisto di servizi;5;Utenze e canoni;4;Energia elettrica;18/03/2022
486;1;9999999;42,79;42,79;GALA S.P.A.;6106209B10;SALDO Fatt.n. E000015102  del 21/04/2020 CONGUAGLIO CONSUMI APRILE - SETTEMBRE 2015 - SCUOLE ELEMENTARE FALZE';16/03/2022;2350;0;112;1;Spese correnti;3;Acquisto di beni e servizi;2;Acquisto di servizi;5;Utenze e canoni;4;Energia elettrica;18/03/2022
487;1;9999999;8,65;245,1;GALA S.P.A.;6106209B10;ACCONTO Fatt.n. E000010399  del 21/04/2020 CONGUAGLIO CONSUMI APRILE SETTEMBRE 2015 - PALESTRA FALZE';16/03/2022;2930;0;113;1;Spese correnti;3;Acquisto di beni e servizi;2;Acquisto di servizi;5;Utenze e canoni;4;Energia elettrica;18/03/2022
487;2;9999999;30,65;245,1;GALA S.P.A.;6106209B10;SALDO Fatt.n. E000010399  del 21/04/2020 CONGUAGLIO CONSUMI APRILE SETTEMBRE 2015 - PALESTRA FALZE';16/03/2022;2930;0;113;1;Spese correnti;3;Acquisto di beni e servizi;2;Acquisto di servizi;5;Utenze e canoni;4;Energia elettrica;18/03/2022
487;3;9999999;90,55;245,1;GALA S.P.A.;6106209B10;ACCONTO Fatt.n. E000011261  del 21/04/2020 CONGUAGLIO CONSUMI APRILE SETTEMBRE 2015 - PALESTRA SERNAGLIA;16/03/2022;2930;0;113;1;Spese correnti;3;Acquisto di beni e servizi;2;Acquisto di servizi;5;Utenze e canoni;4;Energia elettrica;18/03/2022
487;4;9999999;115,25;245,1;GALA S.P.A.;6106209B10;SALDO Fatt.n. E000011261  del 21/04/2020 CONGUAGLIO CONSUMI APRILE SETTEMBRE 2015 - PALESTRA SERNAGLIA;16/03/2022;2930;0;113;1;Spese correnti;3;Acquisto di beni e servizi;2;Acquisto di servizi;5;Utenze e canoni;4;Energia elettrica;18/03/2022
488;1;9999999;57,01;1.269,79;GALA S.P.A.;6106209B10;SALDO Fatt.n. E000008283  del 21/04/2020 CONGUAGLIO CONSUMI SETTEMBRE 2015 - IMPIANTI SPORTIVI FONTIGO;16/03/2022;5290;2;114;1;Spese correnti;3;Acquisto di beni e servizi;2;Acquisto di servizi;5;Utenze e canoni;4;Energia elettrica;18/03/2022
488;2;9999999;169,64;1.269,79;GALA S.P.A.;6106209B10;SALDO Fatt.n. E000008282  del 21/04/2020 CONGUAGLIO CONSUMI APRILE SETTEMBRE 2015 - IMPIANTI SPORTIVI SERNAGLIA;16/03/2022;5290;2;114;1;Spese correnti;3;Acquisto di beni e servizi;2;Acquisto di servizi;5;Utenze e canoni;4;Energia elettrica;18/03/2022
488;3;9999999;1.043,14;1.269,79;GALA S.P.A.;6106209B10;SALDO Fatt.n. E000008281  del 21/04/2020 CONGUAGLIO CONSUMI APRILE SETTEMBRE 2015 - PUBBLICA;16/03/2022;5290;2;114;1;Spese correnti;3;Acquisto di beni e servizi;2;Acquisto di servizi;5;Utenze e canoni;4;Energia elettrica;18/03/2022
489;1;9999999;97,1;211,24;GALA S.P.A.;6106209B10;SALDO Fatt.n. E000015103  del 21/04/2020 CONGUAGLIO CONSUMI APRILE SETTEMBRE 2015 - CENTRO ANZIANI SERNAGLIA;16/03/2022;5760;0;115;1;Spese correnti;3;Acquisto di beni e servizi;2;Acquisto di servizi;5;Utenze e canoni;4;Energia elettrica;18/03/2022
489;2;9999999;114,14;211,24;GALA S.P.A.;6106209B10;SALDO Fatt.n. E000010400  del 21/04/2020 CONGUAGLIO CONSUMI APRILE SETTEMBRE 2015 - CENTRO ANZIANI FALZE';16/03/2022;5760;0;115;1;Spese correnti;3;Acquisto di beni e servizi;2;Acquisto di servizi;5;Utenze e canoni;4;Energia elettrica;18/03/2022
490;1;9999999;5.165,52;5.165,52;AMMINISTRATORI C/INDENNITA'; ;INDENNITA DI FUNZIONE AMMINISTRATORI MESE DI FEBBRAIO 2022;17/03/2022;20;0;61;1;Spese correnti;3;Acquisto di beni e servizi;2;Acquisto di servizi;1;Organi e incarichi istituzionali dell'amministrazione;1;Organi istituzionali dell'amministrazione - Indennità;24/03/2022
491;1;9999999;623;623;ISTITUTO NAZIONALE PREVIDENZA SOCIALE; ;ASPETTATIVA NON RETRIBUITA DEL SINDACO PER ESPLETAMENTO DEL MANDATO ELETTIVO - CONTRIBUTI MARZO 2022;17/03/2022;21;0;54;1;Spese correnti;3;Acquisto di beni e servizi;2;Acquisto di servizi;1;Organi e incarichi istituzionali dell'amministrazione;2;Organi istituzionali dell'amministrazione - Rimborsi;14/04/2022
563;1;9999999;369,38;369,38;MINISTERO INTERNO - TESORERIA DI ROMA; ;COMUNE DI SERNAGLIA DELLA BATTAGLIA CORRISPETTIVO RILASCIO N. 22 C.I.E. PERIODO 16.02.2022 - 28.02.2022;21/03/2022;432;0;13;1;Spese correnti;4;Trasferimenti correnti;1;Trasferimenti correnti a Amministrazioni Pubbliche;1;Trasferimenti correnti a Amministrazioni Centrali;1;Trasferimenti correnti a Ministeri;23/03/2022
564;1;9999999;453,33;453,33;MINISTERO INTERNO - TESORERIA DI ROMA; ;COMUNE DI SERNAGLIA DELLA BATTAGLIA CORRISPETTIVO RILASCIO N. 27 C.I.E. PERIODO 01.03.2022 - 15.03.2022;21/03/2022;432;0;13;1;Spese correnti;4;Trasferimenti correnti;1;Trasferimenti correnti a Amministrazioni Pubbliche;1;Trasferimenti correnti a Amministrazioni Centrali;1;Trasferimenti correnti a Ministeri;23/03/2022
565;1;9999999;3.000,00;3.000,00;ASSOCIAZIONE PIAZZE CREATIVE; ;LIQUIDAZIONE CONTRIBUTO INIZIATIVA CONCORSO A PREMI TIPREMIAMO ANNO 2021;21/03/2022;6300;0;596;1;Spese correnti;4;Trasferimenti correnti;4;Trasferimenti correnti a Istituzioni Sociali Private;1;Trasferimenti correnti a Istituzioni Sociali Private;1;Trasferimenti correnti a Istituzioni Sociali Private;23/03/2022
566;1;9999999;3.170,00;3.170,00;SUPERMECATI SALAMON S.A.S. DI SALAMOM IVAN & C.; ;RIMBORSO BUONI SPESA - 2021 - INTERVENTO SOLIDARIETA ALIMENTARE EMERGENZA SANITARIA COVID-19;21/03/2022;5440;0;614;1;Spese correnti;4;Trasferimenti correnti;2;Trasferimenti correnti a Famiglie;2;Interventi assistenziali;999;Altri assegni e sussidi assistenziali;23/03/2022
567;1;9999999;25;25;L'ORTO DI NOVI DI PILLONETTO NOVELLA; ;RIMBORSO BUONI SPESA - 2021 - INTERVENTO SOLIDARIETA ALIMENTARE EMERGENZA SANITARIA COVID-19 BANDO 2020;21/03/2022;5440;0;177;1;Spese correnti;4;Trasferimenti correnti;2;Trasferimenti correnti a Famiglie;2;Interventi assistenziali;999;Altri assegni e sussidi assistenziali;23/03/2022
568;1;9999999;122,49;122,49;CL.AN DI MUNDICI SRL;Z6C355B133;SALDO Fatt.n. 92124  del 28/02/2022 FORNITURA LIBRI PER BIBLIOTECA;21/03/2022;3100;0;85;1;Spese correnti;3;Acquisto di beni e servizi;1;Acquisto di beni;1;Giornali, riviste e pubblicazioni;2;Pubblicazioni;23/03/2022
569;1;9999999;1.638,86;1.638,86;I TIGLI2 SOCIETA' COOPERATIVA SOCIALE - ONLUS;Z1F30BDF7B;SALDO Fatt.n. 2022/00062/PA  del 28/02/2022 SERVIZIO CONSEGNA PASTI E TRASPORTO SOCIALE FEBBRAIO 2022;21/03/2022;5746;0;113;1;Spese correnti;3;Acquisto di beni e servizi;2;Acquisto di servizi;99;Altri servizi;999;Altri servizi diversi n.a.c.;23/03/2022
570;1;9999999;486,78;486,78;ZAMBON GIANNI; ;SALDO Fatt.n. 20-FE  del 07/03/2022 COMPETENZE PREDISPOSIZIONE PIANI DI SICUREZZA MANIFESTAZIONI E/O EVENTI ORGANIZZATI DALLA BIBLIOTECA COMUNALE ANNO 2021;21/03/2022;368;0;501;1;Spese correnti;3;Acquisto di beni e servizi;2;Acquisto di servizi;11;Prestazioni professionali e specialistiche;999;Altre prestazioni professionali e specialistiche n.a.c.;23/03/2022
571;1;9999999;1.670,00;1.670,00;G.S.E. SRL;ZA6349E357;ACCONTO Fatt.n. 1 PA  del 07/03/2022 REALIZZAZIONE, STAMPA E DIFFUSIONE NOTIZIARIO COMUNALE ANNO 2021;21/03/2022;410;2;595;1;Spese correnti;3;Acquisto di beni e servizi;2;Acquisto di servizi;13;Servizi ausiliari per il funzionamento dell'ente;999;Altri servizi ausiliari n.a.c.;23/03/2022
572;1;9999999;77,2;77,2;G.S.E. SRL;ZA6349E357;SALDO Fatt.n. 1 PA  del 07/03/2022 REALIZZAZIONE, STAMPA E DIFFUSIONE NOTIZIARIO COMUNALE ANNO 2021;21/03/2022;410;2;595;1;Spese correnti;3;Acquisto di beni e servizi;2;Acquisto di servizi;13;Servizi ausiliari per il funzionamento dell'ente;999;Altri servizi ausiliari n.a.c.;23/03/2022
573;1;9999999;1.000,00;1.000,00;TONON SEBASTIANO;Z271CB0001;SALDO Fatt.n. 7  del 25/02/2022 COMPETENZE ASSISTENZA LEGALE - COMUNE DI SERNAGLIA DELLA BATTAGLIA VS PARUSSOLO. TRIBUNALE DI TREVISO. R.G. 3041.17;21/03/2022;490;0;665;1;Spese correnti;3;Acquisto di beni e servizi;2;Acquisto di servizi;99;Altri servizi;2;Altre spese legali;23/03/2022
574;1;9999999;98,2;98,2;DUE UFFICIO S.R.L.;ZDB3515CCB;SALDO Fatt.n. C65/17  del 28/02/2022 FORNITURA TIMBRO E MATERIALE DI CONSUMO;21/03/2022;365;1;42;1;Spese correnti;3;Acquisto di beni e servizi;1;Acquisto di beni;2;Altri beni di consumo;999;Altri beni e materiali di consumo n.a.c.;23/03/2022
575;1;9999999;201,3;201,3;FAGGIONATO ROBERTO;ZE2352B6D3;SALDO Fatt.n. FPA 111/22  del 01/03/2022 FORNITURA N. 50 LIBRETTI COSTITUZIONE;21/03/2022;40;1;46;1;Spese correnti;3;Acquisto di beni e servizi;2;Acquisto di servizi;2;Organizzazione eventi, pubblicita` e servizi per trasferta;999;Altre spese per relazioni pubbliche, convegni e mostre, pubblicita` n.a.c;23/03/2022
576;1;9999999;1.623,24;1.623,24;PULITORI ED AFFINI S.P.A.;9082935314;ACCONTO Fatt.n. 000452/V4  del 28/02/2022 SERVIZIO PULIZIA UFFICI COMUNALI E AMBULATORIO SERNAGLIA FEBBRAIO 2022;21/03/2022;355;1;27;1;Spese correnti;3;Acquisto di beni e servizi;2;Acquisto di servizi;13;Servizi ausiliari per il funzionamento dell'ente;2;Servizi di pulizia e lavanderia;23/03/2022
577;1;9999999;17,08;92,91;PULITORI ED AFFINI S.P.A.;9082935314;ACCONTO Fatt.n. 000453/V4  del 28/02/2022 SERVIZIO PULIZIA CENTRI RICREATIVI - AMBULATORIO FONTIGO FEBBRAIO 2022;21/03/2022;1085;1;28;1;Spese correnti;3;Acquisto di beni e servizi;2;Acquisto di servizi;13;Servizi ausiliari per il funzionamento dell'ente;2;Servizi di pulizia e lavanderia;23/03/2022
577;2;9999999;75,83;92,91;PULITORI ED AFFINI S.P.A.;9082935314;SALDO Fatt.n. 000452/V4  del 28/02/2022 SERVIZIO PULIZIA UFFICI COMUNALI E AMBULATORIO SERNAGLIA FEBBRAIO 2022;21/03/2022;1085;1;28;1;Spese correnti;3;Acquisto di beni e servizi;2;Acquisto di servizi;13;Servizi ausiliari per il funzionamento dell'ente;2;Servizi di pulizia e lavanderia;23/03/2022
578;1;9999999;591,55;2.190,51;PULITORI ED AFFINI S.P.A.;9082935314;SALDO Fatt.n. 000454/V4  del 28/02/2022 SERVIZIO PULIZIA PALESTRE FEBBRAIO 2022;21/03/2022;2935;3;29;1;Spese correnti;3;Acquisto di beni e servizi;2;Acquisto di servizi;13;Servizi ausiliari per il funzionamento dell'ente;2;Servizi di pulizia e lavanderia;23/03/2022
578;2;9999999;1.598,96;2.190,51;PULITORI ED AFFINI S.P.A.;9082935314;SALDO Fatt.n. 000461/V4  del 28/02/2022 SERVIZIO PULIZIA PALESTRE FEBBRAIO 2022;21/03/2022;2935;3;29;1;Spese correnti;3;Acquisto di beni e servizi;2;Acquisto di servizi;13;Servizi ausiliari per il funzionamento dell'ente;2;Servizi di pulizia e lavanderia;23/03/2022
579;1;9999999;191,72;191,72;PULITORI ED AFFINI S.P.A.;9082935314;SALDO Fatt.n. 000453/V4  del 28/02/2022 SERVIZIO PULIZIA CENTRI RICREATIVI - AMBULATORIO FONTIGO FEBBRAIO 2022;21/03/2022;5765;4;30;1;Spese correnti;3;Acquisto di beni e servizi;2;Acquisto di servizi;13;Servizi ausiliari per il funzionamento dell'ente;2;Servizi di pulizia e lavanderia;23/03/2022
583;1;9999999;19,9;19,9;ECONOMO COMUNALE - MODENESE LILIANA; ;Rimborso bolletta N.     1 del  18-02-22 RESTITUIZIONE SOMMA ACQUISTO VETRINO PROTETTIVO CELLULARE;07/04/2022;340;1;60;1;Spese correnti;3;Acquisto di beni e servizi;1;Acquisto di beni;2;Altri beni di consumo;999;Altri beni e materiali di consumo n.a.c.;13/04/2022
584;1;9999999;24,3;24,3;ECONOMO COMUNALE - MODENESE LILIANA; ;Rimborso bolletta N.     2 del  24-02-22 RESTITUZIONE SOMMA ACQUISTO MATERIALE PER CONFEZIONI OMAGGIO;07/04/2022;365;1;81;1;Spese correnti;3;Acquisto di beni e servizi;1;Acquisto di beni;2;Altri beni di consumo;999;Altri beni e materiali di consumo n.a.c.;13/04/2022
585;1;9999999;647,33;647,33;ASSOCIAZIONE LA NOSTRA FAMIGLIA; ;ASPETTATIVA NON RETRIBUITA DEL SINDACO - VERSAMENTO CONTRIBUTI TFR PERIODO 01.08.2021 - 31.03.2022;07/04/2022;21;0;54;1;Spese correnti;3;Acquisto di beni e servizi;2;Acquisto di servizi;1;Organi e incarichi istituzionali dell'amministrazione;2;Organi istituzionali dell'amministrazione - Rimborsi;12/04/2022
586;1;9999999;965,77;965,77;ASSOCIAZIONE LA NOSTRA FAMIGLIA; ;ASPETTATIVA NON RETRIBUITA DEL SINDACO - VERSAMENTO CONTRIBUTI TFR PERIODO 01.08.2021 - 31.03.2022;07/04/2022;21;0;54;1;Spese correnti;3;Acquisto di beni e servizi;2;Acquisto di servizi;1;Organi e incarichi istituzionali dell'amministrazione;2;Organi istituzionali dell'amministrazione - Rimborsi;12/04/2022
587;1;9999999;6.650,00;6.650,00;RUSCONI ANTONIO; ;LIQUIDAZIONE COMPETENZE PER CONSULENZA/ASSISTENZA PROFESSIONALE IN MATERIA IDRAULICA;07/04/2022;7831;0;551;2;Spese in conto capitale;2;Investimenti fissi lordi e acquisto di terreni;3;Beni immateriali;99;Spese di investimento per beni immateriali n.a.c.;1;Spese di investimento per beni immateriali n.a.c.;12/04/2022
588;1;9999999;3.000,00;3.000,00;TORMENA ANGELISA;Z7B2685E93;SALDO Fatt.n. 3  del 17/03/2022 10 ACCONTO ATTIVITA DI ASSISTENTE AL PROJECT MANAGER PROGETTO LIFE 17 NAT/IT/000507 PALU QDP;07/04/2022;7873;1;3;2;Spese in conto capitale;2;Investimenti fissi lordi e acquisto di terreni;1;Beni materiali;9;Beni immobili;14;Opere per la sistemazione del suolo;12/04/2022
589;1;9999999;5.233,80;5.233,80;SOLDERA ANTONIO SAS;Z9A31A7BC9;SALDO Fatt.n. 49  del 22/03/2022 SERVIZIO SFALCIO CIGLI E PERTINENZE STRADALI ANNO 2021;07/04/2022;5910;4;166;1;Spese correnti;3;Acquisto di beni e servizi;2;Acquisto di servizi;9;Manutenzione ordinaria e riparazioni;12;Manutenzione ordinaria e riparazioni di terreni e beni materiali non prodotti;12/04/2022
590;1;9999999;3.469,68;3.469,68;DIESSE S.R.L.;Z333467051;SALDO Fatt.n. 9/E  del 18/03/2022 FORNITURA N. 9 SEDIE PER UFFICI;07/04/2022;6630;4;551;2;Spese in conto capitale;2;Investimenti fissi lordi e acquisto di terreni;1;Beni materiali;3;Mobili e arredi;1;Mobili e arredi per ufficio;12/04/2022
591;1;9999999;3.811,50;3.811,50;FERRETTO NOTAI ASSOCIATI;ZC020BDF3E;SALDO Fatt.n. 446/2022  del 21/03/2022 COMPETENZE ROGITO COMPRAVENDITA DI TERRENO DAL SIGNOR BELLE LUIGI - Via Grave;07/04/2022;6700;0;589;2;Spese in conto capitale;2;Investimenti fissi lordi e acquisto di terreni;2;Terreni e beni materiali non prodotti;1;Terreni;999;Altri terreni n.a.c.;12/04/2022
592;1;9999999;257,25;257,25;PASSIONE UFFICIO DI GABRIELE VECE;ZC9357DFA4;SALDO Fatt.n. FPR 300/22  del 15/03/2022 FORNITURA MASCHERINE FFP2;07/04/2022;2110;0;106;1;Spese correnti;3;Acquisto di beni e servizi;1;Acquisto di beni;2;Altri beni di consumo;999;Altri beni e materiali di consumo n.a.c.;12/04/2022
593;1;9999999;381,86;381,86;RZ SERVICE DI ROBERTO ZANCO;Z0F3585FF4;SALDO Fatt.n. 115/2022  del 19/03/2022 NOLEGGIO MACCHINA LAVAPAVIMENTI PRESSO SCUOLA ELEMENTARE DI FALZE' DI PIAVE;07/04/2022;2355;3;116;1;Spese correnti;3;Acquisto di beni e servizi;2;Acquisto di servizi;13;Servizi ausiliari per il funzionamento dell'ente;999;Altri servizi ausiliari n.a.c.;12/04/2022
594;1;9999999;427;427;MAGGIOLI SPA;Z3B2E999F3;SALDO Fatt.n. 0002113199  del 21/03/2022 RICONFIGURAZIONE CONCILIA SU 2 NUOVI PC UFFICIO POLIZIA LOCALE;07/04/2022;440;0;393;1;Spese correnti;3;Acquisto di beni e servizi;2;Acquisto di servizi;19;Servizi informatici e di telecomunicazioni;999;Altri servizi informatici e di telecomunicazioni n.a.c.;12/04/2022
595;1;9999999;6.344,00;6.344,00;KIBERNETES S.R.L. - SILEA;Z43341DB16;SALDO Fatt.n. 0000923/SPLIT  del 16/03/2022 ASSISTENZA E MANUTENZIONE SOFTWARE GESTIONALE TRIBUTI, SERVIZIO CLOUD E SPORTELLO CONTRIBUENTE ANNO 2022;07/04/2022;440;0;593;1;Spese correnti;3;Acquisto di beni e servizi;2;Acquisto di servizi;19;Servizi informatici e di telecomunicazioni;1;Gestione e manutenzione applicazioni;12/04/2022
596;1;9999999;91,5;91,5;BIGATELLO S.A.S DI BIGATELLO MICHELE & C.;Z0D3512F13;SALDO Fatt.n. FCN/473  del 10/03/2022 CANONE NOLEGGIO STAMPANTI UFFICI RAGIONERIA E ANAGRAFE MARZO 2021;07/04/2022;340;3;36;1;Spese correnti;3;Acquisto di beni e servizi;2;Acquisto di servizi;7;Utilizzo di beni di terzi;8;Noleggi di impianti e macchinari;12/04/2022
597;1;9999999;183;183;HALLEY VENETO S.R.L.;ZD135450FB;SALDO Fatt.n. 1/220729  del 18/03/2022 CANONE MANUTENZIONE SOFTWARE ANNO 2022 SIGILLO ELETTRONICO CREDEMTEL;07/04/2022;365;3;69;1;Spese correnti;3;Acquisto di beni e servizi;2;Acquisto di servizi;99;Altri servizi;999;Altri servizi diversi n.a.c.;12/04/2022
598;1;9999999;512,4;512,4;SOCIETA' INFORMATICA TERRITORIALE S.R.L.;Z2935AC7D5;SALDO Fatt.n. 70  del 23/03/2022 SERVIZIO ASSISTENZA SEDUTE CONSIGLIO COMUNALE IN VIDEOCONFERENZA;07/04/2022;365;3;125;1;Spese correnti;3;Acquisto di beni e servizi;2;Acquisto di servizi;99;Altri servizi;999;Altri servizi diversi n.a.c.;12/04/2022
599;1;9999999;2,85;2.052,68;DOLOMITI ENERGIA S.P.A.;ZA330DC41D;SALDO Fatt.n. 42201482659  del 31/03/2022 FORNITURA GAS NATURA FEBBRAIO 2022 (CONG. OTT21-GEN22) IMPIANTI SPORTIVI FONTIGO;07/04/2022;5290;2;85;1;Spese correnti;3;Acquisto di beni e servizi;2;Acquisto di servizi;5;Utenze e canoni;6;Gas;12/04/2022
599;2;9999999;2.049,83;2.052,68;DOLOMITI ENERGIA S.P.A.;ZA330DC41D;SALDO Fatt.n. 42201482660  del 31/03/2022 FORNITURA GAS NATURA FEBBRAIO 2022 IMPIANTI SPORTIVI SERNAGLIA;07/04/2022;5290;2;85;1;Spese correnti;3;Acquisto di beni e servizi;2;Acquisto di servizi;5;Utenze e canoni;6;Gas;12/04/2022
600;1;9999999;1.098,00;1.098,00;ACCATRE STP SRL;ZBC316197D;SALDO Fatt.n. 356/1  del 28/03/2022 CANONE PORTALE H.R.M.S. ANNO 2022;07/04/2022;440;0;131;1;Spese correnti;3;Acquisto di beni e servizi;2;Acquisto di servizi;19;Servizi informatici e di telecomunicazioni;1;Gestione e manutenzione applicazioni;12/04/2022
601;1;9999999;170,56;170,56;OLIVETTI S.P.A.;Z032CB4345;SALDO Fatt.n. A20020221000010257  del 31/03/2022 CANONE NOLEGGIO FOTOCOPIATRICE UFFICIO RAGIONERIA 1 TRIM. 2022;07/04/2022;340;3;166;1;Spese correnti;3;Acquisto di beni e servizi;2;Acquisto di servizi;7;Utilizzo di beni di terzi;8;Noleggi di impianti e macchinari;12/04/2022
602;1;9999999;1.240,42;4.488,47;A2A ENERGIA S.P.A.; ;SALDO Fatt.n. 822000070344  del 24/03/2022 FORNITURA ENERGIA ELETTRICA GENNAIO FEBBRAIO 2022 POD IT001E00058577 ILLUMINAZIONE PUBBLICA;07/04/2022;6000;0;48;1;Spese correnti;3;Acquisto di beni e servizi;2;Acquisto di servizi;5;Utenze e canoni;4;Energia elettrica;12/04/2022
602;2;9999999;1.596,16;4.488,47;A2A ENERGIA S.P.A.; ;SALDO Fatt.n. 822000069166  del 22/03/2022 FORNITURA ENERGIA ELETTRICA GENNAIO FEBBRAIO 2022 POD IT001E00058556 ILLUMINAZIONE PUBBLICA;07/04/2022;6000;0;48;1;Spese correnti;3;Acquisto di beni e servizi;2;Acquisto di servizi;5;Utenze e canoni;4;Energia elettrica;12/04/2022
602;3;9999999;1.651,89;4.488,47;A2A ENERGIA S.P.A.; ;SALDO Fatt.n. 822000070231  del 24/03/2022 FORNITURA ENERGIA ELETTRICA GENNAIO FEBBRAIO 2022 POD IT001E00058548 - ILLUMINAZIONE PUBBLICA;07/04/2022;6000;0;48;1;Spese correnti;3;Acquisto di beni e servizi;2;Acquisto di servizi;5;Utenze e canoni;4;Energia elettrica;12/04/2022
603;1;9999999;370;370;PUBLIKA S.R.L.;ZDD358490A;SALDO Fatt.n. 874/PA  del 05/04/2022 ABBONAMENTO ANNO 2022 RIVISTA PERSONALE NEWS;07/04/2022;420;0;104;1;Spese correnti;3;Acquisto di beni e servizi;1;Acquisto di beni;1;Giornali, riviste e pubblicazioni;2;Pubblicazioni;12/04/2022
605;1;9999999;1.780,36;1.780,36;HYPO VORARLBERG LEASING SPA;0474320D3B;ACCONTO Fatt.n. 36/2022/15  del 01/04/2022 FATTURAZIONE RATE LEASING NON MATURATE - RATA 23 DEL 01.04.20200;07/04/2022;5297;1;144;1;Spese correnti;7;Interessi passivi;6;Altri interessi passivi;5;Interessi passivi su operazioni di leasing finanziario;1;Interessi passivi su operazioni di leasing finanziario;12/04/2022
606;1;9999999;1.379,22;1.379,22;HYPO VORARLBERG LEASING SPA;0474320D3B;SALDO Fatt.n. 36/2022/15  del 01/04/2022 FATTURAZIONE RATE LEASING NON MATURATE - RATA 23 DEL 01.04.20200;07/04/2022;5297;2;145;1;Spese correnti;3;Acquisto di beni e servizi;2;Acquisto di servizi;99;Altri servizi;999;Altri servizi diversi n.a.c.;12/04/2022
607;1;9999999;386,17;386,17;MINISTERO INTERNO - TESORERIA DI ROMA; ;COMUNE DI SERNAGLIA DELLA BATTAGLIA CORRISPETTIVO RILASCIO N. 23 C.I.E. PERIODO 16.03.2022 - 31.03.2022;13/04/2022;432;0;13;1;Spese correnti;4;Trasferimenti correnti;1;Trasferimenti correnti a Amministrazioni Pubbliche;1;Trasferimenti correnti a Amministrazioni Centrali;1;Trasferimenti correnti a Ministeri;15/04/2022
609;1;9999999;244;244;L'ELETTRICA S.R.L.;ZCD28BCE67;SALDO Fatt.n. C/1  del 15/03/2022 COMPETENZE COMPONENTE ESPERTO IN ELETTROTECNICA COMMISSIONE COMUNALE VIGILANZA SUI LOCALI DI PUBBLICO SPETTACOLO PADOIN DIEGO;13/04/2022;5300;0;297;1;Spese correnti;3;Acquisto di beni e servizi;2;Acquisto di servizi;1;Organi e incarichi istituzionali dell'amministrazione;8;Compensi agli organi istituzionali di revisione, di controllo ed altri incarichi istituzionali dell'amministrazione;15/04/2022
610;1;9999999;122;122;STUDIO DOTT. FIER E ASSOCIATI S.A.S.;Z0A28BCECA;SALDO Fatt.n. 67/001  del 17/03/2022 COMPETENZE IN QUALITA' DI ESPERTO IN ACUSTICA - COMMISSIONE VIGILANZA PUBBLICO SPETTACOLO;13/04/2022;5300;0;298;1;Spese correnti;3;Acquisto di beni e servizi;2;Acquisto di servizi;1;Organi e incarichi istituzionali dell'amministrazione;8;Compensi agli organi istituzionali di revisione, di controllo ed altri incarichi istituzionali dell'amministrazione;15/04/2022
611;1;9999999;1.623,24;1.623,24;PULITORI ED AFFINI S.P.A.;9082935314;ACCONTO Fatt.n. 000613/V4  del 31/03/2022 SERVIZIO PULIZIA UFFICI COMUNALI E AMBULATORIO SERNAGLIA MARZO 2022;13/04/2022;355;1;27;1;Spese correnti;3;Acquisto di beni e servizi;2;Acquisto di servizi;13;Servizi ausiliari per il funzionamento dell'ente;2;Servizi di pulizia e lavanderia;15/04/2022
612;1;9999999;17,08;92,91;PULITORI ED AFFINI S.P.A.;9082935314;ACCONTO Fatt.n. 000614/V4  del 31/03/2022 SERVIZIO PULIZIA CENTRI RICREATIVI - AMBULATORIO FONTIGO MARZO 2022;13/04/2022;1085;1;28;1;Spese correnti;3;Acquisto di beni e servizi;2;Acquisto di servizi;13;Servizi ausiliari per il funzionamento dell'ente;2;Servizi di pulizia e lavanderia;15/04/2022
612;2;9999999;75,83;92,91;PULITORI ED AFFINI S.P.A.;9082935314;SALDO Fatt.n. 000613/V4  del 31/03/2022 SERVIZIO PULIZIA UFFICI COMUNALI E AMBULATORIO SERNAGLIA MARZO 2022;13/04/2022;1085;1;28;1;Spese correnti;3;Acquisto di beni e servizi;2;Acquisto di servizi;13;Servizi ausiliari per il funzionamento dell'ente;2;Servizi di pulizia e lavanderia;15/04/2022
613;1;9999999;591,55;2.190,51;PULITORI ED AFFINI S.P.A.;9082935314;SALDO Fatt.n. 000615/V4  del 31/03/2022 SERVIZIO PULIZIA PALESTRE MARZO 2022;13/04/2022;2935;3;29;1;Spese correnti;3;Acquisto di beni e servizi;2;Acquisto di servizi;13;Servizi ausiliari per il funzionamento dell'ente;2;Servizi di pulizia e lavanderia;15/04/2022
613;2;9999999;1.598,96;2.190,51;PULITORI ED AFFINI S.P.A.;9082935314;SALDO Fatt.n. 000651/V4  del 31/03/2022 SERVIZIO PULIZIA PALESTRE MARZO 2022;13/04/2022;2935;3;29;1;Spese correnti;3;Acquisto di beni e servizi;2;Acquisto di servizi;13;Servizi ausiliari per il funzionamento dell'ente;2;Servizi di pulizia e lavanderia;15/04/2022
614;1;9999999;191,72;191,72;PULITORI ED AFFINI S.P.A.;9082935314;SALDO Fatt.n. 000614/V4  del 31/03/2022 SERVIZIO PULIZIA CENTRI RICREATIVI - AMBULATORIO FONTIGO MARZO 2022;13/04/2022;5765;4;30;1;Spese correnti;3;Acquisto di beni e servizi;2;Acquisto di servizi;13;Servizi ausiliari per il funzionamento dell'ente;2;Servizi di pulizia e lavanderia;15/04/2022
615;1;9999999;9.889,00;9.889,00;SOLIGO VIAGGI SAS DI SCAPOL GIUSEPPINA & C.;7965830ADC;SALDO Fatt.n. PA/013  del 31/03/2022 SERVIZIO TRASPORTO SCOLASTICO MARZO 2022;13/04/2022;2730;0;408;1;Spese correnti;3;Acquisto di beni e servizi;2;Acquisto di servizi;15;Contratti di servizio pubblico;2;Contratti di servizio di trasporto scolastico;15/04/2022
616;1;9999999;693,57;693,57;AUTOFFICINA MANZATO DI MIRCO MANZATO;ZCB3577B31;ACCONTO Fatt.n. 20  del 14/03/2022;13/04/2022;1800;5;107;1;Spese correnti;3;Acquisto di beni e servizi;2;Acquisto di servizi;9;Manutenzione ordinaria e riparazioni;1;Manutenzione ordinaria e riparazioni di mezzi di trasporto ad uso civile, di sicurezza e ordine pubblico;15/04/2022
617;1;9999999;543,81;543,81;AUTOFFICINA MANZATO DI MIRCO MANZATO;ZCB3577B31;SALDO Fatt.n. 20  del 14/03/2022;13/04/2022;5810;5;108;1;Spese correnti;3;Acquisto di beni e servizi;2;Acquisto di servizi;9;Manutenzione ordinaria e riparazioni;1;Manutenzione ordinaria e riparazioni di mezzi di trasporto ad uso civile, di sicurezza e ordine pubblico;15/04/2022
618;1;9999999;1.588,44;1.588,44;MAGGIOLI SPA;ZC135A9F6C;SALDO Fatt.n. 0002113729  del 22/03/2022 SERVIZIO ASSISTENZA TELEFONICA SOFTWARE CONCILIA ANNO 2022;13/04/2022;1780;1;126;1;Spese correnti;3;Acquisto di beni e servizi;2;Acquisto di servizi;5;Utenze e canoni;999;Utenze e canoni per altri servizi n.a.c.;15/04/2022
619;1;9999999;19.886,00;19.886,00;ADRIATICA S.R.L.;ZD63314223;SALDO Fatt.n. 24PA  del 31/03/2022 LAVORI RIFACIMENTO SEGNALETICA STRADALE ORIZZONTALE ANNO 2021;13/04/2022;7751;0;375;2;Spese in conto capitale;2;Investimenti fissi lordi e acquisto di terreni;1;Beni materiali;9;Beni immobili;12;Infrastrutture stradali;15/04/2022
620;1;9999999;225;225;AUTORITA' NAZIONALE ANTICORRUZIONE; ;MAV 01030651407821677 - CONTRIBUTO ANAC - APPROVAZIONE PROGETTO DEFINITIVO DEI LAVORI DI SISTEMAZIONE A ROTATORIA DELLINTERSEZIONE TRA VIA MERCATELLI SANTANNA, VIA PIEVE DI SOLIGO E VIA AL BIVIO;13/04/2022;7747;0;699;2;Spese in conto capitale;2;Investimenti fissi lordi e acquisto di terreni;1;Beni materiali;9;Beni immobili;12;Infrastrutture stradali;15/04/2022
621;1;9999999;375;375;AUTORITA' NAZIONALE ANTICORRUZIONE; ;MAV 01030651407821677 - LAVORI DI RIQUALIFICAZIONE ENERGETICA MEDIANTE LA TRASFORMAZIONE IN NZEB (EDIFICIO A ENERGIA QUASI ZERO) DELLA SCUOLA PRIMARIA O. DE GASPARI A FALZE DI PIAVE, IN COMUNE DI SERNAGLIA DELLA BATTAGLIA (TV). DETERMINA A CONTRARRE;13/04/2022;6977;0;127;2;Spese in conto capitale;2;Investimenti fissi lordi e acquisto di terreni;1;Beni materiali;9;Beni immobili;3;Fabbricati ad uso scolastico;15/04/2022
622;1;9999999;375;375;AUTORITA' NAZIONALE ANTICORRUZIONE; ;MAV 01030651407821677 - CONTRIBUTO ANAC - LAVORI DI RIQUALIFICAZIONE ENERGETICA CON TRASFORMAZIONE IN EDIFICIO A ENERGIA QUASI ZERO NZEB DEL PLESSO SCOLASTICO - SCUOLA PRIMARIA O. ZOPPI E SCUOLA SECONDARIA DI I GRADO I. NIEVO - DI SERNAGLIA DELLA BAT;13/04/2022;6976;0;156;2;Spese in conto capitale;2;Investimenti fissi lordi e acquisto di terreni;1;Beni materiali;9;Beni immobili;3;Fabbricati ad uso scolastico;15/04/2022
623;1;9999999;30;30;AUTORITA' NAZIONALE ANTICORRUZIONE; ;MAV 01030654110871230 - CONTRIBUTO ANAC - RECUPERO AMBITO URBANO VIALE RIMEMBRANZA - LOTTO 2 - PROGETTO ESECUTIVO (FIN.CONTRIBUTO STATALE);13/04/2022;7727;3;669;2;Spese in conto capitale;2;Investimenti fissi lordi e acquisto di terreni;1;Beni materiali;9;Beni immobili;12;Infrastrutture stradali;15/04/2022
624;1;9999999;225;225;AUTORITA' NAZIONALE ANTICORRUZIONE; ;MAV 01030654110871230 - CONTRIBUTO ANAC SU INTERVENTO DI VIALE DELLA RIMEMBRANZA 1 LOTTO (FIN.AVANZO D AMMINISTRAZIONE);13/04/2022;7727;1;505;2;Spese in conto capitale;2;Investimenti fissi lordi e acquisto di terreni;1;Beni materiali;9;Beni immobili;12;Infrastrutture stradali;15/04/2022
625;1;9999999;30;30;AUTORITA' NAZIONALE ANTICORRUZIONE; ;MAV 01030654110871230 - LIQUIDAZIONE QUOTE PER PROCEDURE AFFIDAMENTO DEI SERVIZI REFERZIONE SCOLASTICA;13/04/2022;5750;0;152;1;Spese correnti;3;Acquisto di beni e servizi;2;Acquisto di servizi;99;Altri servizi;999;Altri servizi diversi n.a.c.;15/04/2022
626;1;9999999;30;30;AUTORITA' NAZIONALE ANTICORRUZIONE; ;MAV 01030654110871230 - LIQUIDAZIONE QUOTE AFFIDAMENTO DEI SERVIZI PASTI CALDI A DOMICILIO;13/04/2022;5745;0;153;1;Spese correnti;3;Acquisto di beni e servizi;2;Acquisto di servizi;14;Servizi di ristorazione;999;Altri servizi di ristorazione;15/04/2022
627;1;9999999;30;30;AUTORITA' NAZIONALE ANTICORRUZIONE; ;MAV 01030652602801426 - LIQUIDAZIONE QUOTE PROCEDURE DI AFFIDAMENTO DEI SERVIZI CENTRI ESTIVI;13/04/2022;2751;2;154;1;Spese correnti;3;Acquisto di beni e servizi;2;Acquisto di servizi;15;Contratti di servizio pubblico;999;Altre spese per contratti di servizio pubblico;15/04/2022
628;1;9999999;1,28;3,67;DIVERSI C/POS; ;COMUNE DI SERNAGLIA DELLA BATT-COMMISSIONI POS DEL 08/03/2022 (P. 6 -R. del 09/03/2022);13/04/2022;450;0;93;1;Spese correnti;3;Acquisto di beni e servizi;2;Acquisto di servizi;17;Servizi finanziari;999;Spese per servizi finanziari n.a.c.;14/04/2022
628;2;9999999;2,39;3,67;DIVERSI C/POS; ;COMUNE DI SERNAGLIA DELLA BATT-COMMISSIONI POS DAL 11/03/2022 AL 13/03/2022 (P. 7 -R. del 14/03/2022);13/04/2022;450;0;93;1;Spese correnti;3;Acquisto di beni e servizi;2;Acquisto di servizi;17;Servizi finanziari;999;Spese per servizi finanziari n.a.c.;14/04/2022
629;1;9999999;2,47;2,47;BANCA MONTE PASCHI DI SIENA; ;BANCA MONTE DEI PASCHI DI SIEN-RIMBORSO SPESE SPEDIZIONE ASSEGNO - MANDATO 439 (P. 8 -R. del 23/03/2022);13/04/2022;450;0;136;1;Spese correnti;3;Acquisto di beni e servizi;2;Acquisto di servizi;17;Servizi finanziari;999;Spese per servizi finanziari n.a.c.;14/04/2022
630;1;9999999;1.036,00;1.036,00;AGENZIA DELLE ENTRATE; ;AGENZIA ENTRATE-PAGAMENTO CONTRIBUTO UNIFICATO SENTENZA CORTE SUPREMA DI CASSAZIONE DI ROMA (P. 5 -R. del 08/03/2022);13/04/2022;490;0;94;1;Spese correnti;3;Acquisto di beni e servizi;2;Acquisto di servizi;99;Altri servizi;999;Altri servizi diversi n.a.c.;14/04/2022
634;1;9999999;5.165,52;5.165,52;AMMINISTRATORI C/INDENNITA'; ;INDENNITA DI FUNZIONE AMMINISTRATORI MESE DI MARZO 2022;20/04/2022;20;0;61;1;Spese correnti;3;Acquisto di beni e servizi;2;Acquisto di servizi;1;Organi e incarichi istituzionali dell'amministrazione;1;Organi istituzionali dell'amministrazione - Indennità;26/04/2022
635;1;9999999;623;623;ISTITUTO NAZIONALE PREVIDENZA SOCIALE; ;ASPETTATIVA NON RETRIBUITA DEL SINDACO PER ESPLETAMENTO DEL MANDATO ELETTIVO - CONTRIBUTI APRILE 2022;20/04/2022;21;0;54;1;Spese correnti;3;Acquisto di beni e servizi;2;Acquisto di servizi;1;Organi e incarichi istituzionali dell'amministrazione;2;Organi istituzionali dell'amministrazione - Rimborsi;13/05/2022
695;1;9999999;293.810,00;293.810,00;MAC COSTRUZIONI S.R.L. UNIPERSONALE;8688614717;SALDO Fatt.n. 67/E  del 12/04/2022 2 SAL - LAVORI DI RIQUALIFICAZIONE ENERGETICA MEDIANTE LA TRASFORMAZIONE IN NZEB (EDIFICO A ENERGIA QUASI ZERO) DELLA SCUOLA PRIMARIA O. DE GASPERI DI FALZE DI PIAVE.;22/04/2022;6977;0;158;2;Spese in conto capitale;2;Investimenti fissi lordi e acquisto di terreni;1;Beni materiali;9;Beni immobili;3;Fabbricati ad uso scolastico;27/04/2022
696;1;9999999;121,28;121,28;AGENZIA DELLE ENTRATE - RISCOSSIONE; ;ART.17, COMMA 3 DEL DECRETO LEGISLATIVO 13 APRILE 1999, N.112 - RIMBORSO AD AGENZIA ENTRATE RISCOSSIONE DELLE SPESE ESECUTIVE MATURATE NEL 2021.;27/04/2022;1270;1;163;1;Spese correnti;3;Acquisto di beni e servizi;2;Acquisto di servizi;3;Aggi di riscossione;999;Altri aggi di riscossione n.a.c.;28/04/2022
697;1;9999999;200;200;LEGAMBIENTE SERNAGLIA; ;LIQUIDAZIONE CONTRIBUTO ECONOMICO PER APPRONTAMENTO E APPOSIZIONE TARGA COMMEMORATIVA DEDICATA A MICHELE DE VECCHI;27/04/2022;3330;0;161;1;Spese correnti;4;Trasferimenti correnti;4;Trasferimenti correnti a Istituzioni Sociali Private;1;Trasferimenti correnti a Istituzioni Sociali Private;1;Trasferimenti correnti a Istituzioni Sociali Private;29/04/2022
698;1;9999999;-114,41;558,22;EMITEX DI MICHELETTO GRAZIELLA & C. S.N.C.; ;SALDO Fatt.n. 6/PA  del 22/03/2022 STORNO PARZIALE FATTURA N. 2/PA DEL 10.02.2022 - LIBRI DI TESTO SCUOLA PRIMARIA 2021/2022;27/04/2022;2360;0;440;1;Spese correnti;3;Acquisto di beni e servizi;1;Acquisto di beni;1;Giornali, riviste e pubblicazioni;2;Pubblicazioni;29/04/2022
698;2;9999999;-50,69;558,22;EMITEX DI MICHELETTO GRAZIELLA & C. S.N.C.; ;SALDO Fatt.n. 3/PA  del 17/02/2022 STORNO PARZIALE FATTURA N. 2/PA DEL 10.02.2022 - LIBRI DI TESTO SCUOLA PRIMARIA 2021/2022;27/04/2022;2360;0;440;1;Spese correnti;3;Acquisto di beni e servizi;1;Acquisto di beni;1;Giornali, riviste e pubblicazioni;2;Pubblicazioni;29/04/2022
698;3;9999999;93,78;558,22;EMITEX DI MICHELETTO GRAZIELLA & C. S.N.C.; ;SALDO Fatt.n. 7/PA  del 22/03/2022 FORNITURA LIBRI DI TESTO SCUOLA PRIMARIA 2021/2022;27/04/2022;2360;0;440;1;Spese correnti;3;Acquisto di beni e servizi;1;Acquisto di beni;1;Giornali, riviste e pubblicazioni;2;Pubblicazioni;29/04/2022
698;4;9999999;629,54;558,22;EMITEX DI MICHELETTO GRAZIELLA & C. S.N.C.; ;SALDO Fatt.n. 2/PA  del 10/02/2022 FORNITURA LIBRI DI TESTO SCUOLA PRIMARIA A.S. 2021/2022;27/04/2022;2360;0;440;1;Spese correnti;3;Acquisto di beni e servizi;1;Acquisto di beni;1;Giornali, riviste e pubblicazioni;2;Pubblicazioni;29/04/2022
699;1;9999999;1.552,00;1.552,00;ISTITUTO BON BOZZOLLA - I.P.A.B.; ;SALDO Fatt.n. 45/E  del 31/03/2022 RETTA RICOVERO B.G. MARZO 2022;27/04/2022;5610;4;22;1;Spese correnti;3;Acquisto di beni e servizi;2;Acquisto di servizi;99;Altri servizi;999;Altri servizi diversi n.a.c.;29/04/2022
700;1;9999999;1.773,96;1.773,96;ISTITUTI POLESANI SRL; ;SALDO Fatt.n. 218/E  del 31/03/2022 RETTA RICOVERO L.P. MARZO 2022;27/04/2022;5610;2;26;1;Spese correnti;3;Acquisto di beni e servizi;2;Acquisto di servizi;99;Altri servizi;999;Altri servizi diversi n.a.c.;29/04/2022
701;1;9999999;841,8;841,8;GRAFICHE BRONCA SRL;Z5C353A442;SALDO Fatt.n. 3/S  del 31/03/2022 STAMPA GIORNALINO SCOLASTICO DEL CONSIGLIO COMUNALE DEI RAGAZZI;27/04/2022;2760;2;62;1;Spese correnti;3;Acquisto di beni e servizi;2;Acquisto di servizi;99;Altri servizi;999;Altri servizi diversi n.a.c.;29/04/2022
